Workbook

Sheet Main
B10: 2022-09-26
B12: Sheet No. | C12: Template Name | D12: Summary
B13: 1 | C13: Future Intra | D13: For Intraday trading in F&O segment
B14: 2 | C14: Cash Intra | D14: For Intraday trading in cash market segment
B15: 3 | C15: Mid-cap Intra | D15: For Intraday trading in Mid-cap stocks
B16: 4 | C16: Bulk Deals | D16: Reveals Bulk Deals carried on NSE & BSE
B17: 5 | C17: Call Tracker
K27: `

Sheet Future Intra
M5: Back to Main Page
A6: FOR INTRA DAY TRADING | L6: =Main!B10 -> 2022-09-26
A9: Sr.no | B9: Sector | C9: Scrip | D9: Expiry Date | E9: CLOSE RATE | F9: Pivot Point | G9: Supports | J9: Resistances
E10: Point | F10: Point | G10: S1 | H10: S2 | I10: S3 | J10: R1 | K10: R2 | L10: R3 | M10: HIGH | N10: LOW | O10: OI | P10: % Change in OI
A11: 1 | B11: Index | C11: NIFTY | D11: 2022-09-29 | E11: 17335.85 | F11: 17421.77 | G11: 17205.23 | H11: 17074.62 | I11: 16858.08 | J11: 17552.38 | K11: 17768.92 | L11: 17899.53 | M11: 17638.3 | N11: 17291.15 | O11: 14075700 | P11: 2.63%
A12: 2 | B12: Index | C12: BANKNIFTY | D12: 2022-09-29 | E12: 39642.75 | F12: 39896.08 | G12: 39223.97 | H12: 38805.18 | I12: 38133.07 | J12: 40314.87 | K12: 40986.98 | L12: 41405.77 | M12: 40568.2 | N12: 39477.3 | O12: 2699975 | P12: 10.29%
A13: 3 | B13: Index | C13: FINNIFTY | D13: 2022-09-27 | E13: 17984.50 | F13: 18193.92 | G13: 17709.83 | H13: 17435.17 | I13: 16951.08 | J13: 18468.58 | K13: 18952.67 | L13: 19227.33 | M13: 18678 | N13: 17919.25 | O13: 10920 | P13: 86.99%
A14: 4 | B14: Index | C14: MIDCPNIFTY | D14: 2022-09-27 | E14: 7475.00 | F14: 2491.67 | G14: 4983.33 | H14: 2491.67 | I14: 4983.33 | J14: 4983.33 | K14: 2491.67 | L14: 4983.33 | M14: 0 | N14: 0 | O14: 750 | P14: 0.00%
A15: 5 | B15: Chemical | C15: AARTIIND | D15: 2022-09-29 | E15: 855.90 | F15: 864.52 | G15: 844.08 | H15: 832.27 | I15: 811.83 | J15: 876.33 | K15: 896.77 | L15: 908.58 | M15: 884.95 | N15: 852.7 | O15: 2935050 | P15: -2.60%
A16: 6 | B16: Capital_Goods | C16: ABB | D16: 2022-09-29 | E16: 3134.95 | F16: 3146.35 | G16: 3110.55 | H16: 3086.15 | I16: 3050.35 | J16: 3170.75 | K16: 3206.55 | L16: 3230.95 | M16: 3182.15 | N16: 3121.95 | O16: 1357000 | P16: 1.04%
A17: 7 | B17: Pharma | C17: ABBOTINDIA | D17: 2022-09-29 | E17: 17860.75 | F17: 17954.13 | G17: 17709.27 | H17: 17557.78 | I17: 17312.92 | J17: 18105.62 | K17: 18350.48 | L17: 18501.97 | M17: 18199 | N17: 17802.65 | O17: 58200 | P17: -4.59%
A18: 8 | B18: Others | C18: ABCAPITAL | D18: 2022-09-29 | E18: 111.60 | F18: 112.65 | G18: 109.25 | H18: 106.90 | I18: 103.50 | J18: 115.00 | K18: 118.40 | L18: 120.75 | M18: 116.05 | N18: 110.3 | O18: 26173800 | P18: -2.30%
A19: 9 | B19: Textile | C19: ABFRL | D19: 2022-09-29 | E19: 334.65 | F19: 338.35 | G19: 329.70 | H19: 324.75 | I19: 316.10 | J19: 343.30 | K19: 351.95 | L19: 356.90 | M19: 347 | N19: 333.4 | O19: 9778600 | P19: -0.27%
A20: 10 | B20: Cement | C20: ACC | D20: 2022-09-29 | E20: 2493.20 | F20: 2518.35 | G20: 2450.05 | H20: 2406.90 | I20: 2338.60 | J20: 2561.50 | K20: 2629.80 | L20: 2672.95 | M20: 2586.65 | N20: 2475.2 | O20: 4860750 | P20: -3.22%
A21: 11 | B21: Others | C21: ADANIENT | D21: 2022-09-29 | E21: 3670.60 | F21: 3688.88 | G21: 3636.27 | H21: 3601.93 | I21: 3549.32 | J21: 3723.22 | K21: 3775.83 | L21: 3810.17 | M21: 3741.5 | N21: 3654.55 | O21: 17713500 | P21: -1.71%
A22: 12 | B22: Others | C22: ADANIPORTS | D22: 2022-09-29 | E22: 915.15 | F22: 925.85 | G22: 901.30 | H22: 887.45 | I22: 862.90 | J22: 939.70 | K22: 964.25 | L22: 978.10 | M22: 950.4 | N22: 912 | O22: 70141250 | P22: -0.49%
A23: 13 | B23: Pharma | C23: ALKEM | D23: 2022-09-29 | E23: 3263.90 | F23: 3276.38 | G23: 3242.72 | H23: 3221.53 | I23: 3187.87 | J23: 3297.57 | K23: 3331.23 | L23: 3352.42 | M23: 3310.05 | N23: 3255.2 | O23: 471600 | P23: 0.99%
A24: 14 | B24: Automobile | C24: AMARAJABAT | D24: 2022-09-29 | E24: 502.55 | F24: 506.73 | G24: 497.32 | H24: 492.08 | I24: 482.67 | J24: 511.97 | K24: 521.38 | L24: 526.62 | M24: 516.15 | N24: 501.5 | O24: 7025000 | P24: 0.54%
A25: 15 | B25: Cement | C25: AMBUJACEM | D25: 2022-09-29 | E25: 540.45 | F25: 543.33 | G25: 531.77 | H25: 523.08 | I25: 511.52 | J25: 552.02 | K25: 563.58 | L25: 572.27 | M25: 554.9 | N25: 534.65 | O25: 64359000 | P25: -5.41%
A26: 16 | B26: Others | C26: APOLLOHOSP | D26: 2022-09-29 | E26: 4425.20 | F26: 4516.58 | G26: 4302.07 | H26: 4178.93 | I26: 3964.42 | J26: 4639.72 | K26: 4854.23 | L26: 4977.37 | M26: 4731.1 | N26: 4393.45 | O26: 1636000 | P26: 5.40%
A27: 17 | B27: Automobile | C27: APOLLOTYRE | D27: 2022-09-29 | E27: 285.10 | F27: 285.25 | G27: 281.55 | H27: 278.00 | I27: 274.30 | J27: 288.80 | K27: 292.50 | L27: 296.05 | M27: 288.95 | N27: 281.7 | O27: 13576500 | P27: -5.46%
A28: 18 | B28: Automobile | C28: ASHOKLEY | D28: 2022-09-29 | E28: 159.20 | F28: 161.13 | G28: 156.27 | H28: 153.33 | I28: 148.47 | J28: 164.07 | K28: 168.93 | L28: 171.87 | M28: 166 | N28: 158.2 | O28: 53655000 | P28: -0.18%
A29: 19 | B29: FMCG | C29: ASIANPAINT | D29: 2022-09-29 | E29: 3403.85 | F29: 3412.47 | G29: 3381.83 | H29: 3359.82 | I29: 3329.18 | J29: 3434.48 | K29: 3465.12 | L29: 3487.13 | M29: 3443.1 | N29: 3390.45 | O29: 5300800 | P29: 0.06%
A30: 20 | B30: Others | C30: ASTRAL | D30: 2022-09-29 | E30: 2314.80 | F30: 2318.27 | G30: 2276.53 | H30: 2238.27 | I30: 2196.53 | J30: 2356.53 | K30: 2398.27 | L30: 2436.53 | M30: 2360 | N30: 2280 | O30: 1409925 | P30: -1.65%
A31: 21 | B31: Others | C31: ATUL | D31: 2022-09-29 | E31: 9254.35 | F31: 9303.25 | G31: 9185.80 | H31: 9117.25 | I31: 8999.80 | J31: 9371.80 | K31: 9489.25 | L31: 9557.80 | M31: 9420.7 | N31: 9234.7 | O31: 179550 | P31: -3.58%
A32: 22 | B32: Banking | C32: AUBANK | D32: 2022-09-29 | E32: 638.85 | F32: 648.42 | G32: 627.28 | H32: 615.72 | I32: 594.58 | J32: 659.98 | K32: 681.12 | L32: 692.68 | M32: 669.55 | N32: 636.85 | O32: 6125000 | P32: 8.45%
A33: 23 | B33: Pharma | C33: AUROPHARMA | D33: 2022-09-29 | E33: 516.85 | F33: 520.97 | G33: 510.93 | H33: 505.02 | I33: 494.98 | J33: 526.88 | K33: 536.92 | L33: 542.83 | M33: 531 | N33: 515.05 | O33: 14307000 | P33: 1.04%
A34: 24 | B34: Banking | C34: AXISBANK | D34: 2022-09-29 | E34: 770.30 | F34: 775.90 | G34: 760.65 | H34: 751.00 | I34: 735.75 | J34: 785.55 | K34: 800.80 | L34: 810.45 | M34: 791.15 | N34: 766.25 | O34: 38869200 | P34: -0.96%
A35: 25 | B35: Automobile | C35: BAJAJ-AUTO | D35: 2022-09-29 | E35: 3687.80 | F35: 3706.63 | G35: 3654.27 | H35: 3620.73 | I35: 3568.37 | J35: 3740.17 | K35: 3792.53 | L35: 3826.07 | M35: 3759 | N35: 3673.1 | O35: 3524500 | P35: 2.67%
A36: 26 | B36: Finance | C36: BAJAJFINSV | D36: 2022-09-29 | E36: 1717.65 | F36: 1733.08 | G36: 1692.62 | H36: 1667.58 | I36: 1627.12 | J36: 1758.12 | K36: 1798.58 | L36: 1823.62 | M36: 1773.55 | N36: 1708.05 | O36: 9405500 | P36: 1.53%
A37: 27 | B37: Finance | C37: BAJFINANCE | D37: 2022-09-29 | E37: 7502.55 | F37: 7567.42 | G37: 7404.83 | H37: 7307.12 | I37: 7144.53 | J37: 7665.13 | K37: 7827.72 | L37: 7925.43 | M37: 7730 | N37: 7469.7 | O37: 4203125 | P37: -5.22%
A38: 28 | B38: Automobile | C38: BALKRISIND | D38: 2022-09-29 | E38: 1892.30 | F38: 1903.27 | G38: 1872.23 | H38: 1852.17 | I38: 1821.13 | J38: 1923.33 | K38: 1954.37 | L38: 1974.43 | M38: 1934.3 | N38: 1883.2 | O38: 3283800 | P38: -2.46%
A39: 29 | B39: Others | C39: BALRAMCHIN | D39: 2022-09-29 | E39: 360.40 | F39: 364.10 | G39: 354.70 | H39: 349.00 | I39: 339.60 | J39: 369.80 | K39: 379.20 | L39: 384.90 | M39: 373.5 | N39: 358.4 | O39: 7979200 | P39: -3.05%
A40: 30 | B40: Banking | C40: BANDHANBNK | D40: 2022-09-29 | E40: 277.85 | F40: 279.90 | G40: 272.60 | H40: 267.35 | I40: 260.05 | J40: 285.15 | K40: 292.45 | L40: 297.70 | M40: 287.2 | N40: 274.65 | O40: 27811800 | P40: -0.51%
A41: 31 | B41: Banking | C41: BANKBARODA | D41: 2022-09-29 | E41: 132.50 | F41: 134.47 | G41: 129.88 | H41: 127.27 | I41: 122.68 | J41: 137.08 | K41: 141.67 | L41: 144.28 | M41: 139.05 | N41: 131.85 | O41: 88124400 | P41: -1.08%
A42: 32 | B42: FMCG | C42: BATAINDIA | D42: 2022-09-29 | E42: 1853.20 | F42: 1874.70 | G42: 1824.50 | H42: 1795.80 | I42: 1745.60 | J42: 1903.40 | K42: 1953.60 | L42: 1982.30 | M42: 1924.9 | N42: 1846 | O42: 2305050 | P42: -1.32%
A43: 33 | B43: Capital_Goods | C43: BEL | D43: 2022-09-29 | E43: 107.05 | F43: 108.25 | G43: 105.40 | H43: 103.75 | I43: 100.90 | J43: 109.90 | K43: 112.75 | L43: 114.40 | M43: 111.1 | N43: 106.6 | O43: 92476800 | P43: 7.69%
A44: 34 | B44: FMCG | C44: BERGEPAINT | D44: 2022-09-29 | E44: 635.30 | F44: 635.55 | G44: 630.15 | H44: 625.00 | I44: 619.60 | J44: 640.70 | K44: 646.10 | L44: 651.25 | M44: 640.95 | N44: 630.4 | O44: 6783700 | P44: -2.39%
A45: 35 | B45: Automobile | C45: BHARATFORG | D45: 2022-09-29 | E45: 749.10 | F45: 760.32 | G45: 735.93 | H45: 722.77 | I45: 698.38 | J45: 773.48 | K45: 797.87 | L45: 811.03 | M45: 784.7 | N45: 747.15 | O45: 8309000 | P45: 0.79%
A46: 36 | B46: Telecom | C46: BHARTIARTL | D46: 2022-09-29 | E46: 766.00 | F46: 771.25 | G46: 758.90 | H46: 751.80 | I46: 739.45 | J46: 778.35 | K46: 790.70 | L46: 797.80 | M46: 783.6 | N46: 764.15 | O46: 56712150 | P46: 0.15%
A47: 37 | B47: Capital_Goods | C47: BHEL | D47: 2022-09-29 | E47: 58.10 | F47: 58.67 | G47: 57.08 | H47: 56.07 | I47: 54.48 | J47: 59.68 | K47: 61.27 | L47: 62.28 | M47: 60.25 | N47: 57.65 | O47: 134683500 | P47: 7.51%
A48: 38 | B48: Pharma | C48: BIOCON | D48: 2022-09-29 | E48: 284.25 | F48: 287.00 | G48: 280.75 | H48: 277.25 | I48: 271.00 | J48: 290.50 | K48: 296.75 | L48: 300.25 | M48: 293.25 | N48: 283.5 | O48: 23844100 | P48: 4.89%
A49: 39 | B49: Automobile | C49: BOSCHLTD | D49: 2022-09-29 | E49: 16214.95 | F49: 16358.25 | G49: 16005.25 | H49: 15795.55 | I49: 15442.55 | J49: 16567.95 | K49: 16920.95 | L49: 17130.65 | M49: 16711.25 | N49: 16148.55 | O49: 238350 | P49: 0.74%
A50: 40 | B50: Oil_Gas | C50: BPCL | D50: 2022-09-29 | E50: 312.45 | F50: 313.58 | G50: 310.02 | H50: 307.58 | I50: 304.02 | J50: 316.02 | K50: 319.58 | L50: 322.02 | M50: 317.15 | N50: 311.15 | O50: 16941600 | P50: 5.39%
A51: 41 | B51: FMCG | C51: BRITANNIA | D51: 2022-09-29 | E51: 3793.10 | F51: 3807.33 | G51: 3769.77 | H51: 3746.43 | I51: 3708.87 | J51: 3830.67 | K51: 3868.23 | L51: 3891.57 | M51: 3844.9 | N51: 3784 | O51: 1485000 | P51: -3.38%
A52: 42 | B52: Technology | C52: BSOFT | D52: 2022-09-29 | E52: 298.90 | F52: 301.52 | G52: 295.53 | H52: 292.17 | I52: 286.18 | J52: 304.88 | K52: 310.87 | L52: 314.23 | M52: 307.5 | N52: 298.15 | O52: 8921900 | P52: 1.09%
A53: 43 | B53: Banking | C53: CANBK | D53: 2022-09-29 | E53: 229.25 | F53: 233.75 | G53: 223.95 | H53: 218.65 | I53: 208.85 | J53: 239.05 | K53: 248.85 | L53: 254.15 | M53: 243.55 | N53: 228.45 | O53: 47695500 | P53: 5.36%
A54: 44 | B54: Finance | C54: CANFINHOME | D54: 2022-09-29 | E54: 516.95 | F54: 522.48 | G54: 498.37 | H54: 479.78 | I54: 455.67 | J54: 541.07 | K54: 565.18 | L54: 583.77 | M54: 546.6 | N54: 503.9 | O54: 5966025 | P54: -11.38%
A55: 45 | B55: Others | C55: CHAMBLFERT | D55: 2022-09-29 | E55: 329.30 | F55: 334.95 | G55: 321.15 | H55: 313.00 | I55: 299.20 | J55: 343.10 | K55: 356.90 | L55: 365.05 | M55: 348.75 | N55: 326.8 | O55: 6330000 | P55: 2.70%
A56: 46 | B56: Finance | C56: CHOLAFIN | D56: 2022-09-29 | E56: 737.35 | F56: 750.28 | G56: 719.07 | H56: 700.78 | I56: 669.57 | J56: 768.57 | K56: 799.78 | L56: 818.07 | M56: 781.5 | N56: 732 | O56: 7548750 | P56: 0.70%
A57: 47 | B57: Pharma | C57: CIPLA | D57: 2022-09-29 | E57: 1062.75 | F57: 1069.93 | G57: 1051.87 | H57: 1040.98 | I57: 1022.92 | J57: 1080.82 | K57: 1098.88 | L57: 1109.77 | M57: 1088 | N57: 1059.05 | O57: 9519900 | P57: 6.80%
A58: 48 | B58: Others | C58: COALINDIA | D58: 2022-09-29 | E58: 223.15 | F58: 223.85 | G58: 220.55 | H58: 217.95 | I58: 214.65 | J58: 226.45 | K58: 229.75 | L58: 232.35 | M58: 227.15 | N58: 221.25 | O58: 37997400 | P58: 6.39%
A59: 49 | B59: Technology | C59: COFORGE | D59: 2022-09-29 | E59: 3341.25 | F59: 3377.10 | G59: 3291.15 | H59: 3241.05 | I59: 3155.10 | J59: 3427.20 | K59: 3513.15 | L59: 3563.25 | M59: 3463.05 | N59: 3327 | O59: 866700 | P59: -5.15%
A60: 50 | B60: FMCG | C60: COLPAL | D60: 2022-09-29 | E60: 1578.55 | F60: 1582.67 | G60: 1565.93 | H60: 1553.32 | I60: 1536.58 | J60: 1595.28 | K60: 1612.02 | L60: 1624.63 | M60: 1599.4 | N60: 1570.05 | O60: 2558850 | P60: 0.00%
A61: 51 | B61: Others | C61: CONCOR | D61: 2022-09-29 | E61: 727.05 | F61: 736.15 | G61: 715.30 | H61: 703.55 | I61: 682.70 | J61: 747.90 | K61: 768.75 | L61: 780.50 | M61: 757 | N61: 724.4 | O61: 7697000 | P61: -3.47%
A62: 52 | B62: Others | C62: COROMANDEL | D62: 2022-09-29 | E62: 1006.40 | F62: 1021.38 | G62: 986.77 | H62: 967.13 | I62: 932.52 | J62: 1041.02 | K62: 1075.63 | L62: 1095.27 | M62: 1056 | N62: 1001.75 | O62: 1372000 | P62: 1.50%
A63: 53 | B63: Capital_Goods | C63: CROMPTON | D63: 2022-09-29 | E63: 400.85 | F63: 401.50 | G63: 395.95 | H63: 391.05 | I63: 385.50 | J63: 406.40 | K63: 411.95 | L63: 416.85 | M63: 407.05 | N63: 396.6 | O63: 4309500 | P63: 0.03%
A64: 54 | B64: Banking | C64: CUB | D64: 2022-09-29 | E64: 176.10 | F64: 177.40 | G64: 173.35 | H64: 170.60 | I64: 166.55 | J64: 180.15 | K64: 184.20 | L64: 186.95 | M64: 181.45 | N64: 174.65 | O64: 9120000 | P64: -8.62%
A65: 55 | B65: Capital_Goods | C65: CUMMINSIND | D65: 2022-09-29 | E65: 1217.95 | F65: 1230.90 | G65: 1201.10 | H65: 1184.25 | I65: 1154.45 | J65: 1247.75 | K65: 1277.55 | L65: 1294.40 | M65: 1260.7 | N65: 1214.05 | O65: 3727200 | P65: -1.99%
A66: 56 | B66: FMCG | C66: DABUR | D66: 2022-09-29 | E66: 568.75 | F66: 571.20 | G66: 565.40 | H66: 562.05 | I66: 556.25 | J66: 574.55 | K66: 580.35 | L66: 583.70 | M66: 577 | N66: 567.85 | O66: 9625000 | P66: -0.22%
A67: 57 | B67: Cement | C67: DALBHARAT | D67: 2022-09-29 | E67: 1581.15 | F67: 1610.45 | G67: 1545.80 | H67: 1510.45 | I67: 1445.80 | J67: 1645.80 | K67: 1710.45 | L67: 1745.80 | M67: 1675.1 | N67: 1575.1 | O67: 1543500 | P67: 0.72%
A68: 58 | B68: Chemical | C68: DEEPAKNTR | D68: 2022-09-29 | E68: 2166.30 | F68: 2173.42 | G68: 2137.88 | H68: 2109.47 | I68: 2073.93 | J68: 2201.83 | K68: 2237.37 | L68: 2265.78 | M68: 2208.95 | N68: 2145 | O68: 2031250 | P68: -4.67%
A69: 59 | B69: Others | C69: DELTACORP | D69: 2022-09-29 | E69: 209.55 | F69: 210.18 | G69: 205.37 | H69: 201.18 | I69: 196.37 | J69: 214.37 | K69: 219.18 | L69: 223.37 | M69: 215 | N69: 206 | O69: 17689300 | P69: -2.72%
A70: 60 | B70: Pharma | C70: DIVISLAB | D70: 2022-09-29 | E70: 3645.80 | F70: 3641.28 | G70: 3578.57 | H70: 3511.33 | I70: 3448.62 | J70: 3708.52 | K70: 3771.23 | L70: 3838.47 | M70: 3704 | N70: 3574.05 | O70: 2755800 | P70: -1.46%
A71: 61 | B71: Others | C71: DIXON | D71: 2022-09-29 | E71: 4302.75 | F71: 4363.67 | G71: 4225.78 | H71: 4148.82 | I71: 4010.93 | J71: 4440.63 | K71: 4578.52 | L71: 4655.48 | M71: 4501.55 | N71: 4286.7 | O71: 646125 | P71: -1.56%
A72: 62 | B72: Realty | C72: DLF | D72: 2022-09-29 | E72: 370.45 | F72: 373.65 | G72: 365.40 | H72: 360.35 | I72: 352.10 | J72: 378.70 | K72: 386.95 | L72: 392.00 | M72: 381.9 | N72: 368.6 | O72: 44495550 | P72: 1.10%
A73: 63 | B73: Pharma | C73: DRREDDY | D73: 2022-09-29 | E73: 4151.00 | F73: 4172.27 | G73: 4119.88 | H73: 4088.77 | I73: 4036.38 | J73: 4203.38 | K73: 4255.77 | L73: 4286.88 | M73: 4224.65 | N73: 4141.15 | O73: 1995000 | P73: -0.73%
A74: 64 | B74: Automobile | C74: EICHERMOT | D74: 2022-09-29 | E74: 3665.05 | F74: 3687.25 | G74: 3609.75 | H74: 3554.45 | I74: 3476.95 | J74: 3742.55 | K74: 3820.05 | L74: 3875.35 | M74: 3764.75 | N74: 3631.95 | O74: 3489850 | P74: -1.82%
A75: 65 | B75: Automobile | C75: ESCORTS | D75: 2022-09-29 | E75: 2069.90 | F75: 2106.65 | G75: 2023.40 | H75: 1976.90 | I75: 1893.65 | J75: 2153.15 | K75: 2236.40 | L75: 2282.90 | M75: 2189.9 | N75: 2060.15 | O75: 1684100 | P75: -2.36%
A76: 66 | B76: Automobile | C76: EXIDEIND | D76: 2022-09-29 | E76: 158.40 | F76: 159.47 | G76: 156.53 | H76: 154.67 | I76: 151.73 | J76: 161.33 | K76: 164.27 | L76: 166.13 | M76: 162.4 | N76: 157.6 | O76: 30956400 | P76: 1.42%
A77: 67 | B77: Banking | C77: FEDERALBNK | D77: 2022-09-29 | E77: 116.85 | F77: 118.63 | G77: 114.07 | H77: 111.28 | I77: 106.72 | J77: 121.42 | K77: 125.98 | L77: 128.77 | M77: 123.2 | N77: 115.85 | O77: 98710000 | P77: 0.82%
A78: 68 | B78: Technology | C78: FSL | D78: 2022-09-29 | E78: 104.70 | F78: 105.95 | G78: 103.10 | H78: 101.50 | I78: 98.65 | J78: 107.55 | K78: 110.40 | L78: 112.00 | M78: 108.8 | N78: 104.35 | O78: 19078800 | P78: 1.02%
A79: 69 | B79: Oil_Gas | C79: GAIL | D79: 2022-09-29 | E79: 86.05 | F79: 86.87 | G79: 84.88 | H79: 83.72 | I79: 81.73 | J79: 88.03 | K79: 90.02 | L79: 91.18 | M79: 88.85 | N79: 85.7 | O79: 62869650 | P79: 5.08%
A80: 70 | B80: Pharma | C80: GLENMARK | D80: 2022-09-29 | E80: 383.75 | F80: 385.10 | G80: 380.10 | H80: 376.45 | I80: 371.45 | J80: 388.75 | K80: 393.75 | L80: 397.40 | M80: 390.1 | N80: 381.45 | O80: 7977550 | P80: 1.45%
A81: 71 | B81: Infrastructure | C81: GMRINFRA | D81: 2022-09-29 | E81: 37.10 | F81: 37.28 | G81: 36.52 | H81: 35.93 | I81: 35.17 | J81: 37.87 | K81: 38.63 | L81: 39.22 | M81: 38.05 | N81: 36.7 | O81: 141682500 | P81: 1.27%
A82: 72 | B82: Others | C82: GNFC | D82: 2022-09-29 | E82: 667.05 | F82: 677.07 | G82: 653.93 | H82: 640.82 | I82: 617.68 | J82: 690.18 | K82: 713.32 | L82: 726.43 | M82: 700.2 | N82: 663.95 | O82: 7157800 | P82: 2.78%
A83: 73 | B83: FMCG | C83: GODREJCP | D83: 2022-09-29 | E83: 890.25 | F83: 895.15 | G83: 883.00 | H83: 875.75 | I83: 863.60 | J83: 902.40 | K83: 914.55 | L83: 921.80 | M83: 907.3 | N83: 887.9 | O83: 5561000 | P83: -1.94%
A84: 74 | B84: Realty | C84: GODREJPROP | D84: 2022-09-29 | E84: 1226.45 | F84: 1235.72 | G84: 1213.53 | H84: 1200.62 | I84: 1178.43 | J84: 1248.63 | K84: 1270.82 | L84: 1283.73 | M84: 1257.9 | N84: 1222.8 | O84: 4530825 | P84: 0.29%
A85: 75 | B85: Pharma | C85: GRANULES | D85: 2022-09-29 | E85: 323.35 | F85: 325.70 | G85: 318.65 | H85: 313.95 | I85: 306.90 | J85: 330.40 | K85: 337.45 | L85: 342.15 | M85: 332.75 | N85: 321 | O85: 10558000 | P85: -2.13%
A86: 76 | B86: Cement | C86: GRASIM | D86: 2022-09-29 | E86: 1697.20 | F86: 1708.32 | G86: 1681.48 | H86: 1665.77 | I86: 1638.93 | J86: 1724.03 | K86: 1750.87 | L86: 1766.58 | M86: 1735.15 | N86: 1692.6 | O86: 7644650 | P86: -0.43%
A87: 77 | B87: Oil_Gas | C87: GSPL | D87: 2022-09-29 | E87: 233.85 | F87: 236.42 | G87: 230.03 | H87: 226.22 | I87: 219.83 | J87: 240.23 | K87: 246.62 | L87: 250.43 | M87: 242.8 | N87: 232.6 | O87: 4690000 | P87: -1.26%
A88: 78 | B88: Oil_Gas | C88: GUJGASLTD | D88: 2022-09-29 | E88: 487.20 | F88: 494.18 | G88: 474.52 | H88: 461.83 | I88: 442.17 | J88: 506.87 | K88: 526.53 | L88: 539.22 | M88: 513.85 | N88: 481.5 | O88: 8012500 | P88: 8.70%
A89: 79 | B89: Others | C89: HAL | D89: 2022-09-29 | E89: 2438.35 | F89: 2450.52 | G89: 2393.33 | H89: 2348.32 | I89: 2291.13 | J89: 2495.53 | K89: 2552.72 | L89: 2597.73 | M89: 2507.7 | N89: 2405.5 | O89: 4433175 | P89: -2.06%
A90: 80 | B90: Capital_Goods | C90: HAVELLS | D90: 2022-09-29 | E90: 1309.15 | F90: 1310.08 | G90: 1295.87 | H90: 1282.58 | I90: 1268.37 | J90: 1323.37 | K90: 1337.58 | L90: 1350.87 | M90: 1324.3 | N90: 1296.8 | O90: 4213500 | P90: -3.36%
A91: 81 | B91: Technology | C91: HCLTECH | D91: 2022-09-29 | E91: 895.85 | F91: 901.48 | G91: 887.52 | H91: 879.18 | I91: 865.22 | J91: 909.82 | K91: 923.78 | L91: 932.12 | M91: 915.45 | N91: 893.15 | O91: 21747600 | P91: 2.34%
A92: 82 | B92: Finance | C92: HDFC | D92: 2022-09-29 | E92: 2354.90 | F92: 2366.55 | G92: 2329.50 | H92: 2304.10 | I92: 2267.05 | J92: 2391.95 | K92: 2429.00 | L92: 2454.40 | M92: 2403.6 | N92: 2341.15 | O92: 16331700 | P92: -0.35%
A93: 83 | B93: Finance | C93: HDFCAMC | D93: 2022-09-29 | E93: 1886.05 | F93: 1898.70 | G93: 1869.65 | H93: 1853.25 | I93: 1824.20 | J93: 1915.10 | K93: 1944.15 | L93: 1960.55 | M93: 1927.75 | N93: 1882.3 | O93: 2796300 | P93: 7.58%
A94: 84 | B94: Banking | C94: HDFCBANK | D94: 2022-09-29 | E94: 1449.10 | F94: 1455.48 | G94: 1433.07 | H94: 1417.03 | I94: 1394.62 | J94: 1471.52 | K94: 1493.93 | L94: 1509.97 | M94: 1477.9 | N94: 1439.45 | O94: 58578300 | P94: 2.27%
A95: 85 | B95: Finance | C95: HDFCLIFE | D95: 2022-09-29 | E95: 540.20 | F95: 541.47 | G95: 536.38 | H95: 532.57 | I95: 527.48 | J95: 545.28 | K95: 550.37 | L95: 554.18 | M95: 546.55 | N95: 537.65 | O95: 24081200 | P95: -1.85%
A96: 86 | B96: Automobile | C96: HEROMOTOCO | D96: 2022-09-29 | E96: 2762.45 | F96: 2773.93 | G96: 2730.87 | H96: 2699.28 | I96: 2656.22 | J96: 2805.52 | K96: 2848.58 | L96: 2880.17 | M96: 2817 | N96: 2742.35 | O96: 2653200 | P96: 2.78%
A97: 87 | B97: Metals | C97: HINDALCO | D97: 2022-09-29 | E97: 397.30 | F97: 401.62 | G97: 390.78 | H97: 384.27 | I97: 373.43 | J97: 408.13 | K97: 418.97 | L97: 425.48 | M97: 412.45 | N97: 395.1 | O97: 31079325 | P97: -0.75%
A98: 88 | B98: Metals | C98: HINDCOPPER | D98: 2022-09-29 | E98: 113.45 | F98: 114.30 | G98: 111.55 | H98: 109.65 | I98: 106.90 | J98: 116.20 | K98: 118.95 | L98: 120.85 | M98: 117.05 | N98: 112.4 | O98: 23005000 | P98: 3.28%
A99: 89 | B99: Oil_Gas | C99: HINDPETRO | D99: 2022-09-29 | E99: 227.25 | F99: 228.32 | G99: 224.83 | H99: 222.42 | I99: 218.93 | J99: 230.73 | K99: 234.22 | L99: 236.63 | M99: 231.8 | N99: 225.9 | O99: 20447100 | P99: 1.42%
A100: 90 | B100: FMCG | C100: HINDUNILVR | D100: 2022-09-29 | E100: 2683.50 | F100: 2694.22 | G100: 2664.28 | H100: 2645.07 | I100: 2615.13 | J100: 2713.43 | K100: 2743.37 | L100: 2762.58 | M100: 2724.15 | N100: 2675 | O100: 9159000 | P100: -6.10%
A101: 91 | B101: Others | C101: HONAUT | D101: 2022-09-29 | E101: 40197.75 | F101: 40434.23 | G101: 39853.52 | H101: 39509.28 | I101: 38928.57 | J101: 40778.47 | K101: 41359.18 | L101: 41703.42 | M101: 41014.95 | N101: 40090 | O101: 19560 | P101: -0.38%
A102: 92 | B102: Finance | C102: IBULHSGFIN | D102: 2022-09-29 | E102: 118.00 | F102: 120.50 | G102: 114.75 | H102: 111.50 | I102: 105.75 | J102: 123.75 | K102: 129.50 | L102: 132.75 | M102: 126.25 | N102: 117.25 | O102: 39416000 | P102: -3.40%
A103: 93 | B103: Banking | C103: ICICIBANK | D103: 2022-09-29 | E103: 884.10 | F103: 889.80 | G103: 874.65 | H103: 865.20 | I103: 850.05 | J103: 899.25 | K103: 914.40 | L103: 923.85 | M103: 904.95 | N103: 880.35 | O103: 76049875 | P103: -3.19%
A104: 94 | B104: Finance | C104: ICICIGI | D104: 2022-09-29 | E104: 1180.80 | F104: 1194.27 | G104: 1163.53 | H104: 1146.27 | I104: 1115.53 | J104: 1211.53 | K104: 1242.27 | L104: 1259.53 | M104: 1225 | N104: 1177 | O104: 4588300 | P104: 2.61%
A105: 95 | B105: Finance | C105: ICICIPRULI | D105: 2022-09-29 | E105: 545.95 | F105: 548.03 | G105: 539.37 | H105: 532.78 | I105: 524.12 | J105: 554.62 | K105: 563.28 | L105: 569.87 | M105: 556.7 | N105: 541.45 | O105: 7945500 | P105: 0.68%
A106: 96 | B106: Telecom | C106: IDEA | D106: 2022-09-29 | E106: 8.90 | F106: 8.97 | G106: 8.78 | H106: 8.67 | I106: 8.48 | J106: 9.08 | K106: 9.27 | L106: 9.38 | M106: 9.15 | N106: 8.85 | O106: 841890000 | P106: 15.80%
A107: 97 | B107: Finance | C107: IDFC | D107: 2022-09-29 | E107: 65.80 | F107: 66.40 | G107: 64.65 | H107: 63.50 | I107: 61.75 | J107: 67.55 | K107: 69.30 | L107: 70.45 | M107: 68.15 | N107: 65.25 | O107: 129700000 | P107: 2.38%
A108: 98 | B108: Banking | C108: IDFCFIRSTB | D108: 2022-09-29 | E108: 48.60 | F108: 49.12 | G108: 47.48 | H108: 46.37 | I108: 44.73 | J108: 50.23 | K108: 51.87 | L108: 52.98 | M108: 50.75 | N108: 48 | O108: 181785000 | P108: 2.41%
A109: 99 | B109: Others | C109: IEX | D109: 2022-09-29 | E109: 147.15 | F109: 148.60 | G109: 144.25 | H109: 141.35 | I109: 137.00 | J109: 151.50 | K109: 155.85 | L109: 158.75 | M109: 152.95 | N109: 145.7 | O109: 63333750 | P109: 1.03%
A110: 100 | B110: Oil_Gas | C110: IGL | D110: 2022-09-29 | E110: 409.70 | F110: 414.85 | G110: 402.15 | H110: 394.60 | I110: 381.90 | J110: 422.40 | K110: 435.10 | L110: 442.65 | M110: 427.55 | N110: 407.3 | O110: 13695000 | P110: 3.85%
A111: 101 | B111: Infrastructure | C111: INDHOTEL | D111: 2022-09-29 | E111: 326.45 | F111: 328.88 | G111: 321.47 | H111: 316.48 | I111: 309.07 | J111: 333.87 | K111: 341.28 | L111: 346.27 | M111: 336.3 | N111: 323.9 | O111: 26062560 | P111: -7.55%
A112: 102 | B112: Cement | C112: INDIACEM | D112: 2022-09-29 | E112: 253.95 | F112: 257.73 | G112: 248.47 | H112: 242.98 | I112: 233.72 | J112: 263.22 | K112: 272.48 | L112: 277.97 | M112: 267 | N112: 252.25 | O112: 12188700 | P112: -4.72%
A113: 103 | B113: Others | C113: INDIAMART | D113: 2022-09-29 | E113: 4394.50 | F113: 4400.38 | G113: 4354.82 | H113: 4315.13 | I113: 4269.57 | J113: 4440.07 | K113: 4485.63 | L113: 4525.32 | M113: 4445.95 | N113: 4360.7 | O113: 375600 | P113: 3.09%
A114: 104 | B114: Others | C114: INDIGO | D114: 2022-09-29 | E114: 1843.85 | F114: 1855.82 | G114: 1816.78 | H114: 1789.72 | I114: 1750.68 | J114: 1882.88 | K114: 1921.92 | L114: 1948.98 | M114: 1894.85 | N114: 1828.75 | O114: 4615800 | P114: -0.63%
A115: 105 | B115: Banking | C115: INDUSINDBK | D115: 2022-09-29 | E115: 1185.95 | F115: 1193.82 | G115: 1171.13 | H115: 1156.32 | I115: 1133.63 | J115: 1208.63 | K115: 1231.32 | L115: 1246.13 | M115: 1216.5 | N115: 1179 | O115: 20202300 | P115: -1.41%
A116: 106 | B116: Telecom | C116: INDUSTOWER | D116: 2022-09-29 | E116: 192.90 | F116: 193.85 | G116: 191.45 | H116: 190.00 | I116: 187.60 | J116: 195.30 | K116: 197.70 | L116: 199.15 | M116: 196.25 | N116: 192.4 | O116: 16702000 | P116: 2.40%
A117: 107 | B117: Technology | C117: INFY | D117: 2022-09-29 | E117: 1369.40 | F117: 1377.50 | G117: 1356.30 | H117: 1343.20 | I117: 1322.00 | J117: 1390.60 | K117: 1411.80 | L117: 1424.90 | M117: 1398.7 | N117: 1364.4 | O117: 45841200 | P117: -2.30%
A118: 108 | B118: Technology | C118: INTELLECT | D118: 2022-09-29 | E118: 545.40 | F118: 552.63 | G118: 536.22 | H118: 527.03 | I118: 510.62 | J118: 561.82 | K118: 578.23 | L118: 587.42 | M118: 569.05 | N118: 543.45 | O118: 1914750 | P118: 0.39%
A119: 109 | B119: Oil_Gas | C119: IOC | D119: 2022-09-29 | E119: 67.40 | F119: 67.50 | G119: 67.05 | H119: 66.70 | I119: 66.25 | J119: 67.85 | K119: 68.30 | L119: 68.65 | M119: 67.95 | N119: 67.15 | O119: 131196000 | P119: 2.70%
A120: 110 | B120: Pharma | C120: IPCALAB | D120: 2022-09-29 | E120: 875.60 | F120: 877.37 | G120: 870.73 | H120: 865.87 | I120: 859.23 | J120: 882.23 | K120: 888.87 | L120: 893.73 | M120: 884 | N120: 872.5 | O120: 1612000 | P120: 1.22%
A121: 111 | B121: Others | C121: IRCTC | D121: 2022-09-29 | E121: 679.90 | F121: 687.48 | G121: 669.67 | H121: 659.43 | I121: 641.62 | J121: 697.72 | K121: 715.53 | L121: 725.77 | M121: 705.3 | N121: 677.25 | O121: 15123500 | P121: 5.55%
A122: 112 | B122: FMCG | C122: ITC | D122: 2022-09-29 | E122: 346.35 | F122: 346.33 | G122: 343.52 | H122: 340.68 | I122: 337.87 | J122: 349.17 | K122: 351.98 | L122: 354.82 | M122: 349.15 | N122: 343.5 | O122: 93392000 | P122: 1.12%
A123: 113 | B123: Metals | C123: JINDALSTEL | D123: 2022-09-29 | E123: 426.20 | F123: 427.98 | G123: 418.62 | H123: 411.03 | I123: 401.67 | J123: 435.57 | K123: 444.93 | L123: 452.52 | M123: 437.35 | N123: 420.4 | O123: 28376250 | P123: -2.52%
A124: 114 | B124: Cement | C124: JKCEMENT | D124: 2022-09-29 | E124: 2659.80 | F124: 2685.45 | G124: 2595.75 | H124: 2531.70 | I124: 2442.00 | J124: 2749.50 | K124: 2839.20 | L124: 2903.25 | M124: 2775.15 | N124: 2621.4 | O124: 405750 | P124: -5.09%
A125: 115 | B125: Metals | C125: JSWSTEEL | D125: 2022-09-29 | E125: 669.80 | F125: 674.32 | G125: 661.63 | H125: 653.47 | I125: 640.78 | J125: 682.48 | K125: 695.17 | L125: 703.33 | M125: 687 | N125: 666.15 | O125: 28794150 | P125: 0.49%
A126: 116 | B126: Others | C126: JUBLFOOD | D126: 2022-09-29 | E126: 620.85 | F126: 628.95 | G126: 609.20 | H126: 597.55 | I126: 577.80 | J126: 640.60 | K126: 660.35 | L126: 672.00 | M126: 648.7 | N126: 617.3 | O126: 10642500 | P126: 1.95%
A127: 117 | B127: Banking | C127: KOTAKBANK | D127: 2022-09-29 | E127: 1863.75 | F127: 1867.53 | G127: 1841.77 | H127: 1819.78 | I127: 1794.02 | J127: 1889.52 | K127: 1915.28 | L127: 1937.27 | M127: 1893.3 | N127: 1845.55 | O127: 22980000 | P127: -0.26%
A128: 118 | B128: Finance | C128: L&TFH | D128: 2022-09-29 | E128: 76.00 | F128: 77.02 | G128: 74.63 | H128: 73.27 | I128: 70.88 | J128: 78.38 | K128: 80.77 | L128: 82.13 | M128: 79.4 | N128: 75.65 | O128: 64243876 | P128: 0.06%
A129: 119 | B129: Others | C129: LALPATHLAB | D129: 2022-09-29 | E129: 2497.10 | F129: 2469.10 | G129: 2419.20 | H129: 2341.30 | I129: 2291.40 | J129: 2547.00 | K129: 2596.90 | L129: 2674.80 | M129: 2519 | N129: 2391.2 | O129: 1491000 | P129: -3.20%
A130: 120 | B130: Pharma | C130: LAURUSLABS | D130: 2022-09-29 | E130: 511.85 | F130: 516.90 | G130: 505.30 | H130: 498.75 | I130: 487.15 | J130: 523.45 | K130: 535.05 | L130: 541.60 | M130: 528.5 | N130: 510.35 | O130: 6777900 | P130: 0.56%
A131: 121 | B131: Finance | C131: LICHSGFIN | D131: 2022-09-29 | E131: 401.85 | F131: 408.25 | G131: 392.85 | H131: 383.85 | I131: 368.45 | J131: 417.25 | K131: 432.65 | L131: 441.65 | M131: 423.65 | N131: 399.25 | O131: 15474000 | P131: -1.65%
A132: 122 | B132: Capital_Goods | C132: LT | D132: 2022-09-29 | E132: 1861.80 | F132: 1872.23 | G132: 1845.92 | H132: 1830.03 | I132: 1803.72 | J132: 1888.12 | K132: 1914.43 | L132: 1930.32 | M132: 1898.55 | N132: 1856.35 | O132: 9310200 | P132: -1.87%
A133: 123 | B133: Technology | C133: LTI | D133: 2022-09-29 | E133: 4421.95 | F133: 4454.38 | G133: 4375.72 | H133: 4329.48 | I133: 4250.82 | J133: 4500.62 | K133: 4579.28 | L133: 4625.52 | M133: 4533.05 | N133: 4408.15 | O133: 1270050 | P133: -3.92%
A134: 124 | B134: Technology | C134: LTTS | D134: 2022-09-29 | E134: 3409.90 | F134: 3446.37 | G134: 3352.73 | H134: 3295.57 | I134: 3201.93 | J134: 3503.53 | K134: 3597.17 | L134: 3654.33 | M134: 3540 | N134: 3389.2 | O134: 1149600 | P134: 1.75%
A135: 125 | B135: Pharma | C135: LUPIN | D135: 2022-09-29 | E135: 649.35 | F135: 654.93 | G135: 641.97 | H135: 634.58 | I135: 621.62 | J135: 662.32 | K135: 675.28 | L135: 682.67 | M135: 667.9 | N135: 647.55 | O135: 8373350 | P135: 4.07%
A136: 126 | B136: Automobile | C136: M&M | D136: 2022-09-29 | E136: 1271.20 | F136: 1284.53 | G136: 1246.67 | H136: 1222.13 | I136: 1184.27 | J136: 1309.07 | K136: 1346.93 | L136: 1371.47 | M136: 1322.4 | N136: 1260 | O136: 10507700 | P136: -5.00%
A137: 127 | B137: Finance | C137: M&MFIN | D137: 2022-09-29 | E137: 195.15 | F137: 200.25 | G137: 187.45 | H137: 179.75 | I137: 166.95 | J137: 207.95 | K137: 220.75 | L137: 228.45 | M137: 213.05 | N137: 192.55 | O137: 27028000 | P137: 19.85%
A138: 128 | B138: Finance | C138: MANAPPURAM | D138: 2022-09-29 | E138: 94.95 | F138: 96.05 | G138: 93.45 | H138: 91.95 | I138: 89.35 | J138: 97.55 | K138: 100.15 | L138: 101.65 | M138: 98.65 | N138: 94.55 | O138: 36126000 | P138: 2.94%
A139: 129 | B139: FMCG | C139: MARICO | D139: 2022-09-29 | E139: 542.45 | F139: 545.27 | G139: 538.53 | H139: 534.62 | I139: 527.88 | J139: 549.18 | K139: 555.92 | L139: 559.83 | M139: 552 | N139: 541.35 | O139: 7953600 | P139: 0.24%
A140: 130 | B140: Automobile | C140: MARUTI | D140: 2022-09-29 | E140: 9336.85 | F140: 9358.20 | G140: 9256.40 | H140: 9175.95 | I140: 9074.15 | J140: 9438.65 | K140: 9540.45 | L140: 9620.90 | M140: 9460 | N140: 9277.75 | O140: 3878200 | P140: -3.20%
A141: 131 | B141: FMCG | C141: MCDOWELL-N | D141: 2022-09-29 | E141: 871.10 | F141: 873.25 | G141: 860.70 | H141: 850.30 | I141: 837.75 | J141: 883.65 | K141: 896.20 | L141: 906.60 | M141: 885.8 | N141: 862.85 | O141: 18323125 | P141: -1.18%
A142: 132 | B142: Others | C142: MCX | D142: 2022-09-29 | E142: 1260.55 | F142: 1265.60 | G142: 1240.95 | H142: 1221.35 | I142: 1196.70 | J142: 1285.20 | K142: 1309.85 | L142: 1329.45 | M142: 1290.25 | N142: 1246 | O142: 3214800 | P142: -0.90%
A143: 133 | B143: Pharma | C143: METROPOLIS | D143: 2022-09-29 | E143: 1457.55 | F143: 1458.13 | G143: 1428.12 | H143: 1398.68 | I143: 1368.67 | J143: 1487.57 | K143: 1517.58 | L143: 1547.02 | M143: 1488.15 | N143: 1428.7 | O143: 1009500 | P143: 0.09%
A144: 134 | B144: Finance | C144: MFSL | D144: 2022-09-29 | E144: 780.25 | F144: 789.53 | G144: 763.37 | H144: 746.48 | I144: 720.32 | J144: 806.42 | K144: 832.58 | L144: 849.47 | M144: 815.7 | N144: 772.65 | O144: 2096900 | P144: 8.69%
A145: 135 | B145: Oil_Gas | C145: MGL | D145: 2022-09-29 | E145: 837.75 | F145: 851.33 | G145: 822.77 | H145: 807.78 | I145: 779.22 | J145: 866.32 | K145: 894.88 | L145: 909.87 | M145: 879.9 | N145: 836.35 | O145: 3358400 | P145: -0.24%
A146: 136 | B146: Technology | C146: MINDTREE | D146: 2022-09-29 | E146: 3145.90 | F146: 3175.00 | G146: 3105.90 | H146: 3065.90 | I146: 2996.80 | J146: 3215.00 | K146: 3284.10 | L146: 3324.10 | M146: 3244.1 | N146: 3135 | O146: 2732800 | P146: 0.89%
A147: 137 | B147: Automobile | C147: MOTHERSON | D147: 2022-09-29 | E147: 118.00 | F147: 119.55 | G147: 116.10 | H147: 114.20 | I147: 110.75 | J147: 121.45 | K147: 124.90 | L147: 126.80 | M147: 123 | N147: 117.65 | O147: 48600000 | P147: 3.40%
A148: 138 | B148: Technology | C148: MPHASIS | D148: 2022-09-29 | E148: 2016.75 | F148: 2034.48 | G148: 1993.57 | H148: 1970.38 | I148: 1929.47 | J148: 2057.67 | K148: 2098.58 | L148: 2121.77 | M148: 2075.4 | N148: 2011.3 | O148: 2093525 | P148: 2.63%
A149: 139 | B149: Automobile | C149: MRF | D149: 2022-09-29 | E149: 82549.50 | F149: 83164.83 | G149: 81429.67 | H149: 80309.83 | I149: 78574.67 | J149: 84284.67 | K149: 86019.83 | L149: 87139.67 | M149: 84900 | N149: 82045 | O149: 70350 | P149: 0.40%
A150: 140 | B150: Finance | C150: MUTHOOTFIN | D150: 2022-09-29 | E150: 965.90 | F150: 976.78 | G150: 949.57 | H150: 933.23 | I150: 906.02 | J150: 993.12 | K150: 1020.33 | L150: 1036.67 | M150: 1004 | N150: 960.45 | O150: 8971125 | P150: 6.42%
A151: 141 | B151: Metals | C151: NATIONALUM | D151: 2022-09-29 | E151: 73.00 | F151: 73.65 | G151: 71.85 | H151: 70.70 | I151: 68.90 | J151: 74.80 | K151: 76.60 | L151: 77.75 | M151: 75.45 | N151: 72.5 | O151: 73945750 | P151: 1.71%
A152: 142 | B152: Others | C152: NAUKRI | D152: 2022-09-29 | E152: 3893.65 | F152: 3951.02 | G152: 3824.73 | H152: 3755.82 | I152: 3629.53 | J152: 4019.93 | K152: 4146.22 | L152: 4215.13 | M152: 4077.3 | N152: 3882.1 | O152: 1895125 | P152: 3.87%
A153: 143 | B153: Chemical | C153: NAVINFLUOR | D153: 2022-09-29 | E153: 4643.10 | F153: 4680.52 | G153: 4589.78 | H153: 4536.47 | I153: 4445.73 | J153: 4733.83 | K153: 4824.57 | L153: 4877.88 | M153: 4771.25 | N153: 4627.2 | O153: 636075 | P153: 9.19%
A154: 144 | B154: FMCG | C154: NESTLEIND | D154: 2022-09-29 | E154: 18556.05 | F154: 18583.00 | G154: 18476.00 | H154: 18395.95 | I154: 18288.95 | J154: 18663.05 | K154: 18770.05 | L154: 18850.10 | M154: 18690 | N154: 18502.95 | O154: 292120 | P154: -1.20%
A155: 145 | B155: Metals | C155: NMDC | D155: 2022-09-29 | E155: 128.10 | F155: 129.38 | G155: 125.87 | H155: 123.63 | I155: 120.12 | J155: 131.62 | K155: 135.13 | L155: 137.37 | M155: 132.9 | N155: 127.15 | O155: 64728700 | P155: 4.78%
A156: 146 | B156: Power | C156: NTPC | D156: 2022-09-29 | E156: 163.85 | F156: 165.07 | G156: 161.43 | H156: 159.02 | I156: 155.38 | J156: 167.48 | K156: 171.12 | L156: 173.53 | M156: 168.7 | N156: 162.65 | O156: 66889500 | P156: -5.81%
A157: 147 | B157: Realty | C157: OBEROIRLTY | D157: 2022-09-29 | E157: 972.65 | F157: 981.98 | G157: 956.67 | H157: 940.68 | I157: 915.37 | J157: 997.97 | K157: 1023.28 | L157: 1039.27 | M157: 1007.3 | N157: 966 | O157: 5731600 | P157: 2.32%
A158: 148 | B158: Technology | C158: OFSS | D158: 2022-09-29 | E158: 2989.75 | F158: 3007.40 | G158: 2965.80 | H158: 2941.85 | I158: 2900.25 | J158: 3031.35 | K158: 3072.95 | L158: 3096.90 | M158: 3049 | N158: 2983.45 | O158: 608000 | P158: 0.50%
A159: 149 | B159: Oil_Gas | C159: ONGC | D159: 2022-09-29 | E159: 128.50 | F159: 128.35 | G159: 127.55 | H159: 126.60 | I159: 125.80 | J159: 129.30 | K159: 130.10 | L159: 131.05 | M159: 129.15 | N159: 127.4 | O159: 46858350 | P159: 3.14%
A160: 150 | B160: Textile | C160: PAGEIND | D160: 2022-09-29 | E160: 53056.10 | F160: 53050.58 | G160: 52453.52 | H160: 51850.93 | I160: 51253.87 | J160: 53653.17 | K160: 54250.23 | L160: 54852.82 | M160: 53647.65 | N160: 52448 | O160: 104115 | P160: -1.76%
A161: 151 | B161: Pharma | C161: PEL | D161: 2022-09-29 | E161: 954.95 | F161: 961.23 | G161: 942.82 | H161: 930.68 | I161: 912.27 | J161: 973.37 | K161: 991.78 | L161: 1003.92 | M161: 979.65 | N161: 949.1 | O161: 6591750 | P161: -4.07%
A162: 152 | B162: Technology | C162: PERSISTENT | D162: 2022-09-29 | E162: 3154.85 | F162: 3190.07 | G162: 3106.83 | H162: 3058.82 | I162: 2975.58 | J162: 3238.08 | K162: 3321.32 | L162: 3369.33 | M162: 3273.3 | N162: 3142.05 | O162: 764550 | P162: -0.82%
A163: 153 | B163: Oil_Gas | C163: PETRONET | D163: 2022-09-29 | E163: 205.30 | F163: 206.15 | G163: 203.80 | H163: 202.30 | I163: 199.95 | J163: 207.65 | K163: 210.00 | L163: 211.50 | M163: 208.5 | N163: 204.65 | O163: 15207000 | P163: -1.53%
A164: 154 | B164: Finance | C164: PFC | D164: 2022-09-29 | E164: 110.05 | F164: 110.85 | G164: 108.75 | H164: 107.45 | I164: 105.35 | J164: 112.15 | K164: 114.25 | L164: 115.55 | M164: 112.95 | N164: 109.55 | O164: 60946000 | P164: 3.74%
A165: 155 | B165: FMCG | C165: PIDILITIND | D165: 2022-09-29 | E165: 2802.85 | F165: 2800.03 | G165: 2778.87 | H165: 2754.88 | I165: 2733.72 | J165: 2824.02 | K165: 2845.18 | L165: 2869.17 | M165: 2821.2 | N165: 2776.05 | O165: 2447750 | P165: -2.33%
A166: 156 | B166: Chemical | C166: PIIND | D166: 2022-09-29 | E166: 3063.20 | F166: 3090.03 | G166: 2987.12 | H166: 2911.03 | I166: 2808.12 | J166: 3166.12 | K166: 3269.03 | L166: 3345.12 | M166: 3192.95 | N166: 3013.95 | O166: 1816000 | P166: 0.73%
A167: 157 | B167: Banking | C167: PNB | D167: 2022-09-29 | E167: 38.00 | F167: 38.37 | G167: 36.18 | H167: 34.37 | I167: 32.18 | J167: 40.18 | K167: 42.37 | L167: 44.18 | M167: 40.55 | N167: 36.55 | O167: 271888000 | P167: -10.07%
A168: 158 | B168: Others | C168: POLYCAB | D168: 2022-09-29 | E168: 2562.10 | F168: 2576.55 | G168: 2527.50 | H168: 2492.90 | I168: 2443.85 | J168: 2611.15 | K168: 2660.20 | L168: 2694.80 | M168: 2625.6 | N168: 2541.95 | O168: 928800 | P168: 6.10%
A169: 159 | B169: Power | C169: POWERGRID | D169: 2022-09-29 | E169: 203.10 | F169: 207.30 | G169: 194.50 | H169: 185.90 | I169: 173.10 | J169: 215.90 | K169: 228.70 | L169: 237.30 | M169: 220.1 | N169: 198.7 | O169: 48427200 | P169: 25.66%
A170: 160 | B170: Media | C170: PVR | D170: 2022-09-29 | E170: 1742.20 | F170: 1747.03 | G170: 1714.07 | H170: 1685.93 | I170: 1652.97 | J170: 1775.17 | K170: 1808.13 | L170: 1836.27 | M170: 1780 | N170: 1718.9 | O170: 4446475 | P170: 0.08%
A171: 161 | B171: Others | C171: RAIN | D171: 2022-09-29 | E171: 170.15 | F171: 172.98 | G171: 166.37 | H171: 162.58 | I171: 155.97 | J171: 176.77 | K171: 183.38 | L171: 187.17 | M171: 179.6 | N171: 169.2 | O171: 13338500 | P171: 1.68%
A172: 162 | B172: Cement | C172: RAMCOCEM | D172: 2022-09-29 | E172: 732.35 | F172: 738.22 | G172: 722.13 | H172: 711.92 | I172: 695.83 | J172: 748.43 | K172: 764.52 | L172: 774.73 | M172: 754.3 | N172: 728 | O172: 4129300 | P172: -0.57%
A173: 163 | B173: Banking | C173: RBLBANK | D173: 2022-09-29 | E173: 122.95 | F173: 124.45 | G173: 120.40 | H173: 117.85 | I173: 113.80 | J173: 127.00 | K173: 131.05 | L173: 133.60 | M173: 128.5 | N173: 121.9 | O173: 54240000 | P173: -3.87%
A174: 164 | B174: Power | C174: RECLTD | D174: 2022-09-29 | E174: 101.20 | F174: 102.12 | G174: 99.98 | H174: 98.77 | I174: 96.63 | J174: 103.33 | K174: 105.47 | L174: 106.68 | M174: 104.25 | N174: 100.9 | O174: 37160000 | P174: 3.34%
A175: 165 | B175: Oil_Gas | C175: RELIANCE | D175: 2022-09-29 | E175: 2443.30 | F175: 2460.63 | G175: 2422.92 | H175: 2402.53 | I175: 2364.82 | J175: 2481.02 | K175: 2518.73 | L175: 2539.12 | M175: 2498.35 | N175: 2440.25 | O175: 37044000 | P175: 0.82%
A176: 166 | B176: Metals | C176: SAIL | D176: 2022-09-29 | E176: 78.05 | F176: 79.00 | G176: 76.65 | H176: 75.25 | I176: 72.90 | J176: 80.40 | K176: 82.75 | L176: 84.15 | M176: 81.35 | N176: 77.6 | O176: 99714000 | P176: -0.81%
A177: 167 | B177: Banking | C177: SBICARD | D177: 2022-09-29 | E177: 914.70 | F177: 925.23 | G177: 900.42 | H177: 886.13 | I177: 861.32 | J177: 939.52 | K177: 964.33 | L177: 978.62 | M177: 950.05 | N177: 910.95 | O177: 4476000 | P177: -2.66%
A178: 168 | B178: Finance | C178: SBILIFE | D178: 2022-09-29 | E178: 1274.45 | F178: 1278.63 | G178: 1264.77 | H178: 1255.08 | I178: 1241.22 | J178: 1288.32 | K178: 1302.18 | L178: 1311.87 | M178: 1292.5 | N178: 1268.95 | O178: 5578500 | P178: 1.42%
A179: 169 | B179: Banking | C179: SBIN | D179: 2022-09-29 | E179: 551.35 | F179: 555.87 | G179: 545.48 | H179: 539.62 | I179: 529.23 | J179: 561.73 | K179: 572.12 | L179: 577.98 | M179: 566.25 | N179: 550 | O179: 52114500 | P179: -1.68%
A180: 170 | B180: Cement | C180: SHREECEM | D180: 2022-09-29 | E180: 21207.30 | F180: 21443.22 | G180: 20914.43 | H180: 20621.57 | I180: 20092.78 | J180: 21736.08 | K180: 22264.87 | L180: 22557.73 | M180: 21972 | N180: 21150.35 | O180: 529050 | P180: 2.91%
A181: 171 | B181: Capital_Goods | C181: SIEMENS | D181: 2022-09-29 | E181: 2858.50 | F181: 2887.12 | G181: 2822.23 | H181: 2785.97 | I181: 2721.08 | J181: 2923.38 | K181: 2988.27 | L181: 3024.53 | M181: 2952 | N181: 2850.85 | O181: 1631300 | P181: 1.66%
A182: 172 | B182: Textile | C182: SRF | D182: 2022-09-29 | E182: 2574.00 | F182: 2592.52 | G182: 2547.03 | H182: 2520.07 | I182: 2474.58 | J182: 2619.48 | K182: 2664.97 | L182: 2691.93 | M182: 2638 | N182: 2565.55 | O182: 3800250 | P182: 0.43%
A183: 173 | B183: Finance | C183: SRTRANSFIN | D183: 2022-09-29 | E183: 1202.95 | F183: 1219.78 | G183: 1180.27 | H183: 1157.58 | I183: 1118.07 | J183: 1242.47 | K183: 1281.98 | L183: 1304.67 | M183: 1259.3 | N183: 1197.1 | O183: 4870800 | P183: 6.55%
A184: 174 | B184: Pharma | C184: SUNPHARMA | D184: 2022-09-29 | E184: 920.40 | F184: 917.63 | G184: 909.07 | H184: 897.73 | I184: 889.17 | J184: 928.97 | K184: 937.53 | L184: 948.87 | M184: 926.2 | N184: 906.3 | O184: 22974700 | P184: -0.62%
A185: 175 | B185: Media | C185: SUNTV | D185: 2022-09-29 | E185: 507.75 | F185: 511.83 | G185: 500.92 | H185: 494.08 | I185: 483.17 | J185: 518.67 | K185: 529.58 | L185: 536.42 | M185: 522.75 | N185: 505 | O185: 11496000 | P185: -0.85%
A186: 176 | B186: Pharma | C186: SYNGENE | D186: 2022-09-29 | E186: 556.45 | F186: 559.42 | G186: 550.98 | H186: 545.52 | I186: 537.08 | J186: 564.88 | K186: 573.32 | L186: 578.78 | M186: 567.85 | N186: 553.95 | O186: 4062000 | P186: -1.50%
A187: 177 | B187: Chemical | C187: TATACHEM | D187: 2022-09-29 | E187: 1133.30 | F187: 1141.38 | G187: 1119.72 | H187: 1106.13 | I187: 1084.47 | J187: 1154.97 | K187: 1176.63 | L187: 1190.22 | M187: 1163.05 | N187: 1127.8 | O187: 8512000 | P187: 1.94%
A188: 178 | B188: Telecom | C188: TATACOMM | D188: 2022-09-29 | E188: 1166.30 | F188: 1183.08 | G188: 1143.17 | H188: 1120.03 | I188: 1080.12 | J188: 1206.22 | K188: 1246.13 | L188: 1269.27 | M188: 1223 | N188: 1159.95 | O188: 3030000 | P188: -1.29%
A189: 179 | B189: FMCG | C189: TATACONSUM | D189: 2022-09-29 | E189: 782.80 | F189: 789.72 | G189: 772.53 | H189: 762.27 | I189: 745.08 | J189: 799.98 | K189: 817.17 | L189: 827.43 | M189: 806.9 | N189: 779.45 | O189: 8533800 | P189: 3.09%
A190: 180 | B190: Automobile | C190: TATAMOTORS | D190: 2022-09-29 | E190: 422.25 | F190: 424.87 | G190: 417.03 | H190: 411.82 | I190: 403.98 | J190: 430.08 | K190: 437.92 | L190: 443.13 | M190: 432.7 | N190: 419.65 | O190: 75751575 | P190: 1.86%
A191: 181 | B191: Power | C191: TATAPOWER | D191: 2022-09-29 | E191: 224.35 | F191: 226.88 | G191: 220.77 | H191: 217.18 | I191: 211.07 | J191: 230.47 | K191: 236.58 | L191: 240.17 | M191: 233 | N191: 223.3 | O191: 112866750 | P191: 3.25%
A192: 182 | B192: Metals | C192: TATASTEEL | D192: 2022-09-29 | E192: 104.30 | F192: 105.25 | G192: 102.55 | H192: 100.80 | I192: 98.10 | J192: 107.00 | K192: 109.70 | L192: 111.45 | M192: 107.95 | N192: 103.5 | O192: 255450500 | P192: 0.34%
A193: 183 | B193: Technology | C193: TCS | D193: 2022-09-29 | E193: 2986.15 | F193: 2999.62 | G193: 2967.73 | H193: 2949.32 | I193: 2917.43 | J193: 3018.03 | K193: 3049.92 | L193: 3068.33 | M193: 3031.5 | N193: 2981.2 | O193: 13172250 | P193: 0.94%
A194: 184 | B194: Technology | C194: TECHM | D194: 2022-09-29 | E194: 1034.10 | F194: 1036.45 | G194: 1020.60 | H194: 1007.10 | I194: 991.25 | J194: 1049.95 | K194: 1065.80 | L194: 1079.30 | M194: 1052.3 | N194: 1022.95 | O194: 16476600 | P194: -0.27%
A195: 185 | B195: FMCG | C195: TITAN | D195: 2022-09-29 | E195: 2673.20 | F195: 2698.45 | G195: 2639.90 | H195: 2606.60 | I195: 2548.05 | J195: 2731.75 | K195: 2790.30 | L195: 2823.60 | M195: 2757 | N195: 2665.15 | O195: 4581375 | P195: 1.23%
A196: 186 | B196: Pharma | C196: TORNTPHARM | D196: 2022-09-29 | E196: 1518.90 | F196: 1525.12 | G196: 1508.53 | H196: 1498.17 | I196: 1481.58 | J196: 1535.48 | K196: 1552.07 | L196: 1562.43 | M196: 1541.7 | N196: 1514.75 | O196: 1585500 | P196: 0.38%
A197: 187 | B197: Power | C197: TORNTPOWER | D197: 2022-09-29 | E197: 522.25 | F197: 526.12 | G197: 517.13 | H197: 512.02 | I197: 503.03 | J197: 531.23 | K197: 540.22 | L197: 545.33 | M197: 535.1 | N197: 521 | O197: 4101000 | P197: 0.18%
A198: 188 | B198: Others | C198: TRENT | D198: 2022-09-29 | E198: 1431.30 | F198: 1445.62 | G198: 1402.73 | H198: 1374.17 | I198: 1331.28 | J198: 1474.18 | K198: 1517.07 | L198: 1545.63 | M198: 1488.5 | N198: 1417.05 | O198: 4367400 | P198: -1.65%
A199: 189 | B199: Automobile | C199: TVSMOTOR | D199: 2022-09-29 | E199: 1040.55 | F199: 1047.20 | G199: 1021.60 | H199: 1002.65 | I199: 977.05 | J199: 1066.15 | K199: 1091.75 | L199: 1110.70 | M199: 1072.8 | N199: 1028.25 | O199: 7716800 | P199: 1.62%
A200: 190 | B200: FMCG | C200: UBL | D200: 2022-09-29 | E200: 1645.70 | F200: 1637.50 | G200: 1625.90 | H200: 1606.10 | I200: 1594.50 | J200: 1657.30 | K200: 1668.90 | L200: 1688.70 | M200: 1649.1 | N200: 1617.7 | O200: 1160800 | P200: -2.39%
A201: 191 | B201: Cement | C201: ULTRACEMCO | D201: 2022-09-29 | E201: 6153.55 | F201: 6193.28 | G201: 6096.57 | H201: 6039.58 | I201: 5942.87 | J201: 6250.27 | K201: 6346.98 | L201: 6403.97 | M201: 6290 | N201: 6136.3 | O201: 2453000 | P201: 1.31%
A202: 192 | B202: Chemical | C202: UPL | D202: 2022-09-29 | E202: 702.50 | F202: 710.17 | G202: 693.18 | H202: 683.87 | I202: 666.88 | J202: 719.48 | K202: 736.47 | L202: 745.78 | M202: 727.15 | N202: 700.85 | O202: 25585300 | P202: 1.06%
A203: 193 | B203: Metals | C203: VEDL | D203: 2022-09-29 | E203: 279.40 | F203: 281.60 | G203: 275.90 | H203: 272.40 | I203: 266.70 | J203: 285.10 | K203: 290.80 | L203: 294.30 | M203: 287.3 | N203: 278.1 | O203: 32872400 | P203: 3.30%
A204: 194 | B204: Capital_Goods | C204: VOLTAS | D204: 2022-09-29 | E204: 900.05 | F204: 899.55 | G204: 889.50 | H204: 878.95 | I204: 868.90 | J204: 910.10 | K204: 920.15 | L204: 930.70 | M204: 909.6 | N204: 889 | O204: 6079000 | P204: 0.29%
A205: 195 | B205: Capital_Goods | C205: WHIRLPOOL | D205: 2022-09-29 | E205: 1658.95 | F205: 1665.83 | G205: 1646.67 | H205: 1634.38 | I205: 1615.22 | J205: 1678.12 | K205: 1697.28 | L205: 1709.57 | M205: 1685 | N205: 1653.55 | O205: 802550 | P205: 4.51%
A206: 196 | B206: Technology | C206: WIPRO | D206: 2022-09-29 | E206: 394.35 | F206: 396.07 | G206: 391.58 | H206: 388.82 | I206: 384.33 | J206: 398.83 | K206: 403.32 | L206: 406.08 | M206: 400.55 | N206: 393.3 | O206: 42654000 | P206: 2.07%
... 17 more rows

Sheet Cash Intra
M5: Back to Main Page
A6: FOR INTRA DAY TRADING | K6: =Main!B10 -> 2022-09-26
A8: Sr.no | C8: CLOSE RATE | D8: Pivot Point | E8: Supports | H8: Resistances
E9: S1 | F9: S2 | G9: S3 | H9: R1 | I9: R2 | J9: R3 | K9: HIGH | L9: LOW | M9: Total Trade Quanity in Lakhs
A10: 1 | B10: Nifty 50 | C10: 17327.35 | D10: 17420.38 | E10: 17198.62 | F10: 17069.88 | G10: 16848.12 | H10: 17549.12 | I10: 17770.88 | J10: 17899.62 | K10: 17642.15 | L10: 17291.65
A11: 2 | B11: Nifty Bank | C11: 39546.25 | D11: 39829.12 | E11: 39129.83 | F11: 38713.42 | G11: 38014.13 | H11: 40245.53 | I11: 40944.82 | J11: 41361.23 | K11: 40528.40 | L11: 39412.70
A12: 3 | B12: Nifty CPSE | C12: 2619.35 | D12: 2638.47 | E12: 2577.28 | F12: 2535.22 | G12: 2474.03 | H12: 2680.53 | I12: 2741.72 | J12: 2783.78 | K12: 2699.65 | L12: 2596.40
A13: 4 | B13: Nifty Infra | C13: 5004.90 | D13: 5046.18 | E13: 4956.67 | F13: 4908.43 | G13: 4818.92 | H13: 5094.42 | I13: 5183.93 | J13: 5232.17 | K13: 5135.70 | L13: 4997.95
A14: 5 | B14: Nifty IT | C14: 26592.35 | D14: 26738.93 | E14: 26414.37 | F14: 26236.38 | G14: 25911.82 | H14: 26916.92 | I14: 27241.48 | J14: 27419.47 | K14: 27063.50 | L14: 26560.95
A15: 6 | B15: Nifty PSE | C15: 4060.55 | D15: 4090.85 | E15: 4001.70 | F15: 3942.85 | G15: 3853.70 | H15: 4149.70 | I15: 4238.85 | J15: 4297.70 | K15: 4180.00 | L15: 4032.00
A16: 7 | B16: Nifty Midcap 50 | C16: 8428.75 | D16: 8508.75 | E16: 8332.45 | F16: 8236.15 | G16: 8059.85 | H16: 8605.05 | I16: 8781.35 | J16: 8877.65 | K16: 8685.05 | L16: 8412.45
A17: 8 | B17: ABB | C17: 3124.65 | D17: 3135.83 | E17: 3099.27 | F17: 3073.88 | G17: 3037.32 | H17: 3161.22 | I17: 3197.78 | J17: 3223.17 | K17: 3172.4 | L17: 3110.45 | M17: 1.62047
A18: 9 | B18: ACC | C18: 2488.9 | D18: 2515.53 | E18: 2445.57 | F18: 2402.23 | G18: 2332.27 | H18: 2558.87 | I18: 2628.83 | J18: 2672.17 | K18: 2585.5 | L18: 2472.2 | M18: 13.96618
A19: 10 | B19: AUBANK | C19: 637.85 | D19: 647.68 | E19: 625.77 | F19: 613.68 | G19: 591.77 | H19: 659.77 | I19: 681.68 | J19: 693.77 | K19: 669.6 | L19: 635.6 | M19: 12.11636
A20: 11 | B20: ABBOTINDIA | C20: 17853.75 | D20: 17937.45 | E20: 17716.30 | F20: 17578.85 | G20: 17357.70 | H20: 18074.90 | I20: 18296.05 | J20: 18433.50 | K20: 18158.6 | L20: 17800 | M20: 0.24724
A21: 12 | B21: ADANIENT | C21: 3674.3 | D21: 3689.07 | E21: 3640.23 | F21: 3606.17 | G21: 3557.33 | H21: 3723.13 | I21: 3771.97 | J21: 3806.03 | K21: 3737.9 | L21: 3655 | M21: 30.01474
A22: 13 | B22: ADANIGREEN | C22: 2323.85 | D22: 2335.62 | E22: 2293.23 | F22: 2262.62 | G22: 2220.23 | H22: 2366.23 | I22: 2408.62 | J22: 2439.23 | K22: 2378 | L22: 2305 | M22: 15.62228
A23: 14 | B23: ADANIPORTS | C23: 913.8 | D23: 924.93 | E23: 899.02 | F23: 884.23 | G23: 858.32 | H23: 939.72 | I23: 965.63 | J23: 980.42 | K23: 950.85 | L23: 910.15 | M23: 66.46619
A24: 15 | B24: ATGL | C24: 3545.25 | D24: 3578.25 | E24: 3493.20 | F24: 3441.15 | G24: 3356.10 | H24: 3630.30 | I24: 3715.35 | J24: 3767.40 | K24: 3663.3 | L24: 3526.2 | M24: 1.43552
A25: 16 | B25: ADANITRANS | C25: 3872.55 | D25: 3915.48 | E25: 3797.07 | F25: 3721.58 | G25: 3603.17 | H25: 3990.97 | I25: 4109.38 | J25: 4184.87 | K25: 4033.9 | L25: 3840 | M25: 3.6721
A26: 17 | B26: ABCAPITAL | C26: 111.85 | D26: 112.80 | E26: 109.55 | F26: 107.25 | G26: 104.00 | H26: 115.10 | I26: 118.35 | J26: 120.65 | K26: 116.05 | L26: 110.5 | M26: 48.92735
A27: 18 | B27: ABFRL | C27: 335.15 | D27: 338.83 | E27: 329.92 | F27: 324.68 | G27: 315.77 | H27: 344.07 | I27: 352.98 | J27: 358.22 | K27: 347.75 | L27: 333.6 | M27: 17.42818
A28: 19 | B28: APLLTD | C28: 609.35 | D28: 609.77 | E28: 599.53 | F28: 589.72 | G28: 579.48 | H28: 619.58 | I28: 629.82 | J28: 639.63 | K28: 620 | L28: 599.95 | M28: 2.08447
A29: 20 | B29: ALKEM | C29: 3257.85 | D29: 3268.95 | E29: 3228.95 | F29: 3200.05 | G29: 3160.05 | H29: 3297.85 | I29: 3337.85 | J29: 3366.75 | K29: 3308.95 | L29: 3240.05 | M29: 0.21102
A30: 21 | B30: AMBUJACEM | C30: 539.35 | D30: 543.12 | E30: 531.23 | F30: 523.12 | G30: 511.23 | H30: 551.23 | I30: 563.12 | J30: 571.23 | K30: 555 | L30: 535 | M30: 170.14661
A31: 22 | B31: APOLLOHOSP | C31: 4418.45 | D31: 4506.77 | E31: 4294.53 | F31: 4170.62 | G31: 3958.38 | H31: 4630.68 | I31: 4842.92 | J31: 4966.83 | K31: 4719 | L31: 4382.85 | M31: 12.05497
A32: 23 | B32: APOLLOTYRE | C32: 285.25 | D32: 285.58 | E32: 281.27 | F32: 277.28 | G32: 272.97 | H32: 289.57 | I32: 293.88 | J32: 297.87 | K32: 289.9 | L32: 281.6 | M32: 32.64445
A33: 24 | B33: ASHOKLEY | C33: 159.3 | D33: 160.93 | E33: 156.62 | F33: 153.93 | G33: 149.62 | H33: 163.62 | I33: 167.93 | J33: 170.62 | K33: 165.25 | L33: 158.25 | M33: 103.64018
A34: 25 | B34: ASIANPAINT | C34: 3395.25 | D34: 3405.30 | E34: 3372.65 | F34: 3350.05 | G34: 3317.40 | H34: 3427.90 | I34: 3460.55 | J34: 3483.15 | K34: 3437.95 | L34: 3382.7 | M34: 5.1337
A35: 26 | B35: ASTRAL | C35: 2315.95 | D35: 2316.73 | E35: 2279.47 | F35: 2242.98 | G35: 2205.72 | H35: 2353.22 | I35: 2390.48 | J35: 2426.97 | K35: 2354 | L35: 2280.25 | M35: 3.70285
A36: 27 | B36: AUROPHARMA | C36: 517.05 | D36: 520.52 | E36: 511.53 | F36: 506.02 | G36: 497.03 | H36: 526.03 | I36: 535.02 | J36: 540.53 | K36: 529.5 | L36: 515 | M36: 14.46716
A37: 28 | B37: DMART | C37: 4367 | D37: 4395.97 | E37: 4322.03 | F37: 4277.07 | G37: 4203.13 | H37: 4440.93 | I37: 4514.87 | J37: 4559.83 | K37: 4469.9 | L37: 4351 | M37: 2.41647
A38: 29 | B38: AXISBANK | C38: 768.6 | D38: 773.95 | E38: 758.90 | F38: 749.20 | G38: 734.15 | H38: 783.65 | I38: 798.70 | J38: 808.40 | K38: 789 | L38: 764.25 | M38: 102.78805
A39: 30 | B39: BAJAJ-AUTO | C39: 3698.9 | D39: 3717.30 | E39: 3664.60 | F39: 3630.30 | G39: 3577.60 | H39: 3751.60 | I39: 3804.30 | J39: 3838.60 | K39: 3770 | L39: 3683 | M39: 1.58122
A40: 31 | B40: BAJFINANCE | C40: 7507.15 | D40: 7571.22 | E40: 7410.93 | F40: 7314.72 | G40: 7154.43 | H40: 7667.43 | I40: 7827.72 | J40: 7923.93 | K40: 7731.5 | L40: 7475 | M40: 14.12331
A41: 32 | B41: BAJAJFINSV | C41: 1721.9 | D41: 1738.17 | E41: 1698.13 | F41: 1674.37 | G41: 1634.33 | H41: 1761.93 | I41: 1801.97 | J41: 1825.73 | K41: 1778.2 | L41: 1714.4 | M41: 27.59913
A42: 33 | B42: BAJAJHLDNG | C42: 6848.5 | D42: 6876.18 | E42: 6782.37 | F42: 6716.23 | G42: 6622.42 | H42: 6942.32 | I42: 7036.13 | J42: 7102.27 | K42: 6970 | L42: 6810.05 | M42: 0.78763
A43: 34 | B43: BALKRISIND | C43: 1890.05 | D43: 1902.35 | E43: 1872.70 | F43: 1855.35 | G43: 1825.70 | H43: 1919.70 | I43: 1949.35 | J43: 1966.70 | K43: 1932 | L43: 1885 | M43: 2.33915
A44: 35 | B44: BANDHANBNK | C44: 278.15 | D44: 280.10 | E44: 273.05 | F44: 267.95 | G44: 260.90 | H44: 285.20 | I44: 292.25 | J44: 297.35 | K44: 287.15 | L44: 275 | M44: 65.26403
A45: 36 | B45: BANKBARODA | C45: 132.5 | D45: 134.40 | E45: 129.80 | F45: 127.10 | G45: 122.50 | H45: 137.10 | I45: 141.70 | J45: 144.40 | K45: 139 | L45: 131.7 | M45: 418.20198
A46: 37 | B46: BANKINDIA | C46: 49.95 | D46: 50.30 | E46: 49.15 | F46: 48.35 | G46: 47.20 | H46: 51.10 | I46: 52.25 | J46: 53.05 | K46: 51.45 | L46: 49.5 | M46: 30.19475
A47: 38 | B47: BATAINDIA | C47: 1854.35 | D47: 1874.48 | E47: 1827.02 | F47: 1799.68 | G47: 1752.22 | H47: 1901.82 | I47: 1949.28 | J47: 1976.62 | K47: 1921.95 | L47: 1847.15 | M47: 2.4659
A48: 39 | B48: BERGEPAINT | C48: 633.7 | D48: 634.90 | E48: 628.90 | F48: 624.10 | G48: 618.10 | H48: 639.70 | I48: 645.70 | J48: 650.50 | K48: 640.9 | L48: 630.1 | M48: 5.35879
A49: 40 | B49: BEL | C49: 106.65 | D49: 107.92 | E49: 104.83 | F49: 103.02 | G49: 99.93 | H49: 109.73 | I49: 112.82 | J49: 114.63 | K49: 111 | L49: 106.1 | M49: 152.15768
A50: 41 | B50: BHARATFORG | C50: 747.1 | D50: 758.62 | E50: 733.33 | F50: 719.57 | G50: 694.28 | H50: 772.38 | I50: 797.67 | J50: 811.43 | K50: 783.9 | L50: 744.85 | M50: 12.05048
A51: 42 | B51: BHEL | C51: 58 | D51: 58.60 | E51: 57.05 | F51: 56.10 | G51: 54.55 | H51: 59.55 | I51: 61.10 | J51: 62.05 | K51: 60.15 | L51: 57.65 | M51: 206.65995
A52: 43 | B52: BPCL | C52: 311.95 | D52: 313.25 | E52: 309.70 | F52: 307.45 | G52: 303.90 | H52: 315.50 | I52: 319.05 | J52: 321.30 | K52: 316.8 | L52: 311 | M52: 27.5838
A53: 44 | B53: BHARTIARTL | C53: 771.35 | D53: 776.02 | E53: 764.03 | F53: 756.72 | G53: 744.73 | H53: 783.33 | I53: 795.32 | J53: 802.63 | K53: 788 | L53: 768.7 | M53: 92.71829
A54: 45 | B54: BIOCON | C54: 283.8 | D54: 286.47 | E54: 280.28 | F54: 276.77 | G54: 270.58 | H54: 289.98 | I54: 296.17 | J54: 299.68 | K54: 292.65 | L54: 282.95 | M54: 17.47197
A55: 46 | B55: BOSCHLTD | C55: 16223.35 | D55: 16402.83 | E55: 15970.67 | F55: 15717.98 | G55: 15285.82 | H55: 16655.52 | I55: 17087.68 | J55: 17340.37 | K55: 16835 | L55: 16150.15 | M55: 0.36144
A56: 47 | B56: BRITANNIA | C56: 3796.7 | D56: 3807.28 | E56: 3771.77 | F56: 3746.83 | G56: 3711.32 | H56: 3832.22 | I56: 3867.73 | J56: 3892.67 | K56: 3842.8 | L56: 3782.35 | M56: 3.26581
A57: 48 | B57: CANBK | C57: 229.1 | D57: 233.63 | E57: 223.67 | F57: 218.23 | G57: 208.27 | H57: 239.07 | I57: 249.03 | J57: 254.47 | K57: 243.6 | L57: 228.2 | M57: 117.26325
A58: 49 | B58: CHOLAFIN | C58: 738.5 | D58: 751.00 | E58: 720.05 | F58: 701.60 | G58: 670.65 | H58: 769.45 | I58: 800.40 | J58: 818.85 | K58: 781.95 | L58: 732.55 | M58: 30.54292
A59: 50 | B59: CIPLA | C59: 1068.1 | D59: 1074.78 | E59: 1056.57 | F59: 1045.03 | G59: 1026.82 | H59: 1086.32 | I59: 1104.53 | J59: 1116.07 | K59: 1093 | L59: 1063.25 | M59: 32.68298
A60: 51 | B60: CLEAN | C60: 1851.7 | D60: 1862.12 | E60: 1839.58 | F60: 1827.47 | G60: 1804.93 | H60: 1874.23 | I60: 1896.77 | J60: 1908.88 | K60: 1884.65 | L60: 1850 | M60: 0.65743
A61: 52 | B61: COALINDIA | C61: 222.85 | D61: 223.60 | E61: 220.25 | F61: 217.65 | G61: 214.30 | H61: 226.20 | I61: 229.55 | J61: 232.15 | K61: 226.95 | L61: 221 | M61: 54.95315
A62: 53 | B62: COFORGE | C62: 3336.55 | D62: 3371.47 | E62: 3287.93 | F62: 3239.32 | G62: 3155.78 | H62: 3420.08 | I62: 3503.62 | J62: 3552.23 | K62: 3455 | L62: 3322.85 | M62: 2.47536
A63: 54 | B63: COLPAL | C63: 1578.1 | D63: 1580.47 | E63: 1561.93 | F63: 1545.77 | G63: 1527.23 | H63: 1596.63 | I63: 1615.17 | J63: 1631.33 | K63: 1599 | L63: 1564.3 | M63: 2.12676
A64: 55 | B64: CONCOR | C64: 726.55 | D64: 734.72 | E64: 714.38 | F64: 702.22 | G64: 681.88 | H64: 746.88 | I64: 767.22 | J64: 779.38 | K64: 755.05 | L64: 722.55 | M64: 10.39225
A65: 56 | B65: COROMANDEL | C65: 1008.4 | D65: 1022.18 | E65: 988.37 | F65: 968.33 | G65: 934.52 | H65: 1042.22 | I65: 1076.03 | J65: 1096.07 | K65: 1056 | L65: 1002.15 | M65: 3.54498
A66: 57 | B66: CROMPTON | C66: 401.8 | D66: 401.58 | E66: 397.27 | F66: 392.73 | G66: 388.42 | H66: 406.12 | I66: 410.43 | J66: 414.97 | K66: 405.9 | L66: 397.05 | M66: 16.85958
A67: 58 | B67: CUMMINSIND | C67: 1219 | D67: 1231.33 | E67: 1202.67 | F67: 1186.33 | G67: 1157.67 | H67: 1247.67 | I67: 1276.33 | J67: 1292.67 | K67: 1260 | L67: 1215 | M67: 5.96214
A68: 59 | B68: DLF | C68: 369.95 | D68: 373.43 | E68: 364.67 | F68: 359.38 | G68: 350.62 | H68: 378.72 | I68: 387.48 | J68: 392.77 | K68: 382.2 | L68: 368.15 | M68: 40.60146
A69: 60 | B69: DABUR | C69: 568.55 | D69: 570.98 | E69: 565.12 | F69: 561.68 | G69: 555.82 | H69: 574.42 | I69: 580.28 | J69: 583.72 | K69: 576.85 | L69: 567.55 | M69: 11.56625
A70: 61 | B70: DALBHARAT | C70: 1580.1 | D70: 1609.47 | E70: 1541.63 | F70: 1503.17 | G70: 1435.33 | H70: 1647.93 | I70: 1715.77 | J70: 1754.23 | K70: 1677.3 | L70: 1571 | M70: 2.65789
A71: 62 | B71: DEEPAKNTR | C71: 2163.7 | D71: 2175.22 | E71: 2133.48 | F71: 2103.27 | G71: 2061.53 | H71: 2205.43 | I71: 2247.17 | J71: 2277.38 | K71: 2216.95 | L71: 2145 | M71: 12.54733
A72: 63 | B72: DIVISLAB | C72: 3642.6 | D72: 3637.92 | E72: 3575.83 | F72: 3509.07 | G72: 3446.98 | H72: 3704.68 | I72: 3766.77 | J72: 3833.53 | K72: 3700 | L72: 3571.15 | M72: 7.61456
A73: 64 | B73: DIXON | C73: 4314.35 | D73: 4376.05 | E73: 4239.40 | F73: 4164.45 | G73: 4027.80 | H73: 4451.00 | I73: 4587.65 | J73: 4662.60 | K73: 4512.7 | L73: 4301.1 | M73: 2.10879
A74: 65 | B74: LALPATHLAB | C74: 2514.9 | D74: 2492.58 | E74: 2446.17 | F74: 2377.43 | G74: 2331.02 | H74: 2561.32 | I74: 2607.73 | J74: 2676.47 | K74: 2539 | L74: 2423.85 | M74: 5.28933
A75: 66 | B75: DRREDDY | C75: 4139.2 | D75: 4161.15 | E75: 4107.55 | F75: 4075.90 | G75: 4022.30 | H75: 4192.80 | I75: 4246.40 | J75: 4278.05 | K75: 4214.75 | L75: 4129.5 | M75: 3.31988
A76: 67 | B76: EICHERMOT | C76: 3688.45 | D76: 3704.77 | E76: 3635.08 | F76: 3581.72 | G76: 3512.03 | H76: 3758.13 | I76: 3827.82 | J76: 3881.18 | K76: 3774.45 | L76: 3651.4 | M76: 4.36539
A77: 68 | B77: EMAMILTD | C77: 495.65 | D77: 498.78 | E77: 488.02 | F77: 480.38 | G77: 469.62 | H77: 506.42 | I77: 517.18 | J77: 524.82 | K77: 509.55 | L77: 491.15 | M77: 1.50678
A78: 69 | B78: ESCORTS | C78: 2076.65 | D78: 2110.55 | E78: 2031.10 | F78: 1985.55 | G78: 1906.10 | H78: 2156.10 | I78: 2235.55 | J78: 2281.10 | K78: 2190 | L78: 2065 | M78: 13.78417
A79: 70 | B79: EXIDEIND | C79: 158.35 | D79: 159.55 | E79: 156.60 | F79: 154.85 | G79: 151.90 | H79: 161.30 | I79: 164.25 | J79: 166.00 | K79: 162.5 | L79: 157.8 | M79: 24.68501
A80: 71 | B80: NYKAA | C80: 1307.5 | D80: 1314.82 | E80: 1296.68 | F80: 1285.87 | G80: 1267.73 | H80: 1325.63 | I80: 1343.77 | J80: 1354.58 | K80: 1332.95 | L80: 1304 | M80: 1.00891
A81: 72 | B81: FEDERALBNK | C81: 116.75 | D81: 118.65 | E81: 114.00 | F81: 111.25 | G81: 106.60 | H81: 121.40 | I81: 126.05 | J81: 128.80 | K81: 123.3 | L81: 115.9 | M81: 143.01412
A82: 73 | B82: FORTIS | C82: 262.25 | D82: 260.45 | E82: 253.10 | F82: 243.95 | G82: 236.60 | H82: 269.60 | I82: 276.95 | J82: 286.10 | K82: 267.8 | L82: 251.3 | M82: 141.05644
A83: 74 | B83: GAIL | C83: 86 | D83: 86.73 | E83: 84.97 | F83: 83.93 | G83: 82.17 | H83: 87.77 | I83: 89.53 | J83: 90.57 | K83: 88.5 | L83: 85.7 | M83: 86.32586
A84: 75 | B84: GLAND | C84: 2143.45 | D84: 2152.65 | E84: 2112.60 | F84: 2081.75 | G84: 2041.70 | H84: 2183.50 | I84: 2223.55 | J84: 2254.40 | K84: 2192.7 | L84: 2121.8 | M84: 3.45348
A85: 76 | B85: GLENMARK | C85: 384.7 | D85: 385.37 | E85: 381.48 | F85: 378.27 | G85: 374.38 | H85: 388.58 | I85: 392.47 | J85: 395.68 | K85: 389.25 | L85: 382.15 | M85: 6.44373
A86: 77 | B86: GODREJCP | C86: 890.45 | D86: 895.45 | E86: 881.10 | F86: 871.75 | G86: 857.40 | H86: 904.80 | I86: 919.15 | J86: 928.50 | K86: 909.8 | L86: 886.1 | M86: 6.57299
A87: 78 | B87: GODREJPROP | C87: 1227.95 | D87: 1235.85 | E87: 1215.70 | F87: 1203.45 | G87: 1183.30 | H87: 1248.10 | I87: 1268.25 | J87: 1280.50 | K87: 1256 | L87: 1223.6 | M87: 5.26101
A88: 79 | B88: GRASIM | C88: 1697.4 | D88: 1707.30 | E88: 1680.10 | F88: 1662.80 | G88: 1635.60 | H88: 1724.60 | I88: 1751.80 | J88: 1769.10 | K88: 1734.5 | L88: 1690 | M88: 6.36418
A89: 80 | B89: GUJGASLTD | C89: 500.35 | D89: 506.77 | E89: 488.58 | F89: 476.82 | G89: 458.63 | H89: 518.53 | I89: 536.72 | J89: 548.48 | K89: 524.95 | L89: 495 | M89: 14.33867
A90: 81 | B90: GSPL | C90: 234.1 | D90: 236.55 | E90: 230.55 | F90: 227.00 | G90: 221.00 | H90: 240.10 | I90: 246.10 | J90: 249.65 | K90: 242.55 | L90: 233 | M90: 5.37705
A91: 82 | B91: HCLTECH | C91: 895.85 | D91: 900.15 | E91: 887.70 | F91: 879.55 | G91: 867.10 | H91: 908.30 | I91: 920.75 | J91: 928.90 | K91: 912.6 | L91: 892 | M91: 25.69608
A92: 83 | B92: HDFCAMC | C92: 1886.8 | D92: 1897.20 | E92: 1869.60 | F92: 1852.40 | G92: 1824.80 | H92: 1914.40 | I92: 1942.00 | J92: 1959.20 | K92: 1924.8 | L92: 1880 | M92: 1.85568
A93: 84 | B93: HDFCBANK | C93: 1446.15 | D93: 1452.72 | E93: 1430.43 | F93: 1414.72 | G93: 1392.43 | H93: 1468.43 | I93: 1490.72 | J93: 1506.43 | K93: 1475 | L93: 1437 | M93: 79.03126
A94: 85 | B94: HDFCLIFE | C94: 539.45 | D94: 540.52 | E94: 536.03 | F94: 532.62 | G94: 528.13 | H94: 543.93 | I94: 548.42 | J94: 551.83 | K94: 545 | L94: 537.1 | M94: 21.1815
A95: 86 | B95: HAVELLS | C95: 1306.45 | D95: 1308.15 | E95: 1291.30 | F95: 1276.15 | G95: 1259.30 | H95: 1323.30 | I95: 1340.15 | J95: 1355.30 | K95: 1325 | L95: 1293 | M95: 3.67687
A96: 87 | B96: HEROMOTOCO | C96: 2762.05 | D96: 2772.23 | E96: 2732.22 | F96: 2702.38 | G96: 2662.37 | H96: 2802.07 | I96: 2842.08 | J96: 2871.92 | K96: 2812.25 | L96: 2742.4 | M96: 4.0893
A97: 88 | B97: HINDALCO | C97: 396.35 | D97: 401.17 | E97: 389.63 | F97: 382.92 | G97: 371.38 | H97: 407.88 | I97: 419.42 | J97: 426.13 | K97: 412.7 | L97: 394.45 | M97: 92.28856
A98: 89 | B98: HAL | C98: 2438.8 | D98: 2449.68 | E98: 2396.17 | F98: 2353.53 | G98: 2300.02 | H98: 2492.32 | I98: 2545.83 | J98: 2588.47 | K98: 2503.2 | L98: 2407.05 | M98: 7.5591
A99: 90 | B99: HINDPETRO | C99: 226.85 | D99: 228.42 | E99: 224.53 | F99: 222.22 | G99: 218.33 | H99: 230.73 | I99: 234.62 | J99: 236.93 | K99: 232.3 | L99: 226.1 | M99: 26.98487
A100: 91 | B100: HINDUNILVR | C100: 2682.05 | D100: 2693.27 | E100: 2662.78 | F100: 2643.52 | G100: 2613.03 | H100: 2712.53 | I100: 2743.02 | J100: 2762.28 | K100: 2723.75 | L100: 2674 | M100: 17.89791
A101: 92 | B101: HINDZINC | C101: 278.4 | D101: 280.37 | E101: 276.03 | F101: 273.67 | G101: 269.33 | H101: 282.73 | I101: 287.07 | J101: 289.43 | K101: 284.7 | L101: 278 | M101: 3.08887
A102: 93 | B102: HONAUT | C102: 40167.7 | D102: 40394.20 | E102: 39782.60 | F102: 39397.50 | G102: 38785.90 | H102: 40779.30 | I102: 41390.90 | J102: 41776.00 | K102: 41005.8 | L102: 40009.1 | M102: 0.04146
A103: 94 | B103: HDFC | C103: 2353.25 | D103: 2365.02 | E103: 2329.13 | F103: 2305.02 | G103: 2269.13 | H103: 2389.13 | I103: 2425.02 | J103: 2449.13 | K103: 2400.9 | L103: 2340.9 | M103: 40.7538
A104: 95 | B104: ICICIBANK | C104: 882.25 | D104: 888.63 | E104: 872.37 | F104: 862.48 | G104: 846.22 | H104: 898.52 | I104: 914.78 | J104: 924.67 | K104: 904.9 | L104: 878.75 | M104: 159.27517
A105: 96 | B105: ICICIGI | C105: 1179.4 | D105: 1192.98 | E105: 1161.97 | F105: 1144.53 | G105: 1113.52 | H105: 1210.42 | I105: 1241.43 | J105: 1258.87 | K105: 1224 | L105: 1175.55 | M105: 9.95567
A106: 97 | B106: ICICIPRULI | C106: 545.55 | D106: 547.35 | E106: 538.75 | F106: 531.95 | G106: 523.35 | H106: 554.15 | I106: 562.75 | J106: 569.55 | K106: 555.95 | L106: 540.55 | M106: 4.26887
A107: 98 | B107: ISEC | C107: 530.85 | D107: 532.97 | E107: 524.48 | F107: 518.12 | G107: 509.63 | H107: 539.33 | I107: 547.82 | J107: 554.18 | K107: 541.45 | L107: 526.6 | M107: 1.29502
A108: 99 | B108: IDBI | C108: 42.6 | D108: 43.10 | E108: 42.00 | F108: 41.40 | G108: 40.30 | H108: 43.70 | I108: 44.80 | J108: 45.40 | K108: 44.2 | L108: 42.5 | M108: 78.87956
A109: 100 | B109: IDFCFIRSTB | C109: 48.7 | D109: 49.22 | E109: 47.63 | F109: 46.57 | G109: 44.98 | H109: 50.28 | I109: 51.87 | J109: 52.93 | K109: 50.8 | L109: 48.15 | M109: 393.44669
A110: 101 | B110: ITC | C110: 346.4 | D110: 346.42 | E110: 343.28 | F110: 340.17 | G110: 337.03 | H110: 349.53 | I110: 352.67 | J110: 355.78 | K110: 349.55 | L110: 343.3 | M110: 228.38807
A111: 102 | B111: INDIAMART | C111: 4402.25 | D111: 4404.10 | E111: 4363.20 | F111: 4324.15 | G111: 4283.25 | H111: 4443.15 | I111: 4484.05 | J111: 4523.10 | K111: 4445 | L111: 4365.05 | M111: 0.95806
A112: 103 | B112: INDIANB | C112: 197.15 | D112: 197.70 | E112: 192.90 | F112: 188.65 | G112: 183.85 | H112: 201.95 | I112: 206.75 | J112: 211.00 | K112: 202.5 | L112: 193.45 | M112: 11.01779
A113: 104 | B113: IEX | C113: 147.1 | D113: 148.58 | E113: 144.22 | F113: 141.33 | G113: 136.97 | H113: 151.47 | I113: 155.83 | J113: 158.72 | K113: 152.95 | L113: 145.7 | M113: 85.21927
A114: 105 | B114: INDHOTEL | C114: 326.8 | D114: 328.83 | E114: 321.42 | F114: 316.03 | G114: 308.62 | H114: 334.22 | I114: 341.63 | J114: 347.02 | K114: 336.25 | L114: 323.45 | M114: 57.91275
A115: 106 | B115: IOC | C115: 67.45 | D115: 67.53 | E115: 67.12 | F115: 66.78 | G115: 66.37 | H115: 67.87 | I115: 68.28 | J115: 68.62 | K115: 67.95 | L115: 67.2 | M115: 135.7828
A116: 107 | B116: IRCTC | C116: 685.8 | D116: 692.22 | E116: 677.58 | F116: 669.37 | G116: 654.73 | H116: 700.43 | I116: 715.07 | J116: 723.28 | K116: 706.85 | L116: 684 | M116: 18.04335
A117: 108 | B117: IGL | C117: 409.85 | D117: 414.83 | E117: 402.42 | F117: 394.98 | G117: 382.57 | H117: 422.27 | I117: 434.68 | J117: 442.12 | K117: 427.25 | L117: 407.4 | M117: 18.41967
A118: 109 | B118: INDUSTOWER | C118: 193.1 | D118: 194.12 | E118: 191.78 | F118: 190.47 | G118: 188.13 | H118: 195.43 | I118: 197.77 | J118: 199.08 | K118: 196.45 | L118: 192.8 | M118: 11.35789
A119: 110 | B119: INDUSINDBK | C119: 1183.35 | D119: 1191.12 | E119: 1168.28 | F119: 1153.22 | G119: 1130.38 | H119: 1206.18 | I119: 1229.02 | J119: 1244.08 | K119: 1213.95 | L119: 1176.05 | M119: 41.97496
A120: 111 | B120: NAUKRI | C120: 3898.65 | D120: 3952.37 | E120: 3835.88 | F120: 3773.12 | G120: 3656.63 | H120: 4015.13 | I120: 4131.62 | J120: 4194.38 | K120: 4068.85 | L120: 3889.6 | M120: 4.36542
A121: 112 | B121: INFY | C121: 1365.45 | D121: 1374.08 | E121: 1353.37 | F121: 1341.28 | G121: 1320.57 | H121: 1386.17 | I121: 1406.88 | J121: 1418.97 | K121: 1394.8 | L121: 1362 | M121: 104.262
A122: 113 | B122: INDIGO | C122: 1844.25 | D122: 1856.27 | E122: 1817.98 | F122: 1791.72 | G122: 1753.43 | H122: 1882.53 | I122: 1920.82 | J122: 1947.08 | K122: 1894.55 | L122: 1830 | M122: 4.93102
A123: 114 | B123: IPCALAB | C123: 873.95 | D123: 875.62 | E123: 868.33 | F123: 862.72 | G123: 855.43 | H123: 881.23 | I123: 888.52 | J123: 894.13 | K123: 882.9 | L123: 870 | M123: 0.8803
A124: 115 | B124: JSWENERGY | C124: 319.1 | D124: 322.85 | E124: 312.45 | F124: 305.80 | G124: 295.40 | H124: 329.50 | I124: 339.90 | J124: 346.55 | K124: 333.25 | L124: 316.2 | M124: 8.46315
A125: 116 | B125: JSWSTEEL | C125: 669 | D125: 674.32 | E125: 661.68 | F125: 654.37 | G125: 641.73 | H125: 681.63 | I125: 694.27 | J125: 701.58 | K125: 686.95 | L125: 667 | M125: 15.58314
A126: 117 | B126: JINDALSTEL | C126: 425.8 | D126: 427.88 | E126: 418.52 | F126: 411.23 | G126: 401.87 | H126: 435.17 | I126: 444.53 | J126: 451.82 | K126: 437.25 | L126: 420.6 | M126: 24.87778
A127: 118 | B127: JUBLFOOD | C127: 621.05 | D127: 628.70 | E127: 610.40 | F127: 599.75 | G127: 581.45 | H127: 639.35 | I127: 657.65 | J127: 668.30 | K127: 647 | L127: 618.05 | M127: 45.38949
A128: 119 | B128: KOTAKBANK | C128: 1862.7 | D128: 1864.43 | E128: 1840.17 | F128: 1817.63 | G128: 1793.37 | H128: 1886.97 | I128: 1911.23 | J128: 1933.77 | K128: 1888.7 | L128: 1841.9 | M128: 26.13759
A129: 120 | B129: L&TFH | C129: 76 | D129: 77.03 | E129: 74.57 | F129: 73.13 | G129: 70.67 | H129: 78.47 | I129: 80.93 | J129: 82.37 | K129: 79.5 | L129: 75.6 | M129: 82.84181
A130: 121 | B130: LTTS | C130: 3446.95 | D130: 3469.97 | E130: 3405.13 | F130: 3363.32 | G130: 3298.48 | H130: 3511.78 | I130: 3576.62 | J130: 3618.43 | K130: 3534.8 | L130: 3428.15 | M130: 2.93477
A131: 122 | B131: LICHSGFIN | C131: 401.95 | D131: 408.65 | E131: 393.30 | F131: 384.65 | G131: 369.30 | H131: 417.30 | I131: 432.65 | J131: 441.30 | K131: 424 | L131: 400 | M131: 34.57548
A132: 123 | B132: LTI | C132: 4417.9 | D132: 4446.63 | E132: 4373.27 | F132: 4328.63 | G132: 4255.27 | H132: 4491.27 | I132: 4564.63 | J132: 4609.27 | K132: 4520 | L132: 4402 | M132: 3.46327
A133: 124 | B133: LT | C133: 1856.85 | D133: 1868.28 | E133: 1841.12 | F133: 1825.38 | G133: 1798.22 | H133: 1884.02 | I133: 1911.18 | J133: 1926.92 | K133: 1895.45 | L133: 1852.55 | M133: 19.48766
A134: 125 | B134: LAURUSLABS | C134: 510.3 | D134: 515.43 | E134: 503.87 | F134: 497.43 | G134: 485.87 | H134: 521.87 | I134: 533.43 | J134: 539.87 | K134: 527 | L134: 509 | M134: 10.18261
A135: 126 | B135: LUPIN | C135: 648.35 | D135: 654.45 | E135: 640.90 | F135: 633.45 | G135: 619.90 | H135: 661.90 | I135: 675.45 | J135: 682.90 | K135: 668 | L135: 647 | M135: 5.32388
A136: 127 | B136: MRF | C136: 82599.15 | D136: 83289.68 | E136: 81479.37 | F136: 80359.58 | G136: 78549.27 | H136: 84409.47 | I136: 86219.78 | J136: 87339.57 | K136: 85100 | L136: 82169.9 | M136: 0.16345
A137: 128 | B137: M&MFIN | C137: 194.4 | D137: 200.43 | E137: 185.97 | F137: 177.53 | G137: 163.07 | H137: 208.87 | I137: 223.33 | J137: 231.77 | K137: 214.9 | L137: 192 | M137: 429.78892
A138: 129 | B138: M&M | C138: 1272.3 | D138: 1283.80 | E138: 1249.50 | F138: 1226.70 | G138: 1192.40 | H138: 1306.60 | I138: 1340.90 | J138: 1363.70 | K138: 1318.1 | L138: 1261 | M138: 46.39618
A139: 130 | B139: MANAPPURAM | C139: 95.05 | D139: 96.05 | E139: 93.50 | F139: 91.95 | G139: 89.40 | H139: 97.60 | I139: 100.15 | J139: 101.70 | K139: 98.6 | L139: 94.5 | M139: 57.1425
A140: 131 | B140: MARICO | C140: 542.95 | D140: 545.90 | E140: 537.45 | F140: 531.95 | G140: 523.50 | H140: 551.40 | I140: 559.85 | J140: 565.35 | K140: 554.35 | L140: 540.4 | M140: 18.34851
A141: 132 | B141: MARUTI | C141: 9343.45 | D141: 9357.27 | E141: 9263.53 | F141: 9183.62 | G141: 9089.88 | H141: 9437.18 | I141: 9530.92 | J141: 9610.83 | K141: 9451 | L141: 9277.35 | M141: 5.74213
A142: 133 | B142: MFSL | C142: 781.65 | D142: 790.47 | E142: 764.48 | F142: 747.32 | G142: 721.33 | H142: 807.63 | I142: 833.62 | J142: 850.78 | K142: 816.45 | L142: 773.3 | M142: 3.41777
A143: 134 | B143: MAXHEALTH | C143: 426.95 | D143: 431.98 | E143: 419.02 | F143: 411.08 | G143: 398.12 | H143: 439.92 | I143: 452.88 | J143: 460.82 | K143: 444.95 | L143: 424.05 | M143: 61.28689
A144: 135 | B144: METROPOLIS | C144: 1460.25 | D144: 1458.68 | E144: 1430.42 | F144: 1400.58 | G144: 1372.32 | H144: 1488.52 | I144: 1516.78 | J144: 1546.62 | K144: 1486.95 | L144: 1428.85 | M144: 4.87338
A145: 136 | B145: MINDTREE | C145: 3148.2 | D145: 3171.92 | E145: 3106.28 | F145: 3064.37 | G145: 2998.73 | H145: 3213.83 | I145: 3279.47 | J145: 3321.38 | K145: 3237.55 | L145: 3130 | M145: 6.58513
A146: 137 | B146: MPHASIS | C146: 2019.45 | D146: 2035.62 | E146: 1994.33 | F146: 1969.22 | G146: 1927.93 | H146: 2060.73 | I146: 2102.02 | J146: 2127.13 | K146: 2076.9 | L146: 2010.5 | M146: 4.72795
A147: 138 | B147: MUTHOOTFIN | C147: 1002.5 | D147: 1006.63 | E147: 993.87 | F147: 985.23 | G147: 972.47 | H147: 1015.27 | I147: 1028.03 | J147: 1036.67 | K147: 1019.4 | L147: 998 | M147: 6.42287
A148: 139 | B148: NMDC | C148: 127.9 | D148: 129.27 | E148: 125.83 | F148: 123.77 | G148: 120.33 | H148: 131.33 | I148: 134.77 | J148: 136.83 | K148: 132.7 | L148: 127.2 | M148: 70.59234
A149: 140 | B149: NTPC | C149: 163.95 | D149: 165.03 | E149: 161.57 | F149: 159.18 | G149: 155.72 | H149: 167.42 | I149: 170.88 | J149: 173.27 | K149: 168.5 | L149: 162.65 | M149: 122.64388
A150: 141 | B150: NATIONALUM | C150: 73.05 | D150: 73.72 | E150: 71.98 | F150: 70.92 | G150: 69.18 | H150: 74.78 | I150: 76.52 | J150: 77.58 | K150: 75.45 | L150: 72.65 | M150: 88.19359
A151: 142 | B151: NAVINFLUOR | C151: 4628.25 | D151: 4666.98 | E151: 4573.97 | F151: 4519.68 | G151: 4426.67 | H151: 4721.27 | I151: 4814.28 | J151: 4868.57 | K151: 4760 | L151: 4612.7 | M151: 1.72528
A152: 143 | B152: NESTLEIND | C152: 18495.9 | D152: 18534.05 | E152: 18411.90 | F152: 18327.90 | G152: 18205.75 | H152: 18618.05 | I152: 18740.20 | J152: 18824.20 | K152: 18656.2 | L152: 18450.05 | M152: 0.35842
A153: 144 | B153: NAM-INDIA | C153: 279 | D153: 280.82 | E153: 276.28 | F153: 273.57 | G153: 269.03 | H153: 283.53 | I153: 288.07 | J153: 290.78 | K153: 285.35 | L153: 278.1 | M153: 1.57322
A154: 145 | B154: OBEROIRLTY | C154: 970.3 | D154: 979.47 | E154: 949.58 | F154: 928.87 | G154: 898.98 | H154: 1000.18 | I154: 1030.07 | J154: 1050.78 | K154: 1009.35 | L154: 958.75 | M154: 5.80944
A155: 146 | B155: ONGC | C155: 128.6 | D155: 128.40 | E155: 127.70 | F155: 126.80 | G155: 126.10 | H155: 129.30 | I155: 130.00 | J155: 130.90 | K155: 129.1 | L155: 127.5 | M155: 104.07849
A156: 147 | B156: OIL | C156: 184.9 | D156: 184.05 | E156: 181.95 | F156: 179.00 | G156: 176.90 | H156: 187.00 | I156: 189.10 | J156: 192.05 | K156: 186.15 | L156: 181.1 | M156: 15.83223
A157: 148 | B157: PAYTM | C157: 692.6 | D157: 695.87 | E157: 684.73 | F157: 676.87 | G157: 665.73 | H157: 703.73 | I157: 714.87 | J157: 722.73 | K157: 707 | L157: 688 | M157: 15.73621
A158: 149 | B158: OFSS | C158: 2993.7 | D158: 3008.93 | E158: 2971.87 | F158: 2950.03 | G158: 2912.97 | H158: 3030.77 | I158: 3067.83 | J158: 3089.67 | K158: 3046 | L158: 2987.1 | M158: 0.64776
A159: 150 | B159: POLICYBZR | C159: 492.55 | D159: 497.28 | E159: 485.27 | F159: 477.98 | G159: 465.97 | H159: 504.57 | I159: 516.58 | J159: 523.87 | K159: 509.3 | L159: 490 | M159: 4.82059
A160: 151 | B160: PIIND | C160: 3058.25 | D160: 3086.20 | E160: 2988.75 | F160: 2919.25 | G160: 2821.80 | H160: 3155.70 | I160: 3253.15 | J160: 3322.65 | K160: 3183.65 | L160: 3016.7 | M160: 2.7569
A161: 152 | B161: PAGEIND | C161: 53078.15 | D161: 53045.02 | E161: 52475.03 | F161: 51871.92 | G161: 51301.93 | H161: 53648.13 | I161: 54218.12 | J161: 54821.23 | K161: 53615 | L161: 52441.9 | M161: 0.36932
A162: 153 | B162: PERSISTENT | C162: 3148 | D162: 3181.00 | E162: 3102.00 | F162: 3056.00 | G162: 2977.00 | H162: 3227.00 | I162: 3306.00 | J162: 3352.00 | K162: 3260 | L162: 3135 | M162: 1.98385
A163: 154 | B163: PETRONET | C163: 205.5 | D163: 206.40 | E163: 204.10 | F163: 202.70 | G163: 200.40 | H163: 207.80 | I163: 210.10 | J163: 211.50 | K163: 208.7 | L163: 205 | M163: 11.15615
A164: 155 | B164: PIDILITIND | C164: 2800.65 | D164: 2794.53 | E164: 2776.12 | F164: 2751.58 | G164: 2733.17 | H164: 2819.07 | I164: 2837.48 | J164: 2862.02 | K164: 2812.95 | L164: 2770 | M164: 3.18784
A165: 156 | B165: PEL | C165: 955.8 | D165: 960.75 | E165: 943.05 | F165: 930.30 | G165: 912.60 | H165: 973.50 | I165: 991.20 | J165: 1003.95 | K165: 978.45 | L165: 948 | M165: 13.75353
A166: 157 | B166: POLYCAB | C166: 2580.8 | D166: 2593.08 | E166: 2547.72 | F166: 2514.63 | G166: 2469.27 | H166: 2626.17 | I166: 2671.53 | J166: 2704.62 | K166: 2638.45 | L166: 2560 | M166: 1.91261
A167: 158 | B167: PFC | C167: 110.2 | D167: 110.82 | E167: 108.98 | F167: 107.77 | G167: 105.93 | H167: 112.03 | I167: 113.87 | J167: 115.08 | K167: 112.65 | L167: 109.6 | M167: 54.78864
A168: 159 | B168: POWERGRID | C168: 202.55 | D168: 206.80 | E168: 193.85 | F168: 185.15 | G168: 172.20 | H168: 215.50 | I168: 228.45 | J168: 237.15 | K168: 219.75 | L168: 198.1 | M168: 653.72042
A169: 160 | B169: PRESTIGE | C169: 434.3 | D169: 439.78 | E169: 427.57 | F169: 420.83 | G169: 408.62 | H169: 446.52 | I169: 458.73 | J169: 465.47 | K169: 452 | L169: 433.05 | M169: 3.49551
A170: 161 | B170: PGHH | C170: 14618.55 | D170: 14592.50 | E170: 14440.05 | F170: 14261.55 | G170: 14109.10 | H170: 14771.00 | I170: 14923.45 | J170: 15101.95 | K170: 14744.95 | L170: 14414 | M170: 0.07222
A171: 162 | B171: PNB | C171: 38.15 | D171: 38.92 | E171: 37.23 | F171: 36.32 | G171: 34.63 | H171: 39.83 | I171: 41.52 | J171: 42.43 | K171: 40.6 | L171: 38 | M171: 695.27571
A172: 163 | B172: RECLTD | C172: 101.3 | D172: 101.93 | E172: 100.37 | F172: 99.43 | G172: 97.87 | H172: 102.87 | I172: 104.43 | J172: 105.37 | K172: 103.5 | L172: 101 | M172: 44.48206
A173: 164 | B173: RELIANCE | C173: 2439.5 | D173: 2457.18 | E173: 2418.42 | F173: 2397.33 | G173: 2358.57 | H173: 2478.27 | I173: 2517.03 | J173: 2538.12 | K173: 2495.95 | L173: 2436.1 | M173: 43.97194
A174: 165 | B174: SBICARD | C174: 915.55 | D174: 925.75 | E174: 902.30 | F174: 889.05 | G174: 865.60 | H174: 939.00 | I174: 962.45 | J174: 975.70 | K174: 949.2 | L174: 912.5 | M174: 8.93539
A175: 166 | B175: SBILIFE | C175: 1273 | D175: 1276.17 | E175: 1262.38 | F175: 1251.77 | G175: 1237.98 | H175: 1286.78 | I175: 1300.57 | J175: 1311.18 | K175: 1289.95 | L175: 1265.55 | M175: 4.15333
A176: 167 | B176: SRF | C176: 2572.35 | D176: 2588.92 | E176: 2547.48 | F176: 2522.62 | G176: 2481.18 | H176: 2613.78 | I176: 2655.22 | J176: 2680.08 | K176: 2630.35 | L176: 2564.05 | M176: 4.88174
A177: 168 | B177: SHREECEM | C177: 21201.45 | D177: 21450.53 | E177: 20902.07 | F177: 20602.68 | G177: 20054.22 | H177: 21749.92 | I177: 22298.38 | J177: 22597.77 | K177: 21999 | L177: 21151.15 | M177: 0.85503
A178: 169 | B178: SRTRANSFIN | C178: 1203.15 | D178: 1218.87 | E178: 1180.83 | F178: 1158.52 | G178: 1120.48 | H178: 1241.18 | I178: 1279.22 | J178: 1301.53 | K178: 1256.9 | L178: 1196.55 | M178: 11.15682
A179: 170 | B179: SIEMENS | C179: 2854.45 | D179: 2884.43 | E179: 2817.97 | F179: 2781.48 | G179: 2715.02 | H179: 2920.92 | I179: 2987.38 | J179: 3023.87 | K179: 2950.9 | L179: 2847.95 | M179: 1.08102
A180: 171 | B180: SONACOMS | C180: 475 | D180: 479.45 | E180: 465.00 | F180: 455.00 | G180: 440.55 | H180: 489.45 | I180: 503.90 | J180: 513.90 | K180: 493.9 | L180: 469.45 | M180: 28.80334
A181: 172 | B181: SBIN | C181: 550.6 | D181: 556.03 | E181: 544.07 | F181: 537.53 | G181: 525.57 | H181: 562.57 | I181: 574.53 | J181: 581.07 | K181: 568 | L181: 549.5 | M181: 125.63239
A182: 173 | B182: SAIL | C182: 78.15 | D182: 79.02 | E182: 76.93 | F182: 75.72 | G182: 73.63 | H182: 80.23 | I182: 82.32 | J182: 83.53 | K182: 81.1 | L182: 77.8 | M182: 118.15823
A183: 174 | B183: SUNPHARMA | C183: 921.1 | D183: 916.80 | E183: 906.90 | F183: 892.70 | G183: 882.80 | H183: 931.00 | I183: 940.90 | J183: 955.10 | K183: 926.7 | L183: 902.6 | M183: 48.02181
A184: 175 | B184: SUNTV | C184: 507.55 | D184: 511.80 | E184: 499.90 | F184: 492.25 | G184: 480.35 | H184: 519.45 | I184: 531.35 | J184: 539.00 | K184: 523.7 | L184: 504.15 | M184: 6.60145
A185: 176 | B185: SYNGENE | C185: 556 | D185: 559.82 | E185: 549.58 | F185: 543.17 | G185: 532.93 | H185: 566.23 | I185: 576.47 | J185: 582.88 | K185: 570.05 | L185: 553.4 | M185: 4.84966
A186: 177 | B186: TVSMOTOR | C186: 1037.55 | D186: 1045.05 | E186: 1019.50 | F186: 1001.45 | G186: 975.90 | H186: 1063.10 | I186: 1088.65 | J186: 1106.70 | K186: 1070.6 | L186: 1027 | M186: 19.35689
A187: 178 | B187: TATACHEM | C187: 1134.4 | D187: 1140.82 | E187: 1120.18 | F187: 1105.97 | G187: 1085.33 | H187: 1155.03 | I187: 1175.67 | J187: 1189.88 | K187: 1161.45 | L187: 1126.6 | M187: 23.77503
A188: 179 | B188: TATACOMM | C188: 1168.85 | D188: 1182.95 | E188: 1143.10 | F188: 1117.35 | G188: 1077.50 | H188: 1208.70 | I188: 1248.55 | J188: 1274.30 | K188: 1222.8 | L188: 1157.2 | M188: 5.19723
A189: 180 | B189: TCS | C189: 2982.05 | D189: 2994.52 | E189: 2966.53 | F189: 2951.02 | G189: 2923.03 | H189: 3010.03 | I189: 3038.02 | J189: 3053.53 | K189: 3022.5 | L189: 2979 | M189: 26.52374
A190: 181 | B190: TATACONSUM | C190: 781.55 | D190: 789.12 | E190: 771.93 | F190: 762.32 | G190: 745.13 | H190: 798.73 | I190: 815.92 | J190: 825.53 | K190: 806.3 | L190: 779.5 | M190: 12.29421
A191: 182 | B191: TATAELXSI | C191: 8857.1 | D191: 8917.37 | E191: 8775.73 | F191: 8694.37 | G191: 8552.73 | H191: 8998.73 | I191: 9140.37 | J191: 9221.73 | K191: 9059 | L191: 8836 | M191: 1.75906
A192: 183 | B192: TATAMOTORS | C192: 423.1 | D192: 425.18 | E192: 418.47 | F192: 413.83 | G192: 407.12 | H192: 429.82 | I192: 436.53 | J192: 441.17 | K192: 431.9 | L192: 420.55 | M192: 134.41609
A193: 184 | B193: TATAPOWER | C193: 224.5 | D193: 226.80 | E193: 221.25 | F193: 218.00 | G193: 212.45 | H193: 230.05 | I193: 235.60 | J193: 238.85 | K193: 232.35 | L193: 223.55 | M193: 161.43866
A194: 185 | B194: TATASTEEL | C194: 104.3 | D194: 105.32 | E194: 102.73 | F194: 101.17 | G194: 98.58 | H194: 106.88 | I194: 109.47 | J194: 111.03 | K194: 107.9 | L194: 103.75 | M194: 1097.6552
A195: 186 | B195: TECHM | C195: 1035.1 | D195: 1035.67 | E195: 1021.43 | F195: 1007.77 | G195: 993.53 | H195: 1049.33 | I195: 1063.57 | J195: 1077.23 | K195: 1049.9 | L195: 1022 | M195: 32.30711
A196: 187 | B196: RAMCOCEM | C196: 731.4 | D196: 738.88 | E196: 721.87 | F196: 712.33 | G196: 695.32 | H196: 748.42 | I196: 765.43 | J196: 774.97 | K196: 755.9 | L196: 729.35 | M196: 4.13234
A197: 188 | B197: TITAN | C197: 2672.45 | D197: 2698.38 | E197: 2641.07 | F197: 2609.68 | G197: 2552.37 | H197: 2729.77 | I197: 2787.08 | J197: 2818.47 | K197: 2755.7 | L197: 2667 | M197: 12.26889
A198: 189 | B198: TORNTPHARM | C198: 1516.2 | D198: 1522.02 | E198: 1504.33 | F198: 1492.47 | G198: 1474.78 | H198: 1533.88 | I198: 1551.57 | J198: 1563.43 | K198: 1539.7 | L198: 1510.15 | M198: 1.46018
A199: 190 | B199: TORNTPOWER | C199: 521.75 | D199: 526.28 | E199: 515.82 | F199: 509.88 | G199: 499.42 | H199: 532.22 | I199: 542.68 | J199: 548.62 | K199: 536.75 | L199: 520.35 | M199: 3.57807
A200: 191 | B200: TRENT | C200: 1433.65 | D200: 1447.73 | E200: 1403.62 | F200: 1373.58 | G200: 1329.47 | H200: 1477.77 | I200: 1521.88 | J200: 1551.92 | K200: 1491.85 | L200: 1417.7 | M200: 7.43035
A201: 192 | B201: TRIDENT | C201: 37.65 | D201: 37.88 | E201: 37.17 | F201: 36.68 | G201: 35.97 | H201: 38.37 | I201: 39.08 | J201: 39.57 | K201: 38.6 | L201: 37.4 | M201: 58.66403
A202: 193 | B202: UPL | C202: 702.85 | D202: 710.05 | E202: 692.80 | F202: 682.75 | G202: 665.50 | H202: 720.10 | I202: 737.35 | J202: 747.40 | K202: 727.3 | L202: 700 | M202: 22.30894
A203: 194 | B203: ULTRACEMCO | C203: 6139.95 | D203: 6183.68 | E203: 6083.42 | F203: 6026.88 | G203: 5926.62 | H203: 6240.22 | I203: 6340.48 | J203: 6397.02 | K203: 6283.95 | L203: 6127.15 | M203: 5.70526
A204: 195 | B204: UNIONBANK | C204: 44.15 | D204: 44.62 | E204: 43.33 | F204: 42.52 | G204: 41.23 | H204: 45.43 | I204: 46.72 | J204: 47.53 | K204: 45.9 | L204: 43.8 | M204: 74.92586
A205: 196 | B205: UBL | C205: 1644.7 | D205: 1634.80 | E205: 1622.00 | F205: 1599.30 | G205: 1586.50 | H205: 1657.50 | I205: 1670.30 | J205: 1693.00 | K205: 1647.6 | L205: 1612.1 | M205: 2.06811
... 29 more rows

Sheet MidCap Intra
L5: Back To Main Page
A6: FOR INTRA DAY TRADING | K6: =Main!B10 -> 2022-09-26
A9: Sr.no | B9: Scrip | C9: CLOSE RATE | D9: Pivot Point | E9: Supports | H9: Resistances
E10: S1 | F10: S2 | G10: S3 | H10: R1 | I10: R2 | J10: R3 | K10: HIGH | L10: LOW | M10: Total Trade Quanity in Lakhs
A11: 1 | B11: 3MINDIA | C11: 23713 | D11: 23570.65 | E11: 23242.35 | F11: 22771.70 | G11: 22443.40 | H11: 24041.30 | I11: 24369.60 | J11: 24840.25 | K11: 23898.95 | L11: 23100 | M11: 0.08135
A12: 2 | B12: ABB | C12: 3124.65 | D12: 3135.83 | E12: 3099.27 | F12: 3073.88 | G12: 3037.32 | H12: 3161.22 | I12: 3197.78 | J12: 3223.17 | K12: 3172.4 | L12: 3110.45 | M12: 1.62047
A13: 3 | B13: ACC | C13: 2488.9 | D13: 2515.53 | E13: 2445.57 | F13: 2402.23 | G13: 2332.27 | H13: 2558.87 | I13: 2628.83 | J13: 2672.17 | K13: 2585.5 | L13: 2472.2 | M13: 13.96618
A14: 4 | B14: AIAENG | C14: 2615.75 | D14: 2613.12 | E14: 2595.33 | F14: 2574.92 | G14: 2557.13 | H14: 2633.53 | I14: 2651.32 | J14: 2671.73 | K14: 2630.9 | L14: 2592.7 | M14: 0.48936
A15: 5 | B15: APLAPOLLO | C15: 1083.8 | D15: 1083.15 | E15: 1065.20 | F15: 1046.60 | G15: 1028.65 | H15: 1101.75 | I15: 1119.70 | J15: 1138.30 | K15: 1101.1 | L15: 1064.55 | M15: 4.55986
A16: 6 | B16: AUBANK | C16: 637.85 | D16: 647.68 | E16: 625.77 | F16: 613.68 | G16: 591.77 | H16: 659.77 | I16: 681.68 | J16: 693.77 | K16: 669.6 | L16: 635.6 | M16: 12.11636
A17: 7 | B17: AARTIDRUGS | C17: 467.25 | D17: 470.63 | E17: 461.27 | F17: 455.28 | G17: 445.92 | H17: 476.62 | I17: 485.98 | J17: 491.97 | K17: 480 | L17: 464.65 | M17: 2.18333
A18: 8 | B18: AAVAS | C18: 2175.65 | D18: 2184.30 | E18: 2161.40 | F18: 2147.15 | G18: 2124.25 | H18: 2198.55 | I18: 2221.45 | J18: 2235.70 | K18: 2207.2 | L18: 2170.05 | M18: 0.26754
A19: 9 | B19: ABBOTINDIA | C19: 17853.75 | D19: 17937.45 | E19: 17716.30 | F19: 17578.85 | G19: 17357.70 | H19: 18074.90 | I19: 18296.05 | J19: 18433.50 | K19: 18158.6 | L19: 17800 | M19: 0.24724
A20: 10 | B20: ADANIENT | C20: 3674.3 | D20: 3689.07 | E20: 3640.23 | F20: 3606.17 | G20: 3557.33 | H20: 3723.13 | I20: 3771.97 | J20: 3806.03 | K20: 3737.9 | L20: 3655 | M20: 30.01474
A21: 11 | B21: ADANIGREEN | C21: 2323.85 | D21: 2335.62 | E21: 2293.23 | F21: 2262.62 | G21: 2220.23 | H21: 2366.23 | I21: 2408.62 | J21: 2439.23 | K21: 2378 | L21: 2305 | M21: 15.62228
A22: 12 | B22: ADANIPORTS | C22: 913.8 | D22: 924.93 | E22: 899.02 | F22: 884.23 | G22: 858.32 | H22: 939.72 | I22: 965.63 | J22: 980.42 | K22: 950.85 | L22: 910.15 | M22: 66.46619
A23: 13 | B23: ATGL | C23: 3545.25 | D23: 3578.25 | E23: 3493.20 | F23: 3441.15 | G23: 3356.10 | H23: 3630.30 | I23: 3715.35 | J23: 3767.40 | K23: 3663.3 | L23: 3526.2 | M23: 1.43552
A24: 14 | B24: ADANITRANS | C24: 3872.55 | D24: 3915.48 | E24: 3797.07 | F24: 3721.58 | G24: 3603.17 | H24: 3990.97 | I24: 4109.38 | J24: 4184.87 | K24: 4033.9 | L24: 3840 | M24: 3.6721
A25: 15 | B25: ABCAPITAL | C25: 111.85 | D25: 112.80 | E25: 109.55 | F25: 107.25 | G25: 104.00 | H25: 115.10 | I25: 118.35 | J25: 120.65 | K25: 116.05 | L25: 110.5 | M25: 48.92735
A26: 16 | B26: ABFRL | C26: 335.15 | D26: 338.83 | E26: 329.92 | F26: 324.68 | G26: 315.77 | H26: 344.07 | I26: 352.98 | J26: 358.22 | K26: 347.75 | L26: 333.6 | M26: 17.42818
A27: 17 | B27: ABSLAMC | C27: 468.2 | D27: 474.73 | E27: 460.47 | F27: 452.73 | G27: 438.47 | H27: 482.47 | I27: 496.73 | J27: 504.47 | K27: 489 | L27: 467 | M27: 3.05892
A28: 18 | B28: ADVENZYMES | C28: 290.9 | D28: 295.70 | E28: 283.40 | F28: 275.90 | G28: 263.60 | H28: 303.20 | I28: 315.50 | J28: 323.00 | K28: 308 | L28: 288.2 | M28: 4.2601
A29: 19 | B29: AEGISCHEM | C29: 276.35 | D29: 277.93 | E29: 271.47 | F29: 266.58 | G29: 260.12 | H29: 282.82 | I29: 289.28 | J29: 294.17 | K29: 284.4 | L29: 273.05 | M29: 4.27554
A30: 20 | B30: AFFLE | C30: 1271.6 | D30: 1274.17 | E30: 1243.33 | F30: 1215.07 | G30: 1184.23 | H30: 1302.43 | I30: 1333.27 | J30: 1361.53 | K30: 1305 | L30: 1245.9 | M30: 3.06834
A31: 21 | B31: AJANTPHARM | C31: 1269.35 | D31: 1267.40 | E31: 1256.20 | F31: 1243.05 | G31: 1231.85 | H31: 1280.55 | I31: 1291.75 | J31: 1304.90 | K31: 1278.6 | L31: 1254.25 | M31: 0.4614
A32: 22 | B32: APLLTD | C32: 609.35 | D32: 609.77 | E32: 599.53 | F32: 589.72 | G32: 579.48 | H32: 619.58 | I32: 629.82 | J32: 639.63 | K32: 620 | L32: 599.95 | M32: 2.08447
A33: 23 | B33: ALKEM | C33: 3257.85 | D33: 3268.95 | E33: 3228.95 | F33: 3200.05 | G33: 3160.05 | H33: 3297.85 | I33: 3337.85 | J33: 3366.75 | K33: 3308.95 | L33: 3240.05 | M33: 0.21102
A34: 24 | B34: ALKYLAMINE | C34: 2975.9 | D34: 2991.97 | E34: 2943.93 | F34: 2911.97 | G34: 2863.93 | H34: 3023.93 | I34: 3071.97 | J34: 3103.93 | K34: 3040 | L34: 2960 | M34: 0.26489
A35: 25 | B35: ALLCARGO | C35: 391.65 | D35: 387.87 | E35: 379.33 | F35: 367.02 | G35: 358.48 | H35: 400.18 | I35: 408.72 | J35: 421.03 | K35: 396.4 | L35: 375.55 | M35: 7.13458
A36: 26 | B36: ALOKINDS | C36: 19.2 | D36: 19.27 | E36: 18.93 | F36: 18.67 | G36: 18.33 | H36: 19.53 | I36: 19.87 | J36: 20.13 | K36: 19.6 | L36: 19 | M36: 20.14446
A37: 27 | B37: AMARAJABAT | C37: 503.3 | D37: 507.28 | E37: 498.02 | F37: 492.73 | G37: 483.47 | H37: 512.57 | I37: 521.83 | J37: 527.12 | K37: 516.55 | L37: 502 | M37: 3.47689
A38: 28 | B38: AMBER | C38: 2246.05 | D38: 2257.05 | E38: 2219.10 | F38: 2192.15 | G38: 2154.20 | H38: 2284.00 | I38: 2321.95 | J38: 2348.90 | K38: 2295 | L38: 2230.1 | M38: 0.24137
A39: 29 | B39: AMBUJACEM | C39: 539.35 | D39: 543.12 | E39: 531.23 | F39: 523.12 | G39: 511.23 | H39: 551.23 | I39: 563.12 | J39: 571.23 | K39: 555 | L39: 535 | M39: 170.14661
A40: 30 | B40: ANGELONE | C40: 1491.9 | D40: 1502.27 | E40: 1477.63 | F40: 1463.37 | G40: 1438.73 | H40: 1516.53 | I40: 1541.17 | J40: 1555.43 | K40: 1526.9 | L40: 1488 | M40: 1.55282
A41: 31 | B41: ANURAS | C41: 771.65 | D41: 786.33 | E41: 751.42 | F41: 731.18 | G41: 696.27 | H41: 806.57 | I41: 841.48 | J41: 861.72 | K41: 821.25 | L41: 766.1 | M41: 8.17697
A42: 32 | B42: APOLLOHOSP | C42: 4418.45 | D42: 4506.77 | E42: 4294.53 | F42: 4170.62 | G42: 3958.38 | H42: 4630.68 | I42: 4842.92 | J42: 4966.83 | K42: 4719 | L42: 4382.85 | M42: 12.05497
A43: 33 | B43: APOLLOTYRE | C43: 285.25 | D43: 285.58 | E43: 281.27 | F43: 277.28 | G43: 272.97 | H43: 289.57 | I43: 293.88 | J43: 297.87 | K43: 289.9 | L43: 281.6 | M43: 32.64445
A44: 34 | B44: APTUS | C44: 313.25 | D44: 314.27 | E44: 308.98 | F44: 304.72 | G44: 299.43 | H44: 318.53 | I44: 323.82 | J44: 328.08 | K44: 319.55 | L44: 310 | M44: 2.90179
A45: 35 | B45: ASAHIINDIA | C45: 610.1 | D45: 618.67 | E45: 597.88 | F45: 585.67 | G45: 564.88 | H45: 630.88 | I45: 651.67 | J45: 663.88 | K45: 639.45 | L45: 606.45 | M45: 2.41909
A46: 36 | B46: ASHOKLEY | C46: 159.3 | D46: 160.93 | E46: 156.62 | F46: 153.93 | G46: 149.62 | H46: 163.62 | I46: 167.93 | J46: 170.62 | K46: 165.25 | L46: 158.25 | M46: 103.64018
A47: 37 | B47: ASIANPAINT | C47: 3395.25 | D47: 3405.30 | E47: 3372.65 | F47: 3350.05 | G47: 3317.40 | H47: 3427.90 | I47: 3460.55 | J47: 3483.15 | K47: 3437.95 | L47: 3382.7 | M47: 5.1337
A48: 38 | B48: ASTERDM | C48: 239.3 | D48: 243.10 | E48: 233.20 | F48: 227.10 | G48: 217.20 | H48: 249.20 | I48: 259.10 | J48: 265.20 | K48: 253 | L48: 237 | M48: 6.42063
A49: 39 | B49: ASTRAZEN | C49: 3186.5 | D49: 3212.83 | E49: 3154.67 | F49: 3122.83 | G49: 3064.67 | H49: 3244.67 | I49: 3302.83 | J49: 3334.67 | K49: 3271 | L49: 3181 | M49: 0.09329
A50: 40 | B50: ASTRAL | C50: 2315.95 | D50: 2316.73 | E50: 2279.47 | F50: 2242.98 | G50: 2205.72 | H50: 2353.22 | I50: 2390.48 | J50: 2426.97 | K50: 2354 | L50: 2280.25 | M50: 3.70285
A51: 41 | B51: ATUL | C51: 9254.15 | D51: 9296.57 | E51: 9188.63 | F51: 9123.12 | G51: 9015.18 | H51: 9362.08 | I51: 9470.02 | J51: 9535.53 | K51: 9404.5 | L51: 9231.05 | M51: 0.17748
A52: 42 | B52: AUROPHARMA | C52: 517.05 | D52: 520.52 | E52: 511.53 | F52: 506.02 | G52: 497.03 | H52: 526.03 | I52: 535.02 | J52: 540.53 | K52: 529.5 | L52: 515 | M52: 14.46716
A53: 43 | B53: AVANTIFEED | C53: 466.7 | D53: 469.55 | E53: 462.15 | F53: 457.60 | G53: 450.20 | H53: 474.10 | I53: 481.50 | J53: 486.05 | K53: 476.95 | L53: 465 | M53: 0.75816
A54: 44 | B54: DMART | C54: 4367 | D54: 4395.97 | E54: 4322.03 | F54: 4277.07 | G54: 4203.13 | H54: 4440.93 | I54: 4514.87 | J54: 4559.83 | K54: 4469.9 | L54: 4351 | M54: 2.41647
A55: 45 | B55: AXISBANK | C55: 768.6 | D55: 773.95 | E55: 758.90 | F55: 749.20 | G55: 734.15 | H55: 783.65 | I55: 798.70 | J55: 808.40 | K55: 789 | L55: 764.25 | M55: 102.78805
A56: 46 | B56: BASF | C56: 2854.8 | D56: 2878.25 | E56: 2816.55 | F56: 2778.30 | G56: 2716.60 | H56: 2916.50 | I56: 2978.20 | J56: 3016.45 | K56: 2939.95 | L56: 2840 | M56: 0.15772
A57: 47 | B57: BSE | C57: 632 | D57: 636.62 | E57: 625.38 | F57: 618.77 | G57: 607.53 | H57: 643.23 | I57: 654.47 | J57: 661.08 | K57: 647.85 | L57: 630 | M57: 4.9101
A58: 48 | B58: BAJAJ-AUTO | C58: 3698.9 | D58: 3717.30 | E58: 3664.60 | F58: 3630.30 | G58: 3577.60 | H58: 3751.60 | I58: 3804.30 | J58: 3838.60 | K58: 3770 | L58: 3683 | M58: 1.58122
A59: 49 | B59: BAJAJELEC | C59: 1076.95 | D59: 1084.77 | E59: 1062.18 | F59: 1047.42 | G59: 1024.83 | H59: 1099.53 | I59: 1122.12 | J59: 1136.88 | K59: 1107.35 | L59: 1070 | M59: 0.91001
A60: 50 | B60: BAJFINANCE | C60: 7507.15 | D60: 7571.22 | E60: 7410.93 | F60: 7314.72 | G60: 7154.43 | H60: 7667.43 | I60: 7827.72 | J60: 7923.93 | K60: 7731.5 | L60: 7475 | M60: 14.12331
A61: 51 | B61: BAJAJFINSV | C61: 1721.9 | D61: 1738.17 | E61: 1698.13 | F61: 1674.37 | G61: 1634.33 | H61: 1761.93 | I61: 1801.97 | J61: 1825.73 | K61: 1778.2 | L61: 1714.4 | M61: 27.59913
A62: 52 | B62: BAJAJHLDNG | C62: 6848.5 | D62: 6876.18 | E62: 6782.37 | F62: 6716.23 | G62: 6622.42 | H62: 6942.32 | I62: 7036.13 | J62: 7102.27 | K62: 6970 | L62: 6810.05 | M62: 0.78763
A63: 53 | B63: BALAMINES | C63: 3549.05 | D63: 3577.37 | E63: 3511.73 | F63: 3474.42 | G63: 3408.78 | H63: 3614.68 | I63: 3680.32 | J63: 3717.63 | K63: 3643 | L63: 3540.05 | M63: 0.61899
A64: 54 | B64: BALKRISIND | C64: 1890.05 | D64: 1902.35 | E64: 1872.70 | F64: 1855.35 | G64: 1825.70 | H64: 1919.70 | I64: 1949.35 | J64: 1966.70 | K64: 1932 | L64: 1885 | M64: 2.33915
A65: 55 | B65: BALRAMCHIN | C65: 360.75 | D65: 364.40 | E65: 354.80 | F65: 348.85 | G65: 339.25 | H65: 370.35 | I65: 379.95 | J65: 385.90 | K65: 374 | L65: 358.45 | M65: 13.29234
A66: 56 | B66: BANDHANBNK | C66: 278.15 | D66: 280.10 | E66: 273.05 | F66: 267.95 | G66: 260.90 | H66: 285.20 | I66: 292.25 | J66: 297.35 | K66: 287.15 | L66: 275 | M66: 65.26403
A67: 57 | B67: BANKBARODA | C67: 132.5 | D67: 134.40 | E67: 129.80 | F67: 127.10 | G67: 122.50 | H67: 137.10 | I67: 141.70 | J67: 144.40 | K67: 139 | L67: 131.7 | M67: 418.20198
A68: 58 | B68: BANKINDIA | C68: 49.95 | D68: 50.30 | E68: 49.15 | F68: 48.35 | G68: 47.20 | H68: 51.10 | I68: 52.25 | J68: 53.05 | K68: 51.45 | L68: 49.5 | M68: 30.19475
A69: 59 | B69: MAHABANK | C69: 18.15 | D69: 18.28 | E69: 17.87 | F69: 17.58 | G69: 17.17 | H69: 18.57 | I69: 18.98 | J69: 19.27 | K69: 18.7 | L69: 18 | M69: 33.74344
A70: 60 | B70: BATAINDIA | C70: 1854.35 | D70: 1874.48 | E70: 1827.02 | F70: 1799.68 | G70: 1752.22 | H70: 1901.82 | I70: 1949.28 | J70: 1976.62 | K70: 1921.95 | L70: 1847.15 | M70: 2.4659
A71: 61 | B71: BAYERCROP | C71: 4838.95 | D71: 4857.65 | E71: 4796.30 | F71: 4753.65 | G71: 4692.30 | H71: 4900.30 | I71: 4961.65 | J71: 5004.30 | K71: 4919 | L71: 4815 | M71: 0.04709
A72: 62 | B72: BERGEPAINT | C72: 633.7 | D72: 634.90 | E72: 628.90 | F72: 624.10 | G72: 618.10 | H72: 639.70 | I72: 645.70 | J72: 650.50 | K72: 640.9 | L72: 630.1 | M72: 5.35879
A73: 63 | B73: BDL | C73: 911.25 | D73: 916.75 | E73: 898.50 | F73: 885.75 | G73: 867.50 | H73: 929.50 | I73: 947.75 | J73: 960.50 | K73: 935 | L73: 904 | M73: 8.08152
A74: 64 | B74: BEL | C74: 106.65 | D74: 107.92 | E74: 104.83 | F74: 103.02 | G74: 99.93 | H74: 109.73 | I74: 112.82 | J74: 114.63 | K74: 111 | L74: 106.1 | M74: 152.15768
A75: 65 | B75: BHARATFORG | C75: 747.1 | D75: 758.62 | E75: 733.33 | F75: 719.57 | G75: 694.28 | H75: 772.38 | I75: 797.67 | J75: 811.43 | K75: 783.9 | L75: 744.85 | M75: 12.05048
A76: 66 | B76: BHEL | C76: 58 | D76: 58.60 | E76: 57.05 | F76: 56.10 | G76: 54.55 | H76: 59.55 | I76: 61.10 | J76: 62.05 | K76: 60.15 | L76: 57.65 | M76: 206.65995
A77: 67 | B77: BPCL | C77: 311.95 | D77: 313.25 | E77: 309.70 | F77: 307.45 | G77: 303.90 | H77: 315.50 | I77: 319.05 | J77: 321.30 | K77: 316.8 | L77: 311 | M77: 27.5838
A78: 68 | B78: BHARTIARTL | C78: 771.35 | D78: 776.02 | E78: 764.03 | F78: 756.72 | G78: 744.73 | H78: 783.33 | I78: 795.32 | J78: 802.63 | K78: 788 | L78: 768.7 | M78: 92.71829
A79: 69 | B79: BIOCON | C79: 283.8 | D79: 286.47 | E79: 280.28 | F79: 276.77 | G79: 270.58 | H79: 289.98 | I79: 296.17 | J79: 299.68 | K79: 292.65 | L79: 282.95 | M79: 17.47197
A80: 70 | B80: BIRLACORPN | C80: 1022.85 | D80: 1032.85 | E80: 1005.00 | F80: 987.15 | G80: 959.30 | H80: 1050.70 | I80: 1078.55 | J80: 1096.40 | K80: 1060.7 | L80: 1015 | M80: 1.23532
A81: 71 | B81: BSOFT | C81: 299.15 | D81: 301.28 | E81: 295.87 | F81: 292.58 | G81: 287.17 | H81: 304.57 | I81: 309.98 | J81: 313.27 | K81: 306.7 | L81: 298 | M81: 18.15085
A82: 72 | B82: BLUEDART | C82: 8744.95 | D82: 8774.00 | E82: 8652.40 | F82: 8559.85 | G82: 8438.25 | H82: 8866.55 | I82: 8988.15 | J82: 9080.70 | K82: 8895.6 | L82: 8681.45 | M82: 0.13602
A83: 73 | B83: BLUESTARCO | C83: 1091.95 | D83: 1084.62 | E83: 1071.33 | F83: 1050.72 | G83: 1037.43 | H83: 1105.23 | I83: 1118.52 | J83: 1139.13 | K83: 1097.9 | L83: 1064 | M83: 0.52881
A84: 74 | B84: BBTC | C84: 940.65 | D84: 951.83 | E84: 923.82 | F84: 906.98 | G84: 878.97 | H84: 968.67 | I84: 996.68 | J84: 1013.52 | K84: 979.85 | L84: 935 | M84: 0.48378
A85: 75 | B85: BORORENEW | C85: 603.75 | D85: 608.53 | E85: 592.22 | F85: 580.68 | G85: 564.37 | H85: 620.07 | I85: 636.38 | J85: 647.92 | K85: 624.85 | L85: 597 | M85: 11.10452
A86: 76 | B86: BOSCHLTD | C86: 16223.35 | D86: 16402.83 | E86: 15970.67 | F86: 15717.98 | G86: 15285.82 | H86: 16655.52 | I86: 17087.68 | J86: 17340.37 | K86: 16835 | L86: 16150.15 | M86: 0.36144
A87: 77 | B87: BRIGADE | C87: 518.4 | D87: 523.83 | E87: 509.67 | F87: 500.93 | G87: 486.77 | H87: 532.57 | I87: 546.73 | J87: 555.47 | K87: 538 | L87: 515.1 | M87: 1.05304
A88: 78 | B88: BCG | C88: 36.5 | D88: 37.07 | E88: 35.73 | F88: 34.97 | G88: 33.63 | H88: 37.83 | I88: 39.17 | J88: 39.93 | K88: 38.4 | L88: 36.3 | M88: 88.10254
A89: 79 | B89: BRITANNIA | C89: 3796.7 | D89: 3807.28 | E89: 3771.77 | F89: 3746.83 | G89: 3711.32 | H89: 3832.22 | I89: 3867.73 | J89: 3892.67 | K89: 3842.8 | L89: 3782.35 | M89: 3.26581
A90: 80 | B90: MAPMYINDIA | C90: 1341 | D90: 1347.50 | E90: 1327.20 | F90: 1313.40 | G90: 1293.10 | H90: 1361.30 | I90: 1381.60 | J90: 1395.40 | K90: 1367.8 | L90: 1333.7 | M90: 0.52018
A91: 81 | B91: CCL | C91: 508.15 | D91: 513.77 | E91: 498.38 | F91: 488.62 | G91: 473.23 | H91: 523.53 | I91: 538.92 | J91: 548.68 | K91: 529.15 | L91: 504 | M91: 0.9772
A92: 82 | B92: CESC | C92: 79.3 | D92: 79.62 | E92: 78.88 | F92: 78.47 | G92: 77.73 | H92: 80.03 | I92: 80.77 | J92: 81.18 | K92: 80.35 | L92: 79.2 | M92: 18.67511
A93: 83 | B93: CGPOWER | C93: 248.95 | D93: 250.88 | E93: 244.97 | F93: 240.98 | G93: 235.07 | H93: 254.87 | I93: 260.78 | J93: 264.77 | K93: 256.8 | L93: 246.9 | M93: 16.17308
A94: 84 | B94: CRISIL | C94: 3286.05 | D94: 3256.45 | E94: 3212.90 | F94: 3139.75 | G94: 3096.20 | H94: 3329.60 | I94: 3373.15 | J94: 3446.30 | K94: 3300 | L94: 3183.3 | M94: 0.67012
A95: 85 | B95: CSBBANK | C95: 231.55 | D95: 232.08 | E95: 226.72 | F95: 221.88 | G95: 216.52 | H95: 236.92 | I95: 242.28 | J95: 247.12 | K95: 237.45 | L95: 227.25 | M95: 1.7363
A96: 86 | B96: CANFINHOME | C96: 517.45 | D96: 523.47 | E96: 498.98 | F96: 480.52 | G96: 456.03 | H96: 541.93 | I96: 566.42 | J96: 584.88 | K96: 547.95 | L96: 505 | M96: 42.92209
A97: 87 | B97: CANBK | C97: 229.1 | D97: 233.63 | E97: 223.67 | F97: 218.23 | G97: 208.27 | H97: 239.07 | I97: 249.03 | J97: 254.47 | K97: 243.6 | L97: 228.2 | M97: 117.26325
A98: 88 | B98: CAPLIPOINT | C98: 717.55 | D98: 724.80 | E98: 706.80 | F98: 696.05 | G98: 678.05 | H98: 735.55 | I98: 753.55 | J98: 764.30 | K98: 742.8 | L98: 714.05 | M98: 0.40551
A99: 89 | B99: CGCL | C99: 727.2 | D99: 727.40 | E99: 722.80 | F99: 718.40 | G99: 713.80 | H99: 731.80 | I99: 736.40 | J99: 740.80 | K99: 732 | L99: 723 | M99: 0.40634
A100: 90 | B100: CARBORUNIV | C100: 838.5 | D100: 836.10 | E100: 823.50 | F100: 808.50 | G100: 795.90 | H100: 851.10 | I100: 863.70 | J100: 878.70 | K100: 848.7 | L100: 821.1 | M100: 1.11091
A101: 91 | B101: CASTROLIND | C101: 113.25 | D101: 113.53 | E101: 112.32 | F101: 111.38 | G101: 110.17 | H101: 114.47 | I101: 115.68 | J101: 116.62 | K101: 114.75 | L101: 112.6 | M101: 16.08844
A102: 92 | B102: CEATLTD | C102: 1545.1 | D102: 1562.93 | E102: 1512.17 | F102: 1479.23 | G102: 1428.47 | H102: 1595.87 | I102: 1646.63 | J102: 1679.57 | K102: 1613.7 | L102: 1530 | M102: 1.39422
A103: 93 | B103: CENTRALBK | C103: 20.6 | D103: 20.83 | E103: 20.27 | F103: 19.93 | G103: 19.37 | H103: 21.17 | I103: 21.73 | J103: 22.07 | K103: 21.4 | L103: 20.5 | M103: 53.78658
A104: 94 | B104: CDSL | C104: 1305.4 | D104: 1311.33 | E104: 1295.07 | F104: 1284.73 | G104: 1268.47 | H104: 1321.67 | I104: 1337.93 | J104: 1348.27 | K104: 1327.6 | L104: 1301 | M104: 2.99582
A105: 95 | B105: CENTURYPLY | C105: 659.7 | D105: 656.42 | E105: 648.28 | F105: 636.87 | G105: 628.73 | H105: 667.83 | I105: 675.97 | J105: 687.38 | K105: 664.55 | L105: 645 | M105: 3.74244
A106: 96 | B106: CENTURYTEX | C106: 864.7 | D106: 876.95 | E106: 843.75 | F106: 822.80 | G106: 789.60 | H106: 897.90 | I106: 931.10 | J106: 952.05 | K106: 910.15 | L106: 856 | M106: 3.24456
A107: 97 | B107: CERA | C107: 5638.45 | D107: 5688.47 | E107: 5574.98 | F107: 5511.52 | G107: 5398.03 | H107: 5751.93 | I107: 5865.42 | J107: 5928.88 | K107: 5801.95 | L107: 5625 | M107: 0.11674
A108: 98 | B108: CHALET | C108: 340.2 | D108: 342.98 | E108: 331.22 | F108: 322.23 | G108: 310.47 | H108: 351.97 | I108: 363.73 | J108: 372.72 | K108: 354.75 | L108: 334 | M108: 1.56968
A109: 99 | B109: CHAMBLFERT | C109: 329.5 | D109: 334.68 | E109: 321.82 | F109: 314.13 | G109: 301.27 | H109: 342.37 | I109: 355.23 | J109: 362.92 | K109: 347.55 | L109: 327 | M109: 16.24067
A110: 100 | B110: CHEMPLASTS | C110: 425.35 | D110: 429.58 | E110: 419.77 | F110: 414.18 | G110: 404.37 | H110: 435.17 | I110: 444.98 | J110: 450.57 | K110: 439.4 | L110: 424 | M110: 0.83224
A111: 101 | B111: CHOLAHLDNG | C111: 653.3 | D111: 660.92 | E111: 643.38 | F111: 633.47 | G111: 615.93 | H111: 670.83 | I111: 688.37 | J111: 698.28 | K111: 678.45 | L111: 651 | M111: 0.46061
A112: 102 | B112: CHOLAFIN | C112: 738.5 | D112: 751.00 | E112: 720.05 | F112: 701.60 | G112: 670.65 | H112: 769.45 | I112: 800.40 | J112: 818.85 | K112: 781.95 | L112: 732.55 | M112: 30.54292
A113: 103 | B113: CIPLA | C113: 1068.1 | D113: 1074.78 | E113: 1056.57 | F113: 1045.03 | G113: 1026.82 | H113: 1086.32 | I113: 1104.53 | J113: 1116.07 | K113: 1093 | L113: 1063.25 | M113: 32.68298
A114: 104 | B114: CUB | C114: 176.15 | D114: 177.18 | E114: 173.37 | F114: 170.58 | G114: 166.77 | H114: 179.97 | I114: 183.78 | J114: 186.57 | K114: 181 | L114: 174.4 | M114: 38.21741
A115: 105 | B115: CLEAN | C115: 1851.7 | D115: 1862.12 | E115: 1839.58 | F115: 1827.47 | G115: 1804.93 | H115: 1874.23 | I115: 1896.77 | J115: 1908.88 | K115: 1884.65 | L115: 1850 | M115: 0.65743
A116: 106 | B116: COALINDIA | C116: 222.85 | D116: 223.60 | E116: 220.25 | F116: 217.65 | G116: 214.30 | H116: 226.20 | I116: 229.55 | J116: 232.15 | K116: 226.95 | L116: 221 | M116: 54.95315
A117: 107 | B117: COCHINSHIP | C117: 427.55 | D117: 426.52 | E117: 420.03 | F117: 412.52 | G117: 406.03 | H117: 434.03 | I117: 440.52 | J117: 448.03 | K117: 433 | L117: 419 | M117: 6.83498
A118: 108 | B118: COFORGE | C118: 3336.55 | D118: 3371.47 | E118: 3287.93 | F118: 3239.32 | G118: 3155.78 | H118: 3420.08 | I118: 3503.62 | J118: 3552.23 | K118: 3455 | L118: 3322.85 | M118: 2.47536
A119: 109 | B119: COLPAL | C119: 1578.1 | D119: 1580.47 | E119: 1561.93 | F119: 1545.77 | G119: 1527.23 | H119: 1596.63 | I119: 1615.17 | J119: 1631.33 | K119: 1599 | L119: 1564.3 | M119: 2.12676
A120: 110 | B120: CAMS | C120: 2549.15 | D120: 2543.72 | E120: 2499.43 | F120: 2449.72 | G120: 2405.43 | H120: 2593.43 | I120: 2637.72 | J120: 2687.43 | K120: 2588 | L120: 2494 | M120: 1.4179
A121: 111 | B121: CONCOR | C121: 726.55 | D121: 734.72 | E121: 714.38 | F121: 702.22 | G121: 681.88 | H121: 746.88 | I121: 767.22 | J121: 779.38 | K121: 755.05 | L121: 722.55 | M121: 10.39225
A122: 112 | B122: COROMANDEL | C122: 1008.4 | D122: 1022.18 | E122: 988.37 | F122: 968.33 | G122: 934.52 | H122: 1042.22 | I122: 1076.03 | J122: 1096.07 | K122: 1056 | L122: 1002.15 | M122: 3.54498
A123: 113 | B123: CREDITACC | C123: 993.5 | D123: 992.13 | E123: 978.62 | F123: 963.73 | G123: 950.22 | H123: 1007.02 | I123: 1020.53 | J123: 1035.42 | K123: 1005.65 | L123: 977.25 | M123: 1.02924
A124: 114 | B124: CROMPTON | C124: 401.8 | D124: 401.58 | E124: 397.27 | F124: 392.73 | G124: 388.42 | H124: 406.12 | I124: 410.43 | J124: 414.97 | K124: 405.9 | L124: 397.05 | M124: 16.85958
A125: 115 | B125: CUMMINSIND | C125: 1219 | D125: 1231.33 | E125: 1202.67 | F125: 1186.33 | G125: 1157.67 | H125: 1247.67 | I125: 1276.33 | J125: 1292.67 | K125: 1260 | L125: 1215 | M125: 5.96214
A126: 116 | B126: CYIENT | C126: 803.85 | D126: 808.02 | E126: 796.43 | F126: 789.02 | G126: 777.43 | H126: 815.43 | I126: 827.02 | J126: 834.43 | K126: 819.6 | L126: 800.6 | M126: 0.93605
A127: 117 | B127: DCMSHRIRAM | C127: 1038.65 | D127: 1043.17 | E127: 1030.53 | F127: 1022.42 | G127: 1009.78 | H127: 1051.28 | I127: 1063.92 | J127: 1072.03 | K127: 1055.8 | L127: 1035.05 | M127: 0.24385
A128: 118 | B128: DLF | C128: 369.95 | D128: 373.43 | E128: 364.67 | F128: 359.38 | G128: 350.62 | H128: 378.72 | I128: 387.48 | J128: 392.77 | K128: 382.2 | L128: 368.15 | M128: 40.60146
A129: 119 | B129: DABUR | C129: 568.55 | D129: 570.98 | E129: 565.12 | F129: 561.68 | G129: 555.82 | H129: 574.42 | I129: 580.28 | J129: 583.72 | K129: 576.85 | L129: 567.55 | M129: 11.56625
A130: 120 | B130: DALBHARAT | C130: 1580.1 | D130: 1609.47 | E130: 1541.63 | F130: 1503.17 | G130: 1435.33 | H130: 1647.93 | I130: 1715.77 | J130: 1754.23 | K130: 1677.3 | L130: 1571 | M130: 2.65789
A131: 121 | B131: DEEPAKNTR | C131: 2163.7 | D131: 2175.22 | E131: 2133.48 | F131: 2103.27 | G131: 2061.53 | H131: 2205.43 | I131: 2247.17 | J131: 2277.38 | K131: 2216.95 | L131: 2145 | M131: 12.54733
A132: 122 | B132: DELTACORP | C132: 209.55 | D132: 210.98 | E132: 207.07 | F132: 204.58 | G132: 200.67 | H132: 213.47 | I132: 217.38 | J132: 219.87 | K132: 214.9 | L132: 208.5 | M132: 28.58876
A133: 123 | B133: DEVYANI | C133: 190.85 | D133: 193.15 | E133: 187.30 | F133: 183.75 | G133: 177.90 | H133: 196.70 | I133: 202.55 | J133: 206.10 | K133: 199 | L133: 189.6 | M133: 39.54872
A134: 124 | B134: DHANI | C134: 49.85 | D134: 50.23 | E134: 48.77 | F134: 47.68 | G134: 46.22 | H134: 51.32 | I134: 52.78 | J134: 53.87 | K134: 51.7 | L134: 49.15 | M134: 13.32436
A135: 125 | B135: DBL | C135: 229.85 | D135: 231.87 | E135: 226.63 | F135: 223.42 | G135: 218.18 | H135: 235.08 | I135: 240.32 | J135: 243.53 | K135: 237.1 | L135: 228.65 | M135: 1.83001
A136: 126 | B136: DIVISLAB | C136: 3642.6 | D136: 3637.92 | E136: 3575.83 | F136: 3509.07 | G136: 3446.98 | H136: 3704.68 | I136: 3766.77 | J136: 3833.53 | K136: 3700 | L136: 3571.15 | M136: 7.61456
A137: 127 | B137: DIXON | C137: 4314.35 | D137: 4376.05 | E137: 4239.40 | F137: 4164.45 | G137: 4027.80 | H137: 4451.00 | I137: 4587.65 | J137: 4662.60 | K137: 4512.7 | L137: 4301.1 | M137: 2.10879
A138: 128 | B138: LALPATHLAB | C138: 2514.9 | D138: 2492.58 | E138: 2446.17 | F138: 2377.43 | G138: 2331.02 | H138: 2561.32 | I138: 2607.73 | J138: 2676.47 | K138: 2539 | L138: 2423.85 | M138: 5.28933
A139: 129 | B139: DRREDDY | C139: 4139.2 | D139: 4161.15 | E139: 4107.55 | F139: 4075.90 | G139: 4022.30 | H139: 4192.80 | I139: 4246.40 | J139: 4278.05 | K139: 4214.75 | L139: 4129.5 | M139: 3.31988
A140: 130 | B140: EIDPARRY | C140: 568.75 | D140: 572.43 | E140: 557.97 | F140: 547.18 | G140: 532.72 | H140: 583.22 | I140: 597.68 | J140: 608.47 | K140: 586.9 | L140: 561.65 | M140: 2.3082
A141: 131 | B141: EIHOTEL | C141: 198.85 | D141: 197.42 | E141: 194.03 | F141: 189.22 | G141: 185.83 | H141: 202.23 | I141: 205.62 | J141: 210.43 | K141: 200.8 | L141: 192.6 | M141: 13.20032
A142: 132 | B142: EPL | C142: 163.55 | D142: 164.42 | E142: 162.13 | F142: 160.72 | G142: 158.43 | H142: 165.83 | I142: 168.12 | J142: 169.53 | K142: 166.7 | L142: 163 | M142: 0.92603
A143: 133 | B143: EASEMYTRIP | C143: 383.95 | D143: 391.58 | E143: 374.37 | F143: 364.78 | G143: 347.57 | H143: 401.17 | I143: 418.38 | J143: 427.97 | K143: 408.8 | L143: 382 | M143: 28.01643
A144: 134 | B144: EDELWEISS | C144: 62.25 | D144: 62.52 | E144: 61.43 | F144: 60.62 | G144: 59.53 | H144: 63.33 | I144: 64.42 | J144: 65.23 | K144: 63.6 | L144: 61.7 | M144: 11.15439
A145: 135 | B145: EICHERMOT | C145: 3688.45 | D145: 3704.77 | E145: 3635.08 | F145: 3581.72 | G145: 3512.03 | H145: 3758.13 | I145: 3827.82 | J145: 3881.18 | K145: 3774.45 | L145: 3651.4 | M145: 4.36539
A146: 136 | B146: ELGIEQUIP | C146: 449.95 | D146: 454.47 | E146: 439.13 | F146: 428.32 | G146: 412.98 | H146: 465.28 | I146: 480.62 | J146: 491.43 | K146: 469.8 | L146: 443.65 | M146: 3.8347
A147: 137 | B147: EMAMILTD | C147: 495.65 | D147: 498.78 | E147: 488.02 | F147: 480.38 | G147: 469.62 | H147: 506.42 | I147: 517.18 | J147: 524.82 | K147: 509.55 | L147: 491.15 | M147: 1.50678
A148: 138 | B148: ENDURANCE | C148: 1453.85 | D148: 1448.28 | E148: 1431.57 | F148: 1409.28 | G148: 1392.57 | H148: 1470.57 | I148: 1487.28 | J148: 1509.57 | K148: 1465 | L148: 1426 | M148: 3.04158
A149: 139 | B149: ENGINERSIN | C149: 65.2 | D149: 65.52 | E149: 64.68 | F149: 64.17 | G149: 63.33 | H149: 66.03 | I149: 66.87 | J149: 67.38 | K149: 66.35 | L149: 65 | M149: 6.03179
A150: 140 | B150: EQUITAS | C150: 100.8 | D150: 101.55 | E150: 99.25 | F150: 97.70 | G150: 95.40 | H150: 103.10 | I150: 105.40 | J150: 106.95 | K150: 103.85 | L150: 100 | M150: 3.1166
A151: 141 | B151: EQUITASBNK | C151: 49.3 | D151: 49.58 | E151: 48.47 | F151: 47.63 | G151: 46.52 | H151: 50.42 | I151: 51.53 | J151: 52.37 | K151: 50.7 | L151: 48.75 | M151: 6.35233
A152: 142 | B152: ERIS | C152: 693.2 | D152: 698.15 | E152: 686.00 | F152: 678.80 | G152: 666.65 | H152: 705.35 | I152: 717.50 | J152: 724.70 | K152: 710.3 | L152: 690.95 | M152: 0.18929
A153: 143 | B153: ESCORTS | C153: 2076.65 | D153: 2110.55 | E153: 2031.10 | F153: 1985.55 | G153: 1906.10 | H153: 2156.10 | I153: 2235.55 | J153: 2281.10 | K153: 2190 | L153: 2065 | M153: 13.78417
A154: 144 | B154: EXIDEIND | C154: 158.35 | D154: 159.55 | E154: 156.60 | F154: 154.85 | G154: 151.90 | H154: 161.30 | I154: 164.25 | J154: 166.00 | K154: 162.5 | L154: 157.8 | M154: 24.68501
A155: 145 | B155: FDC | C155: 275.55 | D155: 275.83 | E155: 273.02 | F155: 270.48 | G155: 267.67 | H155: 278.37 | I155: 281.18 | J155: 283.72 | K155: 278.65 | L155: 273.3 | M155: 0.63938
A156: 146 | B156: NYKAA | C156: 1307.5 | D156: 1314.82 | E156: 1296.68 | F156: 1285.87 | G156: 1267.73 | H156: 1325.63 | I156: 1343.77 | J156: 1354.58 | K156: 1332.95 | L156: 1304 | M156: 1.00891
A157: 147 | B157: FEDERALBNK | C157: 116.75 | D157: 118.65 | E157: 114.00 | F157: 111.25 | G157: 106.60 | H157: 121.40 | I157: 126.05 | J157: 128.80 | K157: 123.3 | L157: 115.9 | M157: 143.01412
A158: 148 | B158: FACT | C158: 114.4 | D158: 115.48 | E158: 112.17 | F158: 109.93 | G158: 106.62 | H158: 117.72 | I158: 121.03 | J158: 123.27 | K158: 118.8 | L158: 113.25 | M158: 0.86939
A159: 149 | B159: FINEORG | C159: 7087.75 | D159: 7108.28 | E159: 6997.57 | F159: 6907.38 | G159: 6796.67 | H159: 7198.47 | I159: 7309.18 | J159: 7399.37 | K159: 7219 | L159: 7018.1 | M159: 0.70053
A160: 150 | B160: FINCABLES | C160: 464.85 | D160: 461.35 | E160: 447.80 | F160: 430.75 | G160: 417.20 | H160: 478.40 | I160: 491.95 | J160: 509.00 | K160: 474.9 | L160: 444.3 | M160: 1.48354
A161: 151 | B161: FINPIPE | C161: 143.8 | D161: 143.87 | E161: 141.93 | F161: 140.07 | G161: 138.13 | H161: 145.73 | I161: 147.67 | J161: 149.53 | K161: 145.8 | L161: 142 | M161: 3.10543
A162: 152 | B162: FSL | C162: 104.95 | D162: 106.07 | E162: 103.48 | F162: 102.02 | G162: 99.43 | H162: 107.53 | I162: 110.12 | J162: 111.58 | K162: 108.65 | L162: 104.6 | M162: 28.22624
A163: 153 | B163: FORTIS | C163: 262.25 | D163: 260.45 | E163: 253.10 | F163: 243.95 | G163: 236.60 | H163: 269.60 | I163: 276.95 | J163: 286.10 | K163: 267.8 | L163: 251.3 | M163: 141.05644
A164: 154 | B164: GRINFRA | C164: 1248.25 | D164: 1257.72 | E164: 1229.93 | F164: 1211.62 | G164: 1183.83 | H164: 1276.03 | I164: 1303.82 | J164: 1322.13 | K164: 1285.5 | L164: 1239.4 | M164: 0.77408
A165: 155 | B165: GAIL | C165: 86 | D165: 86.73 | E165: 84.97 | F165: 83.93 | G165: 82.17 | H165: 87.77 | I165: 89.53 | J165: 90.57 | K165: 88.5 | L165: 85.7 | M165: 86.32586
A166: 156 | B166: GMMPFAUDLR | C166: 1884.85 | D166: 1896.35 | E166: 1858.60 | F166: 1832.35 | G166: 1794.60 | H166: 1922.60 | I166: 1960.35 | J166: 1986.60 | K166: 1934.1 | L166: 1870.1 | M166: 1.14376
A167: 157 | B167: GMRINFRA | C167: 37.2 | D167: 37.35 | E167: 36.65 | F167: 36.10 | G167: 35.40 | H167: 37.90 | I167: 38.60 | J167: 39.15 | K167: 38.05 | L167: 36.8 | M167: 142.95733
A168: 158 | B168: GALAXYSURF | C168: 3156.35 | D168: 3151.62 | E168: 3116.73 | F168: 3077.12 | G168: 3042.23 | H168: 3191.23 | I168: 3226.12 | J168: 3265.73 | K168: 3186.5 | L168: 3112 | M168: 0.19836
A169: 159 | B169: GARFIBRES | C169: 3424 | D169: 3424.88 | E169: 3351.77 | F169: 3279.53 | G169: 3206.42 | H169: 3497.12 | I169: 3570.23 | J169: 3642.47 | K169: 3498 | L169: 3352.65 | M169: 0.02801
A170: 160 | B170: GICRE | C170: 123.6 | D170: 125.18 | E170: 121.52 | F170: 119.43 | G170: 115.77 | H170: 127.27 | I170: 130.93 | J170: 133.02 | K170: 128.85 | L170: 123.1 | M170: 1.4278
A171: 161 | B171: GLAND | C171: 2143.45 | D171: 2152.65 | E171: 2112.60 | F171: 2081.75 | G171: 2041.70 | H171: 2183.50 | I171: 2223.55 | J171: 2254.40 | K171: 2192.7 | L171: 2121.8 | M171: 3.45348
A172: 162 | B172: GLAXO | C172: 1404.25 | D172: 1408.73 | E172: 1392.67 | F172: 1381.08 | G172: 1365.02 | H172: 1420.32 | I172: 1436.38 | J172: 1447.97 | K172: 1424.8 | L172: 1397.15 | M172: 0.61933
A173: 163 | B173: GLS | C173: 408.75 | D173: 409.73 | E173: 404.47 | F173: 400.18 | G173: 394.92 | H173: 414.02 | I173: 419.28 | J173: 423.57 | K173: 415 | L173: 405.45 | M173: 0.68891
A174: 164 | B174: GLENMARK | C174: 384.7 | D174: 385.37 | E174: 381.48 | F174: 378.27 | G174: 374.38 | H174: 388.58 | I174: 392.47 | J174: 395.68 | K174: 389.25 | L174: 382.15 | M174: 6.44373
A175: 165 | B175: GOCOLORS | C175: 1295 | D175: 1288.00 | E175: 1252.00 | F175: 1209.00 | G175: 1173.00 | H175: 1331.00 | I175: 1367.00 | J175: 1410.00 | K175: 1324 | L175: 1245 | M175: 0.77075
A176: 166 | B176: GODFRYPHLP | C176: 1179.75 | D176: 1166.43 | E176: 1143.87 | F176: 1107.98 | G176: 1085.42 | H176: 1202.32 | I176: 1224.88 | J176: 1260.77 | K176: 1189 | L176: 1130.55 | M176: 1.58735
A177: 167 | B177: GODREJAGRO | C177: 519.5 | D177: 518.53 | E177: 516.07 | F177: 512.63 | G177: 510.17 | H177: 521.97 | I177: 524.43 | J177: 527.87 | K177: 521 | L177: 515.1 | M177: 0.51827
A178: 168 | B178: GODREJCP | C178: 890.45 | D178: 895.45 | E178: 881.10 | F178: 871.75 | G178: 857.40 | H178: 904.80 | I178: 919.15 | J178: 928.50 | K178: 909.8 | L178: 886.1 | M178: 6.57299
A179: 169 | B179: GODREJIND | C179: 457.85 | D179: 459.70 | E179: 454.90 | F179: 451.95 | G179: 447.15 | H179: 462.65 | I179: 467.45 | J179: 470.40 | K179: 464.5 | L179: 456.75 | M179: 1.50233
A180: 170 | B180: GODREJPROP | C180: 1227.95 | D180: 1235.85 | E180: 1215.70 | F180: 1203.45 | G180: 1183.30 | H180: 1248.10 | I180: 1268.25 | J180: 1280.50 | K180: 1256 | L180: 1223.6 | M180: 5.26101
A181: 171 | B181: GRANULES | C181: 323.45 | D181: 325.47 | E181: 318.98 | F181: 314.52 | G181: 308.03 | H181: 329.93 | I181: 336.42 | J181: 340.88 | K181: 331.95 | L181: 321 | M181: 36.46211
A182: 172 | B182: GRAPHITE | C182: 368.05 | D182: 371.92 | E182: 362.63 | F182: 357.22 | G182: 347.93 | H182: 377.33 | I182: 386.62 | J182: 392.03 | K182: 381.2 | L182: 366.5 | M182: 4.75944
A183: 173 | B183: GRASIM | C183: 1697.4 | D183: 1707.30 | E183: 1680.10 | F183: 1662.80 | G183: 1635.60 | H183: 1724.60 | I183: 1751.80 | J183: 1769.10 | K183: 1734.5 | L183: 1690 | M183: 6.36418
A184: 174 | B184: GESHIP | C184: 523.8 | D184: 526.00 | E184: 510.85 | F184: 497.90 | G184: 482.75 | H184: 538.95 | I184: 554.10 | J184: 567.05 | K184: 541.15 | L184: 513.05 | M184: 1.45399
A185: 175 | B185: GRINDWELL | C185: 2138.75 | D185: 2161.17 | E185: 2109.08 | F185: 2079.42 | G185: 2027.33 | H185: 2190.83 | I185: 2242.92 | J185: 2272.58 | K185: 2213.25 | L185: 2131.5 | M185: 0.22017
A186: 176 | B186: GUJALKALI | C186: 876.2 | D186: 883.70 | E186: 862.40 | F186: 848.60 | G186: 827.30 | H186: 897.50 | I186: 918.80 | J186: 932.60 | K186: 905 | L186: 869.9 | M186: 1.58775
A187: 177 | B187: GAEL | C187: 310.3 | D187: 310.70 | E187: 302.70 | F187: 295.10 | G187: 287.10 | H187: 318.30 | I187: 326.30 | J187: 333.90 | K187: 318.7 | L187: 303.1 | M187: 16.15225
A188: 178 | B188: FLUOROCHEM | C188: 3696.5 | D188: 3709.48 | E188: 3652.02 | F188: 3607.53 | G188: 3550.07 | H188: 3753.97 | I188: 3811.43 | J188: 3855.92 | K188: 3766.95 | L188: 3665 | M188: 1.01314
A189: 179 | B189: GUJGASLTD | C189: 500.35 | D189: 506.77 | E189: 488.58 | F189: 476.82 | G189: 458.63 | H189: 518.53 | I189: 536.72 | J189: 548.48 | K189: 524.95 | L189: 495 | M189: 14.33867
A190: 180 | B190: GNFC | C190: 667.35 | D190: 677.03 | E190: 654.57 | F190: 641.78 | G190: 619.32 | H190: 689.82 | I190: 712.28 | J190: 725.07 | K190: 699.5 | L190: 664.25 | M190: 13.21053
A191: 181 | B191: GPPL | C191: 88.95 | D191: 88.72 | E191: 87.53 | F191: 86.12 | G191: 84.93 | H191: 90.13 | I191: 91.32 | J191: 92.73 | K191: 89.9 | L191: 87.3 | M191: 10.80785
A192: 182 | B192: GSFC | C192: 130.15 | D192: 131.27 | E192: 128.73 | F192: 127.32 | G192: 124.78 | H192: 132.68 | I192: 135.22 | J192: 136.63 | K192: 133.8 | L192: 129.85 | M192: 12.03974
A193: 183 | B193: GSPL | C193: 234.1 | D193: 236.55 | E193: 230.55 | F193: 227.00 | G193: 221.00 | H193: 240.10 | I193: 246.10 | J193: 249.65 | K193: 242.55 | L193: 233 | M193: 5.37705
A194: 184 | B194: HEG | C194: 1103.6 | D194: 1114.23 | E194: 1089.47 | F194: 1075.33 | G194: 1050.57 | H194: 1128.37 | I194: 1153.13 | J194: 1167.27 | K194: 1139 | L194: 1100.1 | M194: 0.8736
A195: 185 | B195: HCLTECH | C195: 895.85 | D195: 900.15 | E195: 887.70 | F195: 879.55 | G195: 867.10 | H195: 908.30 | I195: 920.75 | J195: 928.90 | K195: 912.6 | L195: 892 | M195: 25.69608
A196: 186 | B196: HDFCAMC | C196: 1886.8 | D196: 1897.20 | E196: 1869.60 | F196: 1852.40 | G196: 1824.80 | H196: 1914.40 | I196: 1942.00 | J196: 1959.20 | K196: 1924.8 | L196: 1880 | M196: 1.85568
A197: 187 | B197: HDFCBANK | C197: 1446.15 | D197: 1452.72 | E197: 1430.43 | F197: 1414.72 | G197: 1392.43 | H197: 1468.43 | I197: 1490.72 | J197: 1506.43 | K197: 1475 | L197: 1437 | M197: 79.03126
A198: 188 | B198: HDFCLIFE | C198: 539.45 | D198: 540.52 | E198: 536.03 | F198: 532.62 | G198: 528.13 | H198: 543.93 | I198: 548.42 | J198: 551.83 | K198: 545 | L198: 537.1 | M198: 21.1815
A199: 189 | B199: HFCL | C199: 73 | D199: 73.70 | E199: 71.75 | F199: 70.50 | G199: 68.55 | H199: 74.95 | I199: 76.90 | J199: 78.15 | K199: 75.65 | L199: 72.45 | M199: 64.32148
A200: 190 | B200: HLEGLAS | C200: 3658.25 | D200: 3714.58 | E200: 3579.17 | F200: 3500.08 | G200: 3364.67 | H200: 3793.67 | I200: 3929.08 | J200: 4008.17 | K200: 3850 | L200: 3635.5 | M200: 0.1073
A201: 191 | B201: HAPPSTMNDS | C201: 1012.15 | D201: 1017.62 | E201: 1001.53 | F201: 990.92 | G201: 974.83 | H201: 1028.23 | I201: 1044.32 | J201: 1054.93 | K201: 1033.7 | L201: 1007 | M201: 3.04028
A202: 192 | B202: HATHWAY | C202: 16.95 | D202: 17.00 | E202: 16.85 | F202: 16.75 | G202: 16.60 | H202: 17.10 | I202: 17.25 | J202: 17.35 | K202: 17.15 | L202: 16.9 | M202: 13.82341
A203: 193 | B203: HATSUN | C203: 1053.7 | D203: 1061.38 | E203: 1042.87 | F203: 1032.03 | G203: 1013.52 | H203: 1072.22 | I203: 1090.73 | J203: 1101.57 | K203: 1079.9 | L203: 1050.55 | M203: 0.15335
A204: 194 | B204: HAVELLS | C204: 1306.45 | D204: 1308.15 | E204: 1291.30 | F204: 1276.15 | G204: 1259.30 | H204: 1323.30 | I204: 1340.15 | J204: 1355.30 | K204: 1325 | L204: 1293 | M204: 3.67687
A205: 195 | B205: HEMIPROP | C205: 97.15 | D205: 98.20 | E205: 95.95 | F205: 94.75 | G205: 92.50 | H205: 99.40 | I205: 101.65 | J205: 102.85 | K205: 100.45 | L205: 97 | M205: 10.83933
A206: 196 | B206: HEROMOTOCO | C206: 2762.05 | D206: 2772.23 | E206: 2732.22 | F206: 2702.38 | G206: 2662.37 | H206: 2802.07 | I206: 2842.08 | J206: 2871.92 | K206: 2812.25 | L206: 2742.4 | M206: 4.0893
... 320 more rows

Sheet Bulk Deals
E6: Back To Main Page
A7: Subject : | B7: BULK DEAL | D7: =Main!B10 -> 2022-09-26
A9: Date | B9: Scrip code | C9: Scrip Name | D9: Client Name | E9: Buy / Sell | F9: Quantity Traded | G9: Trade Price / Wt.Avg.trade price | H9: Exchange
A10: 2022-09-23 | B10: 531252 | C10: ANERI | D10: CHETNA KAMLESH SHAH | E10: BUY | F10: 15,184 | G10: 3.89 | H10: BSE
A11: 2022-09-23 | B11: 531252 | C11: ANERI | D11: ARTLINK VINTRADE LIMITED | E11: SELL | F11: 40,000 | G11: 3.89 | H11: BSE
A12: 2022-09-23 | B12: 531252 | C12: ANERI | D12: SNEHA SANJEEV LUNKAD | E12: SELL | F12: 35,000 | G12: 3.89 | H12: BSE
A13: 2022-09-23 | B13: 531252 | C13: ANERI | D13: DIVYA KANDA | E13: BUY | F13: 25,000 | G13: 3.89 | H13: BSE
A14: 2022-09-23 | B14: 542865 | C14: ANUROOP | D14: KRISHNAKUMARJANAKIRAM | E14: SELL | F14: 60,000 | G14: 23.95 | H14: BSE
A15: 2022-09-23 | B15: 543439 | C15: BRANDBUCKT | D15: HIREN PARAMANANDDAS SHAH | E15: BUY | F15: 20,000 | G15: 24.2 | H15: BSE
A16: 2022-09-23 | B16: 543439 | C16: BRANDBUCKT | D16: AMIT HASMUKH PARIKH | E16: SELL | F16: 28,000 | G16: 24.2 | H16: BSE
A17: 2022-09-23 | B17: 543516 | C17: DHYAANI | D17: RAJY ADVISORY SERVICES PRIVATE LIMITED | E17: BUY | F17: 10,000 | G17: 54 | H17: BSE
A18: 2022-09-23 | B18: 543516 | C18: DHYAANI | D18: GIRIRAJ STOCK BROKING PRIVATE LIMITED | E18: SELL | F18: 10,000 | G18: 54 | H18: BSE
A19: 2022-09-23 | B19: 543518 | C19: EIGHTY | D19: PREETI BHAUKA | E19: BUY | F19: 60,000 | G19: 75.79 | H19: BSE
A20: 2022-09-23 | B20: 543518 | C20: EIGHTY | D20: VIVEK KUMAR BHAUKA | E20: BUY | F20: 114,000 | G20: 75.61 | H20: BSE
A21: 2022-09-23 | B21: 530733 | C21: ENCODE | D21: BHAVISHYA ECOMMERCE PRIVATE LIMITED | E21: BUY | F21: 19,165 | G21: 8.38 | H21: BSE
A22: 2022-09-23 | B22: 530733 | C22: ENCODE | D22: NAVDEEP SINGH BHATTI | E22: BUY | F22: 37,000 | G22: 8.15 | H22: BSE
A23: 2022-09-23 | B23: 530733 | C23: ENCODE | D23: ANIL KUMAR SEHJRA | E23: SELL | F23: 37,000 | G23: 8.15 | H23: BSE
A24: 2022-09-23 | B24: 538928 | C24: KARNAVATI | D24: PRAKASHCHANDRA PANNALAL LAVTI | E24: SELL | F24: 80,000 | G24: 37 | H24: BSE
A25: 2022-09-23 | B25: 514240 | C25: KUSHIND | D25: DHARMIK HIMANSHUBHAI KOTHARI | E25: SELL | F25: 87,500 | G25: 11.13 | H25: BSE
A26: 2022-09-23 | B26: 533602 | C26: LESHAIND | D26: INFINITI INFRASTEEL LLP | E26: SELL | F26: 984,523 | G26: 10.64 | H26: BSE
A27: 2022-09-23 | B27: 543578 | C27: OLATECH | D27: BIMLA RAGHUBIRSINGH PARMAR | E27: SELL | F27: 12,000 | G27: 73.35 | H27: BSE
A28: 2022-09-23 | B28: 543578 | C28: OLATECH | D28: VINEET KUMAR TIBREWALA | E28: BUY | F28: 12,000 | G28: 76.68 | H28: BSE
A29: 2022-09-23 | B29: 543578 | C29: OLATECH | D29: VINEET KUMAR TIBREWALA | E29: SELL | F29: 12,000 | G29: 77.32 | H29: BSE
A30: 2022-09-23 | B30: 543578 | C30: OLATECH | D30: ANCHAL BANSAL | E30: SELL | F30: 16,000 | G30: 76.98 | H30: BSE
A31: 2022-09-23 | B31: 543578 | C31: OLATECH | D31: ANCHAL BANSAL | E31: BUY | F31: 16,000 | G31: 76.25 | H31: BSE
A32: 2022-09-23 | B32: 540198 | C32: OSIAJEE | D32: SWAPAN KARMAKAR | E32: SELL | F32: 250,001 | G32: 68.55 | H32: BSE
A33: 2022-09-23 | B33: 540198 | C33: OSIAJEE | D33: SWAPAN KARMAKAR | E33: BUY | F33: 250,001 | G33: 68.45 | H33: BSE
A34: 2022-09-23 | B34: 540198 | C34: OSIAJEE | D34: DARSHAN JAYSUKHLAL MEHTA | E34: BUY | F34: 1 | G34: 68.55 | H34: BSE
A35: 2022-09-23 | B35: 540198 | C35: OSIAJEE | D35: DARSHAN JAYSUKHLAL MEHTA | E35: SELL | F35: 50,001 | G35: 68.45 | H35: BSE
A36: 2022-09-23 | B36: 540198 | C36: OSIAJEE | D36: BHAVISHYA ECOMMERCE PRIVATE LIMITED | E36: BUY | F36: 13,887 | G36: 68.5 | H36: BSE
A37: 2022-09-23 | B37: 540198 | C37: OSIAJEE | D37: SHAIBAL GHOSH | E37: BUY | F37: 111,361 | G37: 68.51 | H37: BSE
A38: 2022-09-23 | B38: 540198 | C38: OSIAJEE | D38: SHAIBAL GHOSH | E38: SELL | F38: 45,871 | G38: 68.55 | H38: BSE
A39: 2022-09-23 | B39: 540198 | C39: OSIAJEE | D39: BHAVISHYA ECOMMERCE PRIVATE LIMITED | E39: SELL | F39: 60,000 | G39: 68.55 | H39: BSE
A40: 2022-09-23 | B40: 540198 | C40: OSIAJEE | D40: ROUNAK LOHIA HUF | E40: SELL | F40: 56,316 | G40: 68.55 | H40: BSE
A41: 2022-09-23 | B41: 540198 | C41: OSIAJEE | D41: ZENAB AIYUB YACOOBALI | E41: BUY | F41: 174,640 | G41: 68.52 | H41: BSE
A42: 2022-09-23 | B42: 540198 | C42: OSIAJEE | D42: ZENAB AIYUB YACOOBALI | E42: SELL | F42: 173,744 | G42: 68.55 | H42: BSE
A43: 2022-09-23 | B43: 540198 | C43: OSIAJEE | D43: MULTIPLIER SHARE & STOCK ADVISORS PRIVATE LIMITED | E43: BUY | F43: 100,000 | G43: 68.55 | H43: BSE
A44: 2022-09-23 | B44: 540198 | C44: OSIAJEE | D44: CHETAN RASIKLAL SHAH | E44: BUY | F44: 135,385 | G44: 68.55 | H44: BSE
A45: 2022-09-23 | B45: 540198 | C45: OSIAJEE | D45: MULTIPLIER SHARE & STOCK ADVISORS PRIVATE LIMITED | E45: SELL | F45: 100,000 | G45: 68.53 | H45: BSE
A46: 2022-09-23 | B46: 540198 | C46: OSIAJEE | D46: CHETAN RASIKLAL SHAH | E46: SELL | F46: 135,385 | G46: 68.46 | H46: BSE
A47: 2022-09-23 | B47: 540198 | C47: OSIAJEE | D47: MAYANKAGRAWAL | E47: BUY | F47: 54,310 | G47: 68.55 | H47: BSE
A48: 2022-09-23 | B48: 523642 | C48: PIIND | D48: MAYANK SINGHAL | E48: SELL | F48: 1,000,000 | G48: 3150 | H48: BSE
A49: 2022-09-23 | B49: 540821 | C49: SADHNA | D49: MANISH MISHRA | E49: SELL | F49: 627,460 | G49: 20.34 | H49: BSE
A50: 2022-09-23 | B50: 540821 | C50: SADHNA | D50: MANISH MISHRA | E50: BUY | F50: 785,603 | G50: 21.48 | H50: BSE
A51: 2022-09-23 | B51: 540821 | C51: SADHNA | D51: KISHANSINH MANSINH RAJPUT | E51: BUY | F51: 699,997 | G51: 21.98 | H51: BSE
A52: 2022-09-23 | B52: 540821 | C52: SADHNA | D52: KISHANSINH MANSINH RAJPUT | E52: SELL | F52: 25,050 | G52: 20.1 | H52: BSE
A53: 2022-09-23 | B53: 540821 | C53: SADHNA | D53: MULTIPLIER SHARE & STOCK ADVISORS PRIVATE LIMITED | E53: BUY | F53: 1,654,632 | G53: 20.55 | H53: BSE
A54: 2022-09-23 | B54: 540821 | C54: SADHNA | D54: MULTIPLIER SHARE & STOCK ADVISORS PRIVATE LIMITED | E54: SELL | F54: 1,654,632 | G54: 21.93 | H54: BSE
A55: 2022-09-23 | B55: 540821 | C55: SADHNA | D55: ANSHU MISHRA | E55: SELL | F55: 120,231 | G55: 20.11 | H55: BSE
A56: 2022-09-23 | B56: 540821 | C56: SADHNA | D56: ANSHU MISHRA | E56: BUY | F56: 1,140,000 | G56: 21.96 | H56: BSE
A57: 2022-09-23 | B57: 543391 | C57: SGFRL | D57: SWAPNIL JAIN | E57: BUY | F57: 303,000 | G57: 47 | H57: BSE
A58: 2022-09-23 | B58: 543391 | C58: SGFRL | D58: ABANS FINANCE PRIVATE LIMITED | E58: SELL | F58: 420,000 | G58: 47 | H58: BSE
A59: 2022-09-23 | B59: 539593 | C59: SHIVA | D59: CHIRAG KIRTIKUMAR SHAH HUF | E59: BUY | F59: 93,200 | G59: 4.4 | H59: BSE
A60: 2022-09-23 | B60: 539593 | C60: SHIVA | D60: ANURAGI JAYESHKUMAR SIRESIYA | E60: SELL | F60: 92,752 | G60: 4.4 | H60: BSE
A61: 2022-09-23 | B61: 542034 | C61: SMGOLD | D61: PRIYANK SURESHKUMARUMAR SHAH | E61: SELL | F61: 105,345 | G61: 40.15 | H61: BSE
A62: 2022-09-23 | B62: 542034 | C62: SMGOLD | D62: YACOOBALI AIYUB MOHAMMED | E62: BUY | F62: 263,268 | G62: 39.96 | H62: BSE
A63: 2022-09-23 | B63: 542034 | C63: SMGOLD | D63: YACOOBALI AIYUB MOHAMMED | E63: SELL | F63: 306,157 | G63: 40.15 | H63: BSE
A64: 2022-09-23 | B64: 542034 | C64: SMGOLD | D64: VIKASA INDIA EIF I FUND-INCUBE GLOBAL OPPORTUNITIES | E64: BUY | F64: 51,000 | G64: 40.15 | H64: BSE
A65: 2022-09-23 | B65: 538923 | C65: SOFCOM | D65: RAJEEV KUMAR SINGH | E65: BUY | F65: 55,000 | G65: 36.25 | H65: BSE
A66: 2022-09-23 | B66: 538923 | C66: SOFCOM | D66: NARENDRAKUMAR MAGANLAL PATEL | E66: BUY | F66: 67,500 | G66: 36.25 | H66: BSE
A67: 2022-09-23 | B67: 538923 | C67: SOFCOM | D67: KISHORE MEHTA | E67: SELL | F67: 204,500 | G67: 36.25 | H67: BSE
A68: 2022-09-23 | B68: 539835 | C68: SUPERIOR | D68: RAMANLAL AGRAWAL | E68: SELL | F68: 189,000 | G68: 2.65 | H68: BSE
A69: 2022-09-23 | B69: 539835 | C69: SUPERIOR | D69: DOLF LEASING LIMITED | E69: BUY | F69: 189,000 | G69: 2.65 | H69: BSE
A70: 2022-09-23 | B70: 539278 | C70: SYMBIOX | D70: BP EQUITIES PVT. LTD. | E70: BUY | F70: 448,925 | G70: 6.62 | H70: BSE
A71: 2022-09-23 | B71: 539278 | C71: SYMBIOX | D71: BP EQUITIES PVT. LTD. | E71: SELL | F71: 813,277 | G71: 6.62 | H71: BSE
A72: 2022-09-23 | B72: 539278 | C72: SYMBIOX | D72: KUSH GUPTA | E72: SELL | F72: 200,000 | G72: 6.62 | H72: BSE
A73: 2022-09-23 | B73: 539278 | C73: SYMBIOX | D73: SUBH PRABHAT MULTI PROJECTS LTD | E73: SELL | F73: 370,000 | G73: 6.62 | H73: BSE
A74: 2022-09-23 | B74: 539278 | C74: SYMBIOX | D74: LUV GUPTA | E74: SELL | F74: 480,000 | G74: 6.62 | H74: BSE
A75: 2022-09-23 | B75: 539278 | C75: SYMBIOX | D75: VIKAS GUPTA | E75: SELL | F75: 700,000 | G75: 6.62 | H75: BSE
A76: 2022-09-23 | B76: 539278 | C76: SYMBIOX | D76: BONANZA PORTFOLIO LIMITED | E76: SELL | F76: 265,000 | G76: 6.61 | H76: BSE
A77: 2022-09-23 | B77: 539278 | C77: SYMBIOX | D77: BONANZA PORTFOLIO LIMITED | E77: BUY | F77: 265,000 | G77: 6.62 | H77: BSE
A78: 2022-09-23 | B78: 539278 | C78: SYMBIOX | D78: RAHUL GOYAL | E78: BUY | F78: 200,000 | G78: 6.62 | H78: BSE
A79: 2022-09-23 | B79: 539278 | C79: SYMBIOX | D79: SUNITA KHANDELWAL | E79: BUY | F79: 160,000 | G79: 6.62 | H79: BSE
A80: 2022-09-23 | B80: 539278 | C80: SYMBIOX | D80: MADHUR BUILDCON PRIVATE LIMITED | E80: BUY | F80: 500,000 | G80: 6.62 | H80: BSE
A81: 2022-09-23 | B81: 539278 | C81: SYMBIOX | D81: SHETH BROTHER | E81: BUY | F81: 500,000 | G81: 6.62 | H81: BSE
A82: 2022-09-23 | B82: 539278 | C82: SYMBIOX | D82: RUMA MONDAL | E82: SELL | F82: 190,000 | G82: 6.62 | H82: BSE
A83: 2022-09-23 | B83: 539278 | C83: SYMBIOX | D83: VENKATESHWARA INDUSTRIAL PROMOTION CO LIMITED | E83: SELL | F83: 200,000 | G83: 6.62 | H83: BSE
A84: 2022-09-23 | B84: 539278 | C84: SYMBIOX | D84: KHUSHBOO KANODIA | E84: BUY | F84: 166,000 | G84: 6.61 | H84: BSE
A85: 2022-09-23 | B85: 539278 | C85: SYMBIOX | D85: NAKSHATRA GARMENTS PRIVATE LIMITED | E85: SELL | F85: 1,775,719 | G85: 6.62 | H85: BSE
A86: 2022-09-23 | B86: 539278 | C86: SYMBIOX | D86: OVERALL LOGISTICS PRIVATE LIMITED | E86: SELL | F86: 250,000 | G86: 6.62 | H86: BSE
A87: 2022-09-23 | B87: 539278 | C87: SYMBIOX | D87: AMISHBHAI BHURABHAI GHADIYA | E87: BUY | F87: 198,500 | G87: 6.62 | H87: BSE
A88: 2022-09-23 | B88: 539278 | C88: SYMBIOX | D88: TEJAS TRADEFIN LLP | E88: SELL | F88: 180,000 | G88: 6.6 | H88: BSE
A89: 2022-09-23 | B89: 539278 | C89: SYMBIOX | D89: TOPGAIN FINANCE PRIVATE LIMITED | E89: SELL | F89: 2,092,382 | G89: 6.62 | H89: BSE
A90: 2022-09-23 | B90: 539278 | C90: SYMBIOX | D90: TEJAS TRADEFIN LLP | E90: BUY | F90: 180,000 | G90: 6.62 | H90: BSE
A91: 2022-09-23 | B91: 539278 | C91: SYMBIOX | D91: TOPGAIN FINANCE PRIVATE LIMITED | E91: BUY | F91: 1,192,382 | G91: 6.61 | H91: BSE
A92: 2022-09-23 | B92: 539278 | C92: SYMBIOX | D92: WESSEL CONSULTANCY PRIVATE LIMITED | E92: BUY | F92: 200,000 | G92: 6.62 | H92: BSE
A93: 2022-09-23 | B93: 539278 | C93: SYMBIOX | D93: NISHA RAJESH VAKHARIA | E93: BUY | F93: 200,000 | G93: 6.62 | H93: BSE
A94: 2022-09-23 | B94: 539278 | C94: SYMBIOX | D94: MULTIPLIER SHARE & STOCK ADVISORS PRIVATE LIMITED | E94: BUY | F94: 11 | G94: 6.46 | H94: BSE
A95: 2022-09-23 | B95: 539278 | C95: SYMBIOX | D95: MULTIPLIER SHARE & STOCK ADVISORS PRIVATE LIMITED | E95: SELL | F95: 707,011 | G95: 6.62 | H95: BSE
A96: 2022-09-23 | B96: 539278 | C96: SYMBIOX | D96: BHANSALI VALUE CREATIONS PRIVATE LIMITED | E96: BUY | F96: 300,000 | G96: 6.62 | H96: BSE
A97: 2022-09-23 | B97: 539310 | C97: THINKINK | D97: B B COMMERCIAL LTD | E97: SELL | F97: 134,220 | G97: 69.41 | H97: BSE
A98: 2022-09-23 | B98: 539310 | C98: THINKINK | D98: B B COMMERCIAL LTD | E98: BUY | F98: 168,115 | G98: 69.69 | H98: BSE
A99: 2022-09-23 | B99: 511523 | C99: VEERHEALTH | D99: AJAY RAMESHCHANDRA VAKHARIA | E99: SELL | F99: 75,000 | G99: 14.45 | H99: BSE
A100: 2022-09-23 | B100: 512229 | C100: VERITAS | D100: SWAN ENERGY LIMITED | E100: BUY | F100: 860,000 | G100: 123.4 | H100: BSE
A101: 2022-09-23 | B101: 512229 | C101: VERITAS | D101: NITI NITINKUMAR DIDWANIA | E101: SELL | F101: 860,000 | G101: 123.4 | H101: BSE
A102: 2022-09-23 | B102: 524661 | C102: WELCURE | D102: BP EQUITIES PVT. LTD. | E102: BUY | F102: 71,011 | G102: 10.48 | H102: BSE
A103: 2022-09-23 | B103: 524661 | C103: WELCURE | D103: BP EQUITIES PVT. LTD. | E103: SELL | F103: 49,011 | G103: 10.45 | H103: BSE
A104: 2022-09-23 | B104: 524661 | C104: WELCURE | D104: MADHUDEVI SANJAY BUCHA . | E104: SELL | F104: 150,001 | G104: 10.48 | H104: BSE
A105: 2022-09-23 | B105: 524661 | C105: WELCURE | D105: REKHA BHANDARI | E105: BUY | F105: 101,963 | G105: 10.45 | H105: BSE
A106: 2022-09-23 | B106: 524661 | C106: WELCURE | D106: REKHA BHANDARI | E106: SELL | F106: 101,963 | G106: 10.48 | H106: BSE
A107: 2022-09-23 | B107: 524661 | C107: WELCURE | D107: DINESH KUMAR JAIN | E107: SELL | F107: 100,000 | G107: 10.47 | H107: BSE
A108: 2022-09-23 | B108: 524661 | C108: WELCURE | D108: DINESH KUMAR JAIN | E108: BUY | F108: 100,000 | G108: 10.48 | H108: BSE
A109: 2022-09-23 | B109: 524661 | C109: WELCURE | D109: B.W.TRADERS | E109: SELL | F109: 8,139 | G109: 10.45 | H109: BSE
A110: 2022-09-23 | B110: 524661 | C110: WELCURE | D110: B.W.TRADERS | E110: BUY | F110: 99,139 | G110: 10.48 | H110: BSE
A111: 2022-09-23 | B111: 524661 | C111: WELCURE | D111: DIGAMBAR GUNAJI CHENDURKAR | E111: BUY | F111: 71,000 | G111: 10.48 | H111: BSE
A112: 2022-09-23 | B112: 524661 | C112: WELCURE | D112: DEEPA NAVIN PAMNANI | E112: SELL | F112: 288,288 | G112: 10.48 | H112: BSE
A113: 2022-09-23 | B113: 524661 | C113: WELCURE | D113: RITURAHUL MEHTA | E113: SELL | F113: 382,518 | G113: 10.48 | H113: BSE
A114: 2022-09-23 | B114: 524661 | C114: WELCURE | D114: RITURAHUL MEHTA | E114: BUY | F114: 382,518 | G114: 10.47 | H114: BSE
A115: 2022-09-23 | B115: 524661 | C115: WELCURE | D115: PAWAN KUMAR KHURANA | E115: BUY | F115: 65,196 | G115: 10.46 | H115: BSE
A116: 2022-09-23 | B116: 524661 | C116: WELCURE | D116: PAWAN KUMAR KHURANA | E116: SELL | F116: 136,457 | G116: 10.48 | H116: BSE
A117: 2022-09-23 | B117: ASIANHOTNR | C117: Asian Hotels (North) Ltd | D117: NIRAJ BUBNA (HUF) | E117: BUY | F117: 134,000 | G117: 89.46 | H117: NSE
A118: 2022-09-23 | B118: ASLIND | C118: ASL Industries Limited | D118: SARVAGAY TEXTILE LLP | E118: BUY | F118: 120,000 | G118: 26 | H118: NSE
A119: 2022-09-23 | B119: DESTINY | C119: Destiny Logistics & I Ltd | D119: UPENDRA KUMAR | E119: BUY | F119: 42,000 | G119: 19.39 | H119: NSE
A120: 2022-09-23 | B120: DEVIT | C120: Dev Info Technology Ltd | D120: NIRAJ RAJNIKANT SHAH | E120: BUY | F120: 64,227 | G120: 217.34 | H120: NSE
A121: 2022-09-23 | B121: HILTON | C121: Hilton Metal Forging Limi | D121: SKSE SECURITIES LTD | E121: BUY | F121: 58,288 | G121: 82.63 | H121: NSE
A122: 2022-09-23 | B122: MCLEODRUSS | C122: Mcleod Russel India Limit | D122: MANSI SHARES & STOCK ADVISORS PVT LTD | E122: BUY | F122: 600,391 | G122: 33.67 | H122: NSE
A123: 2022-09-23 | B123: MCLEODRUSS | C123: Mcleod Russel India Limit | D123: ADITYA KUMAR HALWASIYA | E123: BUY | F123: 550,000 | G123: 32.75 | H123: NSE
A124: 2022-09-23 | B124: MEGAFLEX | C124: Mega Flex Plastics Ltd | D124: JINENDRA KUMAR JAIN | E124: BUY | F124: 54,000 | G124: 57.21 | H124: NSE
A125: 2022-09-23 | B125: RIIL | C125: Reliance Indl Infra Ltd | D125: XTX MARKETS LLP | E125: BUY | F125: 114,773 | G125: 1203.93 | H125: NSE
A126: 2022-09-23 | B126: RIIL | C126: Reliance Indl Infra Ltd | D126: GRAVITON RESEARCH CAPITAL LLP | E126: BUY | F126: 199,915 | G126: 1204.67 | H126: NSE
A127: 2022-09-23 | B127: SCHNEIDER | C127: Schneider Electric Infra | D127: GRAVITON RESEARCH CAPITAL LLP | E127: BUY | F127: 1,451,532 | G127: 183 | H127: NSE
A128: 2022-09-23 | B128: SECL | C128: Salasar Exterior Cont Ltd | D128: PMC FINCORP LIMITED | E128: BUY | F128: 150,000 | G128: 329.98 | H128: NSE
A129: 2022-09-23 | B129: SECL | C129: Salasar Exterior Cont Ltd | D129: DIPAKMATHURBHAISALVI | E129: BUY | F129: 55,000 | G129: 331.22 | H129: NSE
A130: 2022-09-23 | B130: SONUINFRA | C130: Sonu Infratech Limited | D130: V JOSHI IMPEX PRIVATE LIMITED | E130: BUY | F130: 42,000 | G130: 38.59 | H130: NSE
A131: 2022-09-23 | B131: TFCILTD | C131: Tourism Finance Corp | D131: MANSI SHARES & STOCK ADVISORS PVT LTD | E131: BUY | F131: 7 | G131: 70.06 | H131: NSE
A132: 2022-09-23 | B132: TFCILTD | C132: Tourism Finance Corp | D132: GRAVITON RESEARCH CAPITAL LLP | E132: BUY | F132: 658,650 | G132: 73.01 | H132: NSE
A133: 2022-09-23 | B133: TFCILTD | C133: Tourism Finance Corp | D133: RAJASTHAN GLOBAL SECURITIES PVT LTD | E133: BUY | F133: 624,167 | G133: 71.54 | H133: NSE
A134: 2022-09-23 | B134: ASIANHOTNR | C134: Asian Hotels (North) Ltd | D134: EXCLUSIVE CAPITAL LIMITED | E134: SELL | F134: 299,000 | G134: 89.43 | H134: NSE
A135: 2022-09-23 | B135: ASLIND | C135: ASL Industries Limited | D135: HANSRAJ COMMOSALES LLP | E135: SELL | F135: 120,000 | G135: 26 | H135: NSE
A136: 2022-09-23 | B136: HILTON | C136: Hilton Metal Forging Limi | D136: SKSE SECURITIES LTD | E136: SELL | F136: 76,114 | G136: 80.55 | H136: NSE
A137: 2022-09-23 | B137: ISHAN | C137: Ishan International Ltd | D137: DHIMAN BHAVYA | E137: SELL | F137: 99,200 | G137: 79.37 | H137: NSE
A138: 2022-09-23 | B138: KSHITIJPOL | C138: Kshitij Polyline Limited | D138: BHAVISHYA ECOMMERCE PRIVATE LIMITED | E138: SELL | F138: 79,552 | G138: 114.95 | H138: NSE
A139: 2022-09-23 | B139: MCLEODRUSS | C139: Mcleod Russel India Limit | D139: MANSI SHARES & STOCK ADVISORS PVT LTD | E139: SELL | F139: 100,032 | G139: 32.75 | H139: NSE
A140: 2022-09-23 | B140: MCLEODRUSS | C140: Mcleod Russel India Limit | D140: VORA FINANCIAL SERVICES PVT LTD | E140: SELL | F140: 758,223 | G140: 32.77 | H140: NSE
A141: 2022-09-23 | B141: RIIL | C141: Reliance Indl Infra Ltd | D141: GRAVITON RESEARCH CAPITAL LLP | E141: SELL | F141: 199,915 | G141: 1205.08 | H141: NSE
A142: 2022-09-23 | B142: RIIL | C142: Reliance Indl Infra Ltd | D142: XTX MARKETS LLP | E142: SELL | F142: 112,764 | G142: 1204.58 | H142: NSE
A143: 2022-09-23 | B143: SCHNEIDER | C143: Schneider Electric Infra | D143: GRAVITON RESEARCH CAPITAL LLP | E143: SELL | F143: 1,451,532 | G143: 183.11 | H143: NSE
A144: 2022-09-23 | B144: SECL | C144: Salasar Exterior Cont Ltd | D144: SAHNI BALVINDER SINGH | E144: SELL | F144: 300,000 | G144: 330.13 | H144: NSE
A145: 2022-09-23 | B145: SONUINFRA | C145: Sonu Infratech Limited | D145: V JOSHI IMPEX PRIVATE LIMITED | E145: SELL | F145: 12,000 | G145: 40.43 | H145: NSE
A146: 2022-09-23 | B146: TAPIFRUIT | C146: Tapi Fruit Processing Ltd | D146: LAKHANI JIGNESH JASMATBHAI(HUF) | E146: SELL | F146: 30,000 | G146: 56.89 | H146: NSE
A147: 2022-09-23 | B147: TFCILTD | C147: Tourism Finance Corp | D147: MANSI SHARES & STOCK ADVISORS PVT LTD | E147: SELL | F147: 550,012 | G147: 71.32 | H147: NSE
A148: 2022-09-23 | B148: TFCILTD | C148: Tourism Finance Corp | D148: GRAVITON RESEARCH CAPITAL LLP | E148: SELL | F148: 658,650 | G148: 73.05 | H148: NSE

Sheet Call Tracker (Equity & F&O)
M5: Back To Main Page
A6: Retail Research Technical Calls & Fundamental Performance Report for the month of Sep-2022
M7: =Main!B10 -> 2022-09-26
B8: Positional Call
A9: Sr.no | B9: Date | D9: Company | E9: Rec | F9: Rec Price | G9: Stop Loss*** | H9: Call Closed At | I9: Target | J9: Remark | K9: Profit / Loss per Share | L9: All charges | M9: Net Gain / Loss % | N9: Status | O9: Closed Date | P9: Market Closing Price
A10: 1 | B10: 2022-08-12 | D10: BATAINDIA | E10: Buy | F10: 1905 | G10: 1750 | H10: =(1845+1982.5)/2 -> 1913.75 | I10: 2100-2200 | J10: Profit of Rs.8.75/- | K10: =H10-F10 -> 8.75 | L10: =(F10*-0.7)/100 -> -13.34 | M10: =(K10+L10)/F10 -> -0.24% | N10: Neutral | O10: 2022-09-19 | R10: H
A11: 2 | B11: 2022-08-19 | D11: GSPL | E11: Buy | F11: 246.5 | G11: 229 | H11: 261 | I11: 270-280 | J11: Profit of Rs.14.5/- | K11: 14.5 | L11: -1.73 | M11: 5.18% | N11: Successful | O11: 2022-09-13 | R11: H
A12: 3 | B12: 2022-08-22 | D12: VTL | E12: Buy | F12: 327.5 | G12: 298 | H12: 353 | I12: 360-390 | J12: Profit of Rs.25.5/- | K12: =H12-F12 -> 25.5 | L12: =(F12*-0.7)/100 -> -2.29 | M12: =(K12+L12)/F12 -> 7.09% | N12: Successful | O12: 2022-09-14 | R12: H
A13: 4 | B13: 2022-08-22 | D13: RELIANCE | E13: Buy | F13: 2595 | G13: 2480 | H13: 2480 | I13: 2750-2800 | J13: Loss of Rs.115/- | K13: -115 | L13: -18.17 | M13: -5.13% | N13: Unsuccessful | O13: 2022-09-23 | R13: H
A14: 5 | B14: 2022-08-23 | D14: IGL | E14: Buy | F14: 405 | G14: 375 | H14: 428.5 | I14: 440-460 | J14: Profit of Rs.23.5/- | K14: =H14-F14 -> 23.5 | L14: =(F14*-0.7)/100 -> -2.84 | M14: =(K14+L14)/F14 -> 5.10% | N14: Successful | O14: 2022-09-02 | R14: H
A15: 6 | B15: 2022-08-26 | D15: DELTACORP | E15: Buy | F15: 212 | G15: 199 | H15: 227 | I15: 230-235 | J15: Profit of Rs.15/- | K15: 15 | L15: -1.48 | M15: 6.38% | N15: Successful | O15: 2022-09-16 | R15: N
A16: 7 | B16: 2022-08-29 | D16: GMMPFAUDLR | E16: Buy | F16: 1650 | G16: 1540 | H16: 1775 | I16: 1770-1850 | J16: Profit of Rs.125/- | K16: =H16-F16 -> 125 | L16: =(F16*-0.7)/100 -> -11.55 | M16: =(K16+L16)/F16 -> 6.88% | N16: Successful | O16: 2022-09-02 | R16: N
A17: 8 | B17: 2022-08-29 | D17: IEX | E17: Buy | F17: 157 | G17: 149.5 | H17: 158.5 | I17: 165-170 | J17: Profit of Rs.1.5/- | K17: =H17-F17 -> 1.5 | L17: =(F17*-0.7)/100 -> -1.10 | M17: =(K17+L17)/F17 -> 0.26% | N17: Neutral | O17: 2022-09-05 | R17: H
A18: 9 | B18: 2022-09-05 | D18: AMARAJABAT | E18: Buy | F18: 514 | G18: 480 | H18: 545 | I18: 550-580 | J18: Profit of Rs.31/- | K18: =H18-F18 -> 31 | L18: =(F18*-0.07)/100 -> -0.36 | M18: =(K18+L18)/F18 -> 5.96% | N18: Successful | O18: 2022-09-12 | R18: N
A19: 10 | B19: 2022-09-06 | D19: COLPAL | E19: Buy | F19: 1610-1640 | G19: 1535 | I19: 1750-1800 | J19: Open | R19: H
A20: 11 | B20: 2022-09-07 | D20: LTI | E20: Buy | F20: 4415 | G20: 4140 | H20: 4677.5 | I20: 4800-5000 | J20: Profit of Rs.262.5/- | K20: =H20-F20 -> 262.5 | L20: =(F20*-0.7)/100 -> -30.91 | M20: =(K20+L20)/F20 -> 5.25% | N20: Successful | O20: 2022-09-09 | R20: H
A21: 12 | B21: 2022-09-08 | D21: ENGINERSIN | E21: Buy | F21: 70.5-71.5 | G21: 65 | I21: 80-82 | J21: Open | R21: H
A22: 13 | B22: 2022-09-12 | D22: GMMPFAUDLR | E22: Buy | F22: 1915 | G22: 1800 | H22: 1995 | I22: 2050-2150 | J22: Part profit of Rs.80/- | K22: =H22-F22 -> 80 | L22: =(F22*-0.7)/100 -> -13.41 | M22: =(K22+L22)/F22 -> 3.48% | N22: Successful | O22: 2022-09-13 | R22: N
A23: 14 | B23: 2022-09-12 | D23: MAPMYINDIA | E23: Buy | F23: 1415 | G23: 1325 | H23: 1325 | I23: 1550-1650 | J23: Loss of Rs.90/- | K23: =H23-F23 -> -90 | L23: =(F23*-0.7)/100 -> -9.91 | M23: =(K23+L23)/F23 -> -7.06% | N23: Unsuccessful | O23: 2022-09-19 | R23: H
A24: 15 | B24: 2022-09-12 | D24: HEIDELBERG | E24: Buy | F24: 191.5 | G24: 183 | H24: 203.5 | I24: 205-215 | J24: Profit of Rs.12/- | K24: =H24-F24 -> 12 | L24: =(F24*-0.7)/100 -> -1.34 | M24: =(K24+L24)/F24 -> 5.57% | N24: Successful | O24: 2022-09-20 | R24: N
A25: 16 | B25: 2022-09-15 | D25: VTL | E25: Buy | F25: 342.5 | G25: 318 | H25: 362 | I25: 370-390 | J25: Profit of Rs.19.5/- | K25: =H25-F25 -> 19.5 | L25: =(F25*-0.4)/100 -> -1.37 | M25: =(K25+L25)/F25 -> 5.29% | N25: Successful | O25: 2022-09-19 | R25: H
A26: 17 | B26: 2022-09-16 | D26: AMARAJABAT | E26: Buy | F26: 525-530 | G26: 495 | I26: 570-590 | J26: Open | R26: H
A27: 18 | B27: 2022-09-16 | D27: ACC | E27: Buy | F27: 2625 | G27: 2440 | H27: 2740 | I27: 2900-3000 | J27: Part profit of Rs.115/- | K27: =H27-F27 -> 115 | L27: =(F27*-0.7)/100 -> -18.38 | M27: =(K27+L27)/F27 -> 3.68% | N27: Successful | O27: 2022-09-20 | R27: H
A28: 19 | B28: 2022-09-19 | D28: SBIN | E28: Buy | F28: 560-570 | G28: 539 | I28: 610-630 | J28: Open | R28: H
A29: 20 | B29: 2022-09-19 | D29: BALKRISIND | E29: Buy | F29: 1900-1930 | G29: 1780 | I29: 2100-2200 | J29: Open | R29: H
A30: 21 | B30: 2022-09-20 | D30: MINDTREE | E30: Buy | F30: 3150-3190 | G30: 2940 | I30: 3400-3600 | J30: Open
A31: 22 | B31: 2022-09-20 | D31: DELTACORP | E31: Buy | F31: 211-215 | G31: 199 | I31: 230-240 | J31: Open
A37: CLBS = Closing Basis ***
A38: Dividend adjusted <> | F38: Reinitiated $
A39: Part book {} | D39: s | F39: Revised stoploss #
B41: Momentum Call
A42: Sr.no | B42: Date | D42: Company | E42: Rec | F42: Rec Price | G42: Stop Loss | H42: Call Closed At | I42: Target | J42: Remark | K42: Profit / Loss per Share/Lot | L42: All charges | M42: Net Gain / Loss % | N42: Status | O42: Closed Date
A43: 1 | B43: 2022-08-23 | D43: INDIGO | E43: Buy | F43: 2005 | G43: 1940 | H43: 2060 | I43: 2080-2120 | J43: Profit of Rs.55/- | K43: =H43-F43 -> 55 | L43: =(F43*-0.7)/100 -> -14.04 | M43: =(K43+L43)/F43 -> 2.04% | N43: Successful | O43: 2022-09-02 | R43: H
A44: 2 | B44: 2022-08-26 | D44: MCDOWELL-N | E44: Buy | F44: 810 | G44: 787 | H44: 829 | I44: 840-850 | J44: Profit of Rs.19/- | K44: =H44-F44 -> 19 | L44: =(F44*-0.7)/100 -> -5.67 | M44: =(K44+L44)/F44 -> 1.65% | N44: Successful | O44: 2022-09-02 | R44: H
A45: 3 | B45: 2022-08-30 | D45: COFORGE | E45: Buy | F45: 3555 | G45: 3430 | H45: 3655 | I45: 3700-3800 | J45: Profit of Rs.100/- | K45: =H45-F45 -> 100 | L45: =(F45*-0.7)/100 -> -24.89 | M45: =(K45+L45)/F45 -> 2.11% | N45: Successful | O45: 2022-09-12 | R45: H
A46: 4 | B46: 2022-09-01 | D46: ZYDUSLIFE | E46: Buy | F46: 378 | G46: 367 | H46: 367 | I46: 400-410 | J46: Loss of Rs.11/- | K46: =H46-F46 -> -11 | L46: =(F46*-0.7)/100 -> -2.65 | M46: =(K46+L46)/F46 -> -3.61% | N46: Unsuccessful | O46: 2022-09-16 | R46: N
A47: 5 | B47: 2022-09-05 | D47: REDINGTON | E47: Buy | F47: 150 | G47: 145 | H47: 154.5 | I47: 157-160 | J47: Profit of Rs.4.5/- | K47: =H47-F47 -> 4.5 | L47: =(F47*-0.7)/100 -> -1.05 | M47: =(K47+L47)/F47 -> 2.30% | N47: Successful | O47: 2022-09-06 | R47: H
A48: 6 | B48: 2022-09-06 | D48: BALKRISIND | E48: Buy | F48: 1970 | G48: 1915 | H48: 2003 | I48: 2050-2100 | J48: Profit of Rs.33/- | K48: =H48-F48 -> 33 | L48: =(F48*-0.07)/100 -> -1.38 | M48: =(K48+L48)/F48 -> 1.61% | N48: Successful | O48: 2022-09-06 | R48: H
A49: 7 | B49: 2022-09-06 | D49: TATAPOWER | E49: Buy | F49: 243 | G49: 237 | H49: 251 | I49: 250-255 | J49: Profit of Rs.8/- | K49: 8 | L49: =(F49*-0.7)/100 -> -1.70 | M49: 2.59% | N49: Successful | O49: 2022-09-06 | R49: H
A50: 8 | B50: 2022-09-07 | D50: BALKRISIND | E50: Buy | F50: 1995 | G50: 1930 | H50: 1930 | I50: 2060-2100 | J50: Loss of Rs.65/- | K50: -65 | L50: -13.97 | M50: -3.96% | N50: Unsuccessful | O50: 2022-09-16 | R50: H
A51: 9 | B51: 2022-09-09 | D51: TATAPOWER | E51: Buy | F51: 242 | G51: 235 | H51: 235 | I51: 250-255 | J51: Loss of Rs.-7/- | K51: =H51-F51 -> -7 | L51: =(F51*-0.7)/100 -> -1.69 | M51: =(K51+L51)/F51 -> -3.59% | N51: Unsuccessful | O51: 2022-09-16 | R51: H
A52: 10 | B52: 2022-09-13 | D52: RELAXO | E52: Buy | F52: 1025 | G52: 994 | H52: 1050 | I52: 1060-1100 | J52: Profit of Rs.25/- | K52: =H52-F52 -> 25 | L52: =(F52*-0.07)/100 -> -0.72 | M52: =(K52+L52)/F52 -> 2.37% | N52: Successful | O52: 2022-09-13 | R52: H
A53: 11 | B53: 2022-09-13 | D53: ZEEL | E53: Buy | F53: 267.5 | G53: 259 | H53: 274 | I53: 280-282 | J53: Profit of Rs.6.5/- | K53: =H53-F53 -> 6.5 | L53: =(F53*-0.07)/100 -> -0.19 | M53: =(K53+L53)/F53 -> 2.36% | N53: Successful | O53: 2022-09-13 | R53: H
A54: 12 | B54: 2022-09-13 | D54: RAMCOCEM | E54: Buy | F54: 799 | G54: 774 | H54: 774 | I54: 830-850 | J54: Loss of Rs.25/- | K54: -25 | L54: =(F54*-0.7)/100 -> -5.59 | M54: -3.83% | N54: Unsuccessful | O54: 2022-09-16 | R54: H
A55: 13 | B55: 2022-09-15 | D55: REDINGTON | E55: Buy | F55: 156 | G55: 152 | H55: 161 | I55: 165-170 | J55: Profit of Rs.5/- | K55: =H55-F55 -> 5 | L55: =(F55*-0.7)/100 -> -1.09 | M55: =(K55+L55)/F55 -> 2.51% | N55: Successful | O55: 2022-09-16 | R55: H
A56: 14 | B56: 2022-09-19 | D56: CARBORUNIV | E56: Buy | F56: 846-850 | G56: 824 | I56: 880-900 | J56: Open | R56: H
A57: 15 | B57: 2022-09-20 | D57: KPITTECH | E57: Buy | F57: 580.5 | G57: 564 | H57: 596.5 | I57: 610-620 | J57: Profit of Rs.16/- | K57: =H57-F57 -> 16 | L57: =(F57*-0.7)/100 -> -4.06 | M57: =(K57+L57)/F57 -> 2.06% | N57: Successful | O57: 2022-09-21
A58: 16 | B58: 2022-09-21 | D58: ZYDUSLIFE | E58: Buy | F58: 365-368 | G58: 354 | I58: 380-394 | J58: Open
A59: 17 | B59: 2022-09-21 | D59: SUNPHARMA | E59: Buy | F59: 903-906 | G59: 879 | I59: 935-955 | J59: Open
A63: CLBS = Closing Basis *** | H63: *
A64: Dividend adjusted <> | F64: Reinitiated $
F65: Revised stoploss #
A67: Master Trade High Risk
A68: Sr.no | B68: Date | D68: Company | E68: Rec | F68: Rec Price | G68: Stop Loss | H68: Call Closed At | I68: Target | J68: Remark | K68: Profit / Loss per share | L68: All charges | M68: Gain / Loss per Lot | N68: Lot | O68: Status | P68: Closed Date
A69: 1 | B69: 2022-08-29 | D69: BHARTIARTL SEP FUT | E69: Buy | F69: 724 | G69: 710 | H69: 735.5 | I69: 740-750 | J69: Profit of Rs 11.5/- | K69: =H69-F69 -> 11.5 | L69: =(H69*N69)*0.07% -> 489.11 | M69: =(K69*N69)-L69 -> 10435.9 | N69: 950 | O69: Successful | P69: 2022-09-01 | R69: H
A70: 2 | B70: 2022-09-01 | D70: ICICIBANK SEP FUT | E70: Buy | F70: 873.5 | G70: 864 | H70: 884 | I70: 890-895 | J70: Profit of Rs 10.5/- | K70: =H70-F70 -> 10.5 | L70: =(H70*N70)*0.07% -> 850.85 | M70: =(K70*N70)-L70 -> 13586.7 | N70: 1375 | O70: Successful | P70: 2022-09-01 | R70: H
A71: 3 | B71: 2022-09-01 | D71: CONCOR SEP FUT | E71: Buy | F71: 696.5 | G71: 685 | H71: 685 | I71: 715-720 | J71: Loss of Rs 11.5/- | K71: =H71-F71 -> -11.5 | L71: =(H71*N71)*0.07% -> 479.50 | M71: =(K71*N71)-L71 -> -11979.5 | N71: 1000 | O71: Unsuccessful | P71: 2022-09-02 | R71: N
A72: 4 | B72: 2022-09-01 | D72: GSPL SEPT FUT | E72: Buy | F72: 240 | G72: 234.5 | H72: 246 | I72: 246-250 | J72: Profit of Rs 6/- | K72: =H72-F72 -> 6 | L72: =(H72*N72)*0.07% -> 430.50 | M72: =(K72*N72)-L72 -> 14569.5 | N72: 2500 | O72: Successful | P72: 2022-09-01 | R72: N
A73: 5 | B73: 2022-09-01 | D73: HDFCAMC SEPT FUT | E73: Buy | F73: 2070 | G73: 2000 | H73: 2000 | I73: 2140-2180 | J73: Loss of Rs 70/- | K73: -70 | L73: 280.00 | M73: -14280.0 | N73: 200 | O73: Unsuccessful | P73: 2022-09-06 | R73: N
A74: 6 | B74: 2022-09-02 | D74: SBIN SEPT FUT | E74: Sell | F74: 534 | G74: 545 | H74: 543 | I74: 520-510 | J74: Loss of Rs 9/- | K74: =F74-H74 -> -9 | L74: =(H74*N74)*0.07% -> 570.15 | M74: =(K74*N74)-L74 -> -14070.2 | N74: 1500 | O74: Unsuccessful | P74: 2022-09-06 | R74: H
A75: 7 | B75: 2022-09-02 | D75: ZYDUSLIFE SEPT FUT | E75: Buy | F75: 371.5 | G75: 365 | H75: 376 | I75: 380-385 | J75: Profit of Rs 4.5/- | K75: =H75-F75 -> 4.5 | L75: =(H75*N75)*0.07% -> 473.76 | M75: =(K75*N75)-L75 -> 7626.2 | N75: 1800 | O75: Successful | P75: 2022-09-05 | R75: H
A76: 8 | B76: 2022-09-02 | D76: GSPL SEPT FUT | E76: Buy | F76: 239.5 | G76: 234.5 | H76: 234.5 | I76: 246-250 | J76: Loss of Rs 5/- | K76: =H76-F76 -> -5 | L76: =(H76*N76)*0.07% -> 410.38 | M76: =(K76*N76)-L76 -> -12910.4 | N76: 2500 | O76: Unsuccessful | P76: 2022-09-05 | R76: N
A77: 9 | B77: 2022-09-05 | D77: PFC SEPT FUT | E77: Sell | F77: 117 | G77: 119 | H77: 115.5 | I77: 112 | J77: Profit of Rs 1.5/- | K77: =F77-H77 -> 1.5 | L77: =(H77*N77)*0.07% -> 501.27 | M77: =(K77*N77)-L77 -> 8798.7 | N77: 6200 | O77: Successful | P77: 2022-09-05 | R77: H
A78: 10 | B78: 2022-09-06 | D78: ZYDUSLIFE SEPT FUT | E78: Buy | F78: 370.5 | G78: 364 | H78: 375.5 | I78: 380-385 | J78: Profit of Rs 5/- | K78: =H78-F78 -> 5 | L78: 473.13 | M78: 8526.9 | N78: 1800 | O78: Successful | P78: 2022-09-07 | R78: H
A79: 11 | B79: 2022-09-06 | D79: TATACONSUM SEPT FUT | E79: Buy | F79: 825 | G79: 810 | H79: 836 | I79: 840-855 | J79: Profit of Rs 11/- | K79: 11 | L79: 585.20 | M79: 10414.8 | N79: 1000 | O79: Successful | P79: 2022-09-13 | R79: H
A80: 12 | B80: 2022-09-07 | D80: HINDUNILVR SEPT FUT | E80: Buy | F80: 2585 | G80: 2540 | H80: 2619 | I80: 2630-2670 | J80: Profit of Rs 34/- | K80: =H80-F80 -> 34 | L80: =(H80*N80)*0.07% -> 549.99 | M80: =(K80*N80)-L80 -> 9650.0 | N80: 300 | O80: Successful | P80: 2022-09-09 | R80: N
A81: 13 | B81: 2022-09-07 | D81: BHARTIARTL SEPT FUT | E81: Buy | F81: 750 | G81: 736 | H81: 759 | I81: 770-780 | J81: Profit of Rs 9/- | K81: =H81-F81 -> 9 | L81: =(H81*N81)*0.07% -> 504.74 | M81: =(K81*N81)-L81 -> 8045.3 | N81: 950 | O81: Successful | P81: 2022-09-07 | R81: H
A82: 14 | B82: 2022-09-07 | D82: TECHM SEPT FUT | E82: Buy | F82: 1059 | G82: 1040 | H82: 1076 | I82: 1090-1100 | J82: Profit of Rs 17/- | K82: 17 | L82: 489.58 | M82: 10560.4 | N82: 650 | O82: Successful | P82: 2022-09-07 | R82: N
A83: 15 | B83: 2022-09-07 | D83: HCLTECH SEPT FUT | E83: Buy | F83: 933 | G83: 915 | H83: 943 | I83: 950-960 | J83: Profit of Rs 10/- | K83: 10 | L83: 462.07 | M83: 6537.9 | N83: 700 | O83: Successful | P83: 2022-09-07 | R83: H
A84: 16 | B84: 2022-09-08 | D84: SBIN SEPT FUT | E84: Sell | F84: 540 | G84: 548 | H84: 546 | I84: 530-520 | J84: Loss of Rs 6/- | K84: =F84-H84 -> -6 | L84: 573.30 | M84: -9573.3 | N84: 1500 | O84: Unsuccessful | P84: 2022-09-08 | R84: H
A85: 17 | B85: 2022-09-08 | D85: HCLTECH SEPT FUT | E85: Buy | F85: 935 | G85: 918 | H85: 946.5 | I85: 955-965 | J85: Profit of Rs 11.5/- | K85: =H85-F85 -> 11.5 | L85: =(H85*N85)*0.07% -> 463.79 | M85: =(K85*N85)-L85 -> 7586.2 | N85: 700 | O85: Successful | P85: 2022-09-09 | R85: H
A86: 18 | B86: 2022-09-09 | D86: SBIN SEPT FUT | E86: Buy | F86: 552 | G86: 544 | H86: 557.5 | I86: 560-568 | J86: Profit of Rs 5.5/- | K86: =H86-F86 -> 5.5 | L86: =(H86*N86)*0.07% -> 585.38 | M86: =(K86*N86)-L86 -> 7664.6 | N86: 1500 | O86: Successful | P86: 2022-09-12 | R86: H
A87: 19 | B87: 2022-09-12 | D87: ACC SEPT FUT | E87: Sell | F87: 2415 | G87: 2460 | H87: 2460 | I87: 2360-2320 | J87: Loss of Rs 45/- | K87: =F87-H87 -> -45 | L87: =(H87*N87)*0.07% -> 430.50 | M87: =(K87*N87)-L87 -> -11680.5 | N87: 250 | O87: Unsuccessful | P87: 2022-09-12 | R87: H
A88: 20 | B88: 2022-09-12 | D88: HINDUNILVR SEPT FUT | E88: Buy | F88: 2595 | G88: 2550 | H88: 2550 | I88: 2650-2690 | J88: Loss of Rs 45/- | K88: =H88-F88 -> -45 | L88: 535.50 | M88: -14035.5 | N88: 300 | O88: Unsuccessful | P88: 2022-09-16 | R88: N
A89: 21 | B89: 2022-09-12 | D89: HDFCBANK SEPT FUT | E89: Buy | F89: 1502 | G89: 1480 | H89: 1517.5 | I89: 1525-1545 | J89: Profit of Rs 15.5/- | K89: =H89-F89 -> 15.5 | L89: =(H89*N89)*0.07% -> 584.24 | M89: =(K89*N89)-L89 -> 7940.8 | N89: 550 | O89: Successful | P89: 2022-09-13 | R89: N
A90: 22 | B90: 2022-09-12 | D90: BAJAJFINSV SEPT FUT | E90: Buy | F90: 1718 | G90: 16890 | H90: 1760 | I90: 1750-1770 | J90: Profit of Rs 42/- | K90: =H90-F90 -> 42 | L90: =(H90*N90)*0.07% -> 616.00 | M90: =(K90*N90)-L90 -> 20384.0 | N90: 500 | O90: Successful | P90: 2022-09-13 | R90: H
A91: 23 | B91: 2022-09-13 | D91: MINDTREE SEPT FUT | E91: Buy | F91: 3370 | G91: 3300 | H91: 3300 | I91: 3450-3500 | J91: Loss of Rs 70/- | K91: -70 | L91: 462.00 | M91: -14462.0 | N91: 200 | O91: Unsuccessful | P91: 2022-09-14 | R91: H
A92: 24 | B92: 2022-09-13 | D92: AMARAJABAT SEPT FUT | E92: Buy | F92: 548 | G92: 535 | H92: 535 | I92: 565-575 | J92: Loss of Rs 13/- | K92: -13 | L92: 374.50 | M92: -13374.5 | N92: 1000 | O92: Unsuccessful | P92: 2022-09-16 | R92: N
A93: 25 | B93: 2022-09-13 | D93: HCLTECH SEPT FUT | E93: Buy | F93: 959 | G93: 940 | H93: 940 | I93: 980-990 | J93: Loss of Rs 19/- | K93: =H93-F93 -> -19 | L93: =(H93*N93)*0.07% -> 460.60 | M93: =(K93*N93)-L93 -> -13760.6 | N93: 700 | O93: Unsuccessful | P93: 2022-09-14 | R93: N
A94: 26 | B94: 2022-09-14 | D94: INDIACEM SEPT FUT | E94: Buy | F94: 243.5 | G94: 238 | H94: 249 | I94: 250-255 | J94: Profit of Rs 42/- | K94: 5.5 | L94: 505.47 | M94: 15444.5 | N94: 2900 | O94: Successful | P94: 2022-09-14 | R94: N
A95: 27 | B95: 2022-09-14 | D95: COLPAL SEPT FUT | E95: Buy | F95: 1635 | G95: 1597 | H95: 1597 | I95: 1680-1700 | J95: Loss of Rs 38/- | K95: -38 | L95: 391.27 | M95: -13691.3 | N95: 350 | O95: Unsuccessful | P95: 2022-09-16 | R95: H
A96: 28 | B96: 2022-09-14 | D96: TATASTEEL SEPT FUT | E96: Buy | F96: 110.25 | G96: 107.5 | H96: 107.5 | I96: 115-117 | J96: Loss of Rs 2.75/- | K96: =H96-F96 -> -2.75 | L96: =(H96*N96)*0.07% -> 319.81 | M96: =(K96*N96)-L96 -> -12007.3 | N96: 4250 | O96: Unsuccessful | P96: 2022-09-15 | R96: H
A97: 29 | B97: 2022-09-14 | D97: GUJGASLTD SEPT FUT | E97: Buy | F97: 511 | G97: 499 | H97: 519 | I97: 525-535 | J97: Profit of Rs 8/- | K97: 8 | L97: 435.96 | M97: 9164.0 | N97: 1200 | O97: Successful | P97: 2022-09-15 | R97: N
A98: 30 | B98: 2022-09-14 | D98: BEL SEPT FUT | E98: Buy | F98: 112.5 | G98: 111.1 | H98: 113.75 | I98: 115 | J98: Profit of Rs.1.25/- | K98: =H98-F98 -> 1.25 | L98: =(H98*N98)*0.07% -> 907.73 | M98: =(K98*N98)-L98 -> 13342.3 | N98: 11400 | O98: Successful | P98: 2022-09-15 | R98: H
A99: 31 | B99: 2022-09-16 | D99: APOLLOHOSP SEPT FUT | E99: Buy | F99: 4345 | G99: 4230 | H99: 4412.5 | I99: 4500-4550 | J99: Profit of Rs.40/- | K99: 67.5 | L99: 386.09 | M99: 8051.4 | N99: 125 | O99: Successful | P99: 2022-09-20 | R99: N
A100: 32 | B100: 2022-09-16 | D100: BALKRISIND SEPT FUT | E100: Buy | F100: 2015 | G100: 1965 | H100: 1965 | I100: 2070-2100 | J100: Loss of Rs 50/- | K100: =H100-F100 -> -50 | L100: =(H100*N100)*0.07% -> 412.65 | M100: =(K100*N100)-L100 -> -15412.7 | N100: 300 | O100: Unsuccessful | P100: 2022-09-16 | R100: H
A101: 33 | B101: 2022-09-19 | D101: AXISBANK SEPT FUT | E101: Sell | F101: 799 | G101: 810 | H101: 810 | I101: 785-775 | J101: Loss of Rs 11/- | K101: =F101-H101 -> -11 | L101: 680.40 | M101: -13880.4 | N101: 1200 | O101: Unsuccessful | P101: 2022-09-20 | R101: N
A102: 34 | B102: 2022-09-19 | D102: GRASIM SEPT FUT | E102: Buy | F102: 1752.5 | G102: 1725 | H102: 1725 | I102: 1780-1810 | J102: Loss of Rs 27.5/- | K102: =H102-F102 -> -27.5 | L102: =(H102*N102)*0.07% -> 573.56 | M102: =(K102*N102)-L102 -> -13636.1 | N102: 475 | O102: Unsuccessful | P102: 2022-09-21 | R102: H
A103: 35 | B103: 2022-09-20 | D103: CROMPTON SEPT FUT | E103: Buy | F103: 397 | G103: 388 | H103: 404 | I103: 410-418 | J103: Profit of Rs.7/- | K103: =H103-F103 -> 7 | L103: =(H103*N103)*0.07% -> 424.20 | M103: =(K103*N103)-L103 -> 10075.8 | N103: 1500 | O103: Successful | P103: 2022-09-20
A104: 36 | B104: 2022-09-20 | D104: VOLTAS SEPT FUT | E104: Sell | F104: 919 | G104: 945 | H104: 894 | I104: 900-880 | J104: Profit of Rs 25/- | K104: =F104-H104 -> 25 | L104: 312.90 | M104: 12187.1 | N104: 500 | O104: Successful | P104: 2022-09-22
A105: 37 | B105: 2022-09-20 | D105: PIIND SEPT FUT | E105: Buy | F105: 3155 | G105: 3095 | H105: 3197.5 | I105: 3220-3250 | J105: Profit of Rs.42.50/- | K105: =H105-F105 -> 42.5 | L105: =(H105*N105)*0.07% -> 559.56 | M105: =(K105*N105)-L105 -> 10065.4 | N105: 250 | O105: Successful | P105: 2022-09-20
A106: 38 | B106: 2022-09-20 | D106: SIEMENS SEPT FUT | E106: Buy | F106: 2980 | G106: 2930 | H106: 2930 | I106: 3050-3080 | J106: Loss of Rs 50/- | K106: -50 | L106: 564.03 | M106: -14314.0 | N106: 275 | O106: Unsuccessful | P106: 2022-09-21
A107: 39 | B107: 2022-09-22 | D107: CROMPTON SEPT FUT | E107: Buy | F107: 404-406 | G107: 395 | I107: 420-428 | J107: Open
A108: 40 | B108: 2022-09-22 | D108: PIIND SEPT FUT | E108: Buy | F108: 3155 | G108: 3095 | H108: 3095 | I108: 3220-3250 | J108: Loss of Rs 60/- | K108: =H108-F108 -> -60 | L108: =(H108*N108)*0.07% -> 541.63 | M108: =(K108*N108)-L108 -> -15541.6 | N108: 250 | O108: Unsuccessful | P108: 2022-09-21
A109: 41 | B109: 2022-09-22 | D109: COLPAL SEPT FUT | E109: Buy | F109: 1594-1600 | G109: 1560 | I109: 1640-1660 | J109: Open
A110: 42 | B110: 2022-09-22 | D110: GSPL SEPT FUT | E110: Buy | F110: 239.5 | G110: 234.5 | H110: 234.5 | I110: 246-250 | J110: Loss of Rs 5/- | K110: =H110-F110 -> -5 | L110: =(H110*N110)*0.07% -> 410.38 | M110: =(K110*N110)-L110 -> -12910.4 | N110: 2500 | O110: Unsuccessful | P110: 2022-09-21
A111: 43 | B111: 2022-09-22 | D111: GUJGASLTD SEPT FUT | E111: Buy | F111: 501 | G111: 490 | H111: 511.5 | I111: 515-520 | J111: Profit of Rs.10.50/- | K111: =H111-F111 -> 10.5 | L111: =(H111*N111)*0.07% -> 447.56 | M111: =(K111*N111)-L111 -> 12677.4 | N111: 1250 | O111: Successful | P111: 2022-09-22
A112: 44 | B112: 2022-09-23 | D112: TECHM SEPT FUT | E112: Buy | F112: 1038-1042 | G112: 1020 | I112: 1070-1080 | J112: Open
A113: 45 | B113: 2022-09-23 | D113: COFORGE SEPT FUT | E113: Buy | F113: 3400-3410 | G113: 3310 | I113: 3550-3600 | J113: Open
A119: Master Trade Medium Risk
A120: Sr.no | B120: Date | D120: Company | E120: Rec | F120: Rec Price | G120: Stop Loss | H120: Call Closed At | I120: Target | J120: Remark | K120: Profit/ Loss per lot | L120: All charges | M120: Gain / Loss per Lot | N120: Lot | O120: Status | P120: Closed Date
A121: 1 | B121: 2022-08-30 | D121: BANKNIFTY 39700 CE 8 SEP | E121: Buy | F121: 390 | G121: 280 | H121: 280 | I121: 600-700 | J121: Loss of Rs.110/- | K121: =H121-F121 -> -110 | L121: 100.00 | M121: =(K121*N121)-L121 -> -2850.0 | N121: 25 | O121: Unsuccessful | P121: 2022-09-01 | R121: H
A122: 2 | B122: 2022-09-01 | D122: BANKNIFTY 39500 CE 1-SEP | E122: Buy | F122: 120 | G122: 30 | H122: 175 | I122: 250-300 | J122: Profit of Rs.55/- | K122: 55 | L122: 100.00 | M122: 1275.0 | N122: 25 | O122: Successful | P122: 2022-09-01 | R122: N
A123: 3 | B123: 2022-09-01 | D123: BANKNIFTY 39500 CE 1-SEP | E123: Buy | F123: 95 | G123: 0 | H123: 0 | I123: 200-250 | J123: Loss of Rs.95/- | K123: =H123-F123 -> -95 | L123: 100.00 | M123: =(K123*N123)-L123 -> -2475.0 | N123: 25 | O123: Unsuccessful | P123: 2022-09-01 | R123: N
A124: 4 | B124: 2022-09-02 | D124: NIFTY 17400 PE 8 SEP | E124: Buy | F124: 82 | G124: 45 | H124: 122.5 | I124: 120-160 | J124: Profit of Rs.40.5/- | K124: 40.5 | L124: 100.00 | M124: 1925.0 | N124: 50 | O124: Successful | P124: 2022-09-02 | R124: H
A125: 5 | B125: 2022-09-02 | D125: BANKNIFTY 40000 CE 8 SEP | E125: Sell | F125: 170 | G125: 350 | H125: 340 | I125: 0.1 | J125: Loss of Rs.170/- | K125: =F125-H125 -> -170 | L125: 100.00 | M125: -4350.0 | N125: 25 | O125: Unsuccessful | P125: 2022-09-06 | R125: H
A126: 6 | B126: 2022-09-02 | D126: NIFTY 17400 PE 8 SEP | E126: Buy | F126: 97.5 | G126: 65 | H126: 65 | I126: 140-160 | J126: Loss of Rs.32.5/- | K126: =H126-F126 -> -32.5 | L126: 100.00 | M126: =(K126*N126)-L126 -> -1725.0 | N126: 50 | O126: Unsuccessful | P126: 2022-09-05 | R126: H
A127: 7 | B127: 2022-09-02 | D127: BANKNIFTY 39300 PE 8 SEP | E127: Buy | F127: 375 | G127: 270 | H127: 270 | I127: 500-600 | J127: Loss of Rs.105/- | K127: -105 | L127: 100.00 | M127: -2725.0 | N127: 25 | O127: Unsuccessful | P127: 2022-09-05 | R127: N
A128: 8 | B128: 2022-09-02 | D128: TATACOMM 1320 CE SEP | E128: Sell | F128: 26 | G128: 35 | H128: 35 | I128: 10.0-5 | J128: Loss of Rs.9/- | K128: =F128-H128 -> -9 | L128: 100.00 | M128: -4600.0 | N128: 500 | O128: Unsuccessful | P128: 2022-09-05 | R128: H
A129: 9 | B129: 2022-09-05 | D129: NIFTY 17500 PE 8 SEP | E129: Buy | F129: 77.5 | G129: 45 | H129: 45 | I129: 120-160 | J129: Loss of Rs.32.5/- | K129: =H129-F129 -> -32.5 | L129: 100.00 | M129: =(K129*N129)-L129 -> -1725.0 | N129: 50 | O129: Unsuccessful | P129: 2022-09-06 | R129: H
A130: 10 | B130: 2022-09-08 | D130: BANKNIFTY 39900 PE 8 SEP | E130: Buy | F130: 140 | G130: 30 | H130: 30 | I130: 250-300 | J130: Loss of Rs.110/- | K130: -110 | L130: 100.00 | M130: -2850.0 | N130: 25 | O130: Unsuccessful | P130: 2022-09-08 | R130: N
A131: 11 | B131: 2022-09-08 | D131: BALKRISIND 2050 CE SEP | E131: Buy | F131: 50 | G131: 35 | H131: 59 | I131: 65-80 | J131: Profit of Rs.9/- | K131: 9 | L131: 100.00 | M131: 2600.0 | N131: 300 | O131: Successful | P131: 2022-09-09 | R131: H
A132: 12 | B132: 2022-09-12 | D132: SBIN 580 CE SEP | E132: Buy | F132: 5 | G132: 1.75 | H132: 6.25 | I132: 9-11.0 | J132: Profit of Rs.1.25/- | K132: =H132-F132 -> 1.25 | L132: 100.00 | M132: =(K132*N132)-L132 -> 1775.0 | N132: 1500 | O132: Successful | P132: 2022-09-09 | R132: H
A133: 13 | B133: 2022-09-12 | D133: AMARAJABAT 555 CE SEP | E133: Buy | F133: 12-13.0 | J133: Open | R133: N
D134: AMARAJABAT 570 CE SEP | E134: Sell | F134: 7.50-8.0
A135: 14 | B135: 2022-09-13 | D135: NIFTY 17900 PE 15 SEP | E135: Sell | F135: 54 | G135: 90 | H135: 90 | I135: 0.1 | J135: Loss of Rs.9/- | K135: =F135-H135 -> -36 | L135: 100.00 | M135: =(K135*N135)-L135 -> -1900.0 | N135: 50 | O135: Unsuccessful | P135: 2022-09-14 | R135: H
A136: 15 | B136: 2022-09-13 | D136: BALKRISIND 2050 CE SEP | E136: Buy | F136: 51 | G136: 37 | H136: 37 | I136: 65-70 | J136: Loss of Rs.14/- | K136: =H136-F136 -> -14 | L136: 100.00 | M136: -4300.0 | N136: 300 | O136: Unsuccessful | P136: 2022-09-14 | R136: H
A137: 16 | B137: 2022-09-13 | D137: AXISBANK 820 CE SEP | E137: Buy | F137: 11.5 | G137: 7 | H137: 14.75 | I137: 17-22 | J137: Profit of Rs.3.25/- | K137: 3.25 | L137: 100.00 | M137: 3800.0 | N137: 1200 | O137: Successful | P137: 2022-09-14 | R137: N
A138: 17 | B138: 2022-09-13 | D138: BHARTIARTL 790 CE SEP | E138: Buy | F138: 12.5 | G138: 7.5 | H138: 14.5 | I138: 18-22 | J138: Profit of Rs.2/- | K138: 2 | L138: 100.00 | M138: 1700.0 | N138: 900 | O138: Successful | P138: 2022-09-14 | R138: H
A139: 18 | B139: 2022-09-14 | D139: BHARTIARTL 790 CE SEP | E139: Buy | F139: 11.5 | G139: 6.5 | H139: 14 | I139: 18-22 | J139: Profit of Rs.2.5/- | K139: 2.5 | L139: 100.00 | M139: 2150.0 | N139: 900 | O139: Successful | P139: 2022-09-15 | R139: H
A140: 19 | B140: 2022-09-14 | D140: OBEROIRLTY 1140 CE SEP | E140: Buy | F140: 17.5 | G140: 9.5 | H140: 21 | I140: 30-35 | J140: Profit of Rs.3.5/- | K140: =H140-F140 -> 3.5 | L140: 100.00 | M140: =(K140*N140)-L140 -> 2350.0 | N140: 700 | O140: Successful | P140: 2022-09-14 | R140: H
A141: 20 | B141: 2022-09-14 | D141: INFY 1500 CE SEP | E141: Buy | F141: 26 | G141: 9.5 | H141: 9.5 | I141: 45-60 | J141: Loss of Rs.16.5/- | K141: -16.5 | L141: 100.00 | M141: -5050.0 | N141: 300 | O141: Unsuccessful | P141: 2022-09-16 | R141: N
A142: 21 | B142: 2022-09-14 | D142: NIFTY 18000 PE 15-SEP | E142: Buy | F142: 72 | G142: 30 | H142: 72 | I142: 120-150 | J142: Neutal | K142: =H142-F142 -> 0 | L142: 100.00 | M142: =(K142*N142)-L142 -> -100.0 | N142: 50 | O142: Neutral | P142: 2022-09-14 | R142: N
A143: 22 | B143: 2022-09-14 | D143: BANKNIFTY 41500 CE 15-SEP | E143: Buy | F143: 225 | G143: 110 | H143: 285 | I143: 350-450 | J143: Profit of Rs.60/- | K143: =H143-F143 -> 60 | L143: 100.00 | M143: =(K143*N143)-L143 -> 1400.0 | N143: 25 | O143: Successful | P143: 2022-09-14 | R143: H
A144: 23 | B144: 2022-09-14 | D144: BANKNIFTY 41500 CE 15-SEP | E144: Buy | F144: 225 | G144: 110 | H144: 165 | I144: 350-450 | J144: Loss of Rs.60/- | K144: -60 | L144: 100.00 | M144: -1600.0 | N144: 25 | O144: Unsuccessful | P144: 2022-09-14 | R144: H
A145: 24 | B145: 2022-09-15 | D145: NIFTY 18050 PE 15-SEP | E145: Buy | F145: 45 | G145: 10 | H145: 76 | I145: 90-120 | J145: Profit of Rs.31/- | K145: =H145-F145 -> 31 | L145: 100.00 | M145: =(K145*N145)-L145 -> 1450.0 | N145: 50 | O145: Successful | P145: 2022-09-15 | R145: H
A146: 25 | B146: 2022-09-15 | D146: NIFTY 18050 PE 15-SEP | E146: Buy | F146: 57 | G146: 14 | H146: 96 | I146: 90-120 | J146: Profit of Rs.39/- | K146: 39 | L146: 100.00 | M146: 1850.0 | N146: 50 | O146: Successful | P146: 2022-09-15 | R146: H
A147: 26 | B147: 2022-09-15 | D147: BANKNIFTY 41300 CE 15-SEP | E147: Buy | F147: 135 | G147: 30 | H147: 185 | I147: 250-330 | J147: Profit of Rs.50/- | K147: =H147-F147 -> 50 | L147: 100.00 | M147: =(K147*N147)-L147 -> 1150.0 | N147: 25 | O147: Successful | P147: 2022-09-15 | R147: N
A148: 27 | B148: 2022-09-15 | D148: BALKRISIND 2050 CE SEP | E148: Buy | F148: 53.5 | G148: 37 | H148: 65 | I148: 70-80 | J148: Profit of Rs.11.5/- | K148: =H148-F148 -> 11.5 | L148: 100.00 | M148: =(K148*N148)-L148 -> 3350.0 | N148: 300 | O148: Successful | P148: 2022-09-15 | R148: H
A149: 28 | B149: 2022-09-20 | D149: NIFTY 17700 PE 22-SEP | E149: Buy | F149: 75 | G149: 34 | H149: 82 | I149: 120-140 | J149: Profit of Rs.7/- | K149: =H149-F149 -> 7 | L149: 100.00 | M149: =(K149*N149)-L149 -> 250.0 | N149: 50 | O149: Neutral | P149: 2022-09-21
A150: 29 | B150: 2022-09-20 | D150: INFY 1420 CE SEP | E150: Buy | F150: 27 | G150: 10 | H150: 10 | I150: 45-60 | J150: Loss of Rs.17/- | K150: -17 | L150: 100.00 | M150: -5200.0 | N150: 300 | O150: Unsuccessful | P150: 2022-09-22
A151: 30 | B151: 2022-09-22 | D151: BANKNIFTY 41100 CE 22-SEP | E151: Buy | F151: 155 | G151: 50 | H151: 50 | I151: 250-300 | J151: Loss of Rs.105/- | K151: =H151-F151 -> -105 | L151: 100.00 | M151: =(K151*N151)-L151 -> -2725.0 | N151: 25 | O151: Unsuccessful | P151: 2022-09-22
A152: 31 | B152: 2022-09-22 | D152: TATACONSUM 810 CE SEP | E152: Buy | F152: 10.5 | G152: 5 | H152: 5 | I152: 18-22 | J152: Loss of Rs.5.5/- | K152: -5.5 | L152: 100.00 | M152: -5050.0 | N152: 900 | O152: Unsuccessful | P152: 2022-09-23
A153: 32 | B153: 2022-09-23 | D153: BIOCON 300 CE SEP | E153: Buy | F153: 1.9 | H153: 2.95 | I153: 4-5.0 | J153: Profit of Rs.1.05/- | K153: =H153-F153 -> 1.05 | L153: 100.00 | M153: =(K153*N153)-L153 -> 2210.0 | N153: 2200 | O153: Successful | P153: 2022-09-23
A154: 33 | B154: 2022-09-23 | D154: BIOCON 300 CE SEP | E154: Buy | F154: 2.4 | I154: 4.5-5.5 | J154: Open
A158: Techno -Funda (positional)
A159: Sr.no | B159: Date | D159: Company | E159: Rec | F159: Rec Price | G159: Stop Loss*** | H159: Call Closed At | I159: Target | J159: Remark | K159: Profit / Loss per Share/Lot | L159: All charges | M159: Net Gain / Loss % | N159: Status | O159: Closed Date | P159: Market Closing Price
A163: CLBS = Closing Basis *** | F163: Reinitiated $
A164: Dividend adjusted <> | F164: Revised stoploss # | H164: .................
B168: Investment Idea
A169: Sr.no | B169: Date | D169: Company | E169: Rec | F169: Rec Price | G169: Point of Review | H169: Close Rate | I169: Target | J169: Remark | K169: Profit / Loss per Share | L169: Gain / Loss % | M169: Status | N169: Closed Date
A170: 1 | B170: 2013-11-01 | D170: L&T Finance Holding | E170: Accu | F170: 82.00 | G170: - | H170: 100 | I170: 100.00 | J170: Target Achieved | K170: =H170-F170 -> 18.00 | L170: =K170/F170 -> 21.95% | M170: Successful | N170: 2016-10-14
A171: 2 | B171: 2014-06-04 | D171: Finolex Inds | E171: Buy | F171: 257.00 | G171: - | H171: 300 | I171: 300.00 | J171: Target Achieved | K171: 43.00 | L171: 16.73% | M171: Successful | N171: 2014-07-02
A172: 3 | B172: 2014-07-08 | D172: JK Cement | E172: Buy | F172: 393.00 | G172: - | H172: 468 | I172: 468.00 | J172: Target Achieved | K172: 75.00 | L172: 19.08% | M172: Successful | N172: 2014-08-12
A173: 4 | B173: 2014-08-06 | D173: Finolex Cables | E173: Buy | F173: 205.00 | G173: - | H173: 275 | I173: 250.00 | J173: Target Achieved | K173: 70.00 | L173: 34.15% | M173: Successful | N173: 2014-11-19
A174: 5 | B174: 2014-09-04 | D174: Exide Inds | E174: Buy | F174: 162.00 | G174: - | H174: 190 | I174: 190.00 | J174: Target Achieved | K174: 28.00 | L174: 17.28% | M174: Successful | N174: 2015-01-02
A175: 6 | B175: 2014-09-04 | D175: Deepak Nitrite | E175: Buy | F175: 75.00 | G175: - | H175: 91.5 | I175: 95-100 | J175: Profit of Rs.16.50/- | K175: 16.50 | L175: 22.00% | M175: Successful | N175: 2014-11-11
A176: 7 | B176: 2014-10-01 | D176: Mercks | E176: Buy | F176: 850.00 | G176: - | H176: 982.5 | I176: 1050.00 | J176: Profit of Rs.132.50/- | K176: 132.50 | L176: 15.59% | M176: Successful | N176: 2015-02-04
A177: 8 | B177: 2014-10-01 | D177: Grindwell Norton | E177: Buy | F177: 475.00 | G177: - | H177: 515 | I177: 600.00 | J177: Profit of Rs.40/- | K177: 40.00 | L177: 8.42% | M177: Successful | N177: 2014-10-27
A178: 9 | B178: 2014-10-01 | D178: Snowman Logistics | E178: Buy | F178: 86.00 | G178: - | H178: 99 | I178: 140.00 | J178: Profit of Rs.13.00/- | K178: 13.00 | L178: 15.12% | M178: Successful | N178: 2014-10-27
A179: 10 | B179: 2014-10-14 | D179: Birla Corp | E179: Buy | F179: 496.60 | G179: - | H179: 621 | I179: 580.00 | J179: Target Achieved | K179: 124.40 | L179: 25.05% | M179: Successful | N179: 2016-08-23
A180: 11 | B180: 2014-10-14 | D180: Ultratech Cem | E180: Buy | F180: 2481.90 | G180: - | H180: 2840 | I180: 2870.00 | J180: Profit of Rs.358.10/- | K180: 358.10 | L180: 14.43% | M180: Successful | N180: 2015-01-13
A181: 12 | B181: 2014-10-16 | D181: Sintex Inds | E181: Buy | F181: 84.50 | G181: - | H181: 93 | I181: 110.00 | J181: Profit of Rs.8.50/- | K181: 8.50 | L181: 10.06% | M181: Successful | N181: 2014-10-27
A182: 13 | B182: 2014-10-16 | D182: HSIL | E182: Buy | F182: 401.00 | G182: - | H182: 428 | I182: 450.00 | J182: Profit of Rs.27.00/- | K182: 27.00 | L182: 6.73% | M182: Successful | N182: 2015-01-16
A183: 14 | B183: 2014-10-16 | D183: Eveready Inds | E183: Buy | F183: 101.00 | G183: - | H183: 112 | I183: 120.00 | J183: Profit of Rs.11.00/- | K183: 11.00 | L183: 10.89% | M183: Successful | N183: 2014-10-27
A184: 15 | B184: 2014-11-11 | D184: Pennar Inds | E184: Buy | F184: 59.00 | G184: - | H184: 76 | I184: 76.00 | J184: Target Achieved | K184: 17.00 | L184: 28.81% | M184: Successful | N184: 2017-10-24
A185: 16 | B185: 2014-11-11 | D185: Snowman Logistics | E185: Buy | F185: 99.00 | G185: - | H185: 120 | I185: 120.00 | J185: Profit of Rs.21/- | K185: 21.00 | L185: 21.21% | M185: Successful | N185: 2014-11-17
A186: 17 | B186: 2014-11-13 | D186: Dharamsi Morarji Chem | E186: Buy | F186: 22.00 | G186: - | H186: 33.55 | I186: 32.00 | J186: Profit of Rs 11.55/- | K186: 11.55 | L186: 52.50% | M186: Successful | N186: 2015-07-03
A187: 18 | B187: 2014-12-03 | D187: Tatachem | E187: Buy | F187: 440.00 | G187: - | H187: 520 | I187: 520.00 | J187: Profit of Rs 80.00/- | K187: 80.00 | L187: 18.18% | M187: Successful | N187: 2015-07-23
A188: 19 | B188: 2014-12-03 | D188: Advanta | E188: Buy | F188: 360.00 | G188: - | H188: 427 | I188: 425.00 | J188: Profit of Rs.67.00/- | K188: 67.00 | L188: 18.61% | M188: Successful | N188: 2015-02-23
A189: 20 | B189: 2015-01-08 | D189: GDL | E189: Buy | F189: 360.00 | G189: - | H189: 455 | I189: 420.00 | J189: Profit of Rs.95.00/- | K189: 95.00 | L189: 26.39% | M189: Successful | N189: 2015-01-20
A190: 21 | B190: 2015-01-08 | D190: NRB Bearing | E190: Buy | F190: 130.00 | H190: 175.5 | I190: 165.00 | J190: Profit of Rs 45.50/- | K190: 45.50 | L190: 35.00% | M190: Successful | N190: 2017-12-19
A191: 22 | B191: 2015-02-05 | D191: GSFC | E191: Accu | F191: 98.00 | H191: 120 | I191: 120.00 | J191: Target Achieved | K191: 22.00 | L191: 22.45% | M191: Successful | N191: 2017-01-18
A192: 23 | B192: 2015-02-05 | D192: Sundrmfast | E192: Accu | F192: 196.00 | H192: 262 | I192: 255.00 | J192: Target Achieved | K192: 66.00 | L192: 33.67% | M192: Successful | N192: 2016-08-17
A193: 24 | B193: 2015-03-04 | D193: GPPL | E193: Accu | F193: 235 | H193: 77.00 | I193: 280-285 | J193: Loss of Rs.158/- | K193: -158.00 | L193: -67.23% | M193: Unsuccessful | N193: 2019-02-26
A194: 25 | B194: 2015-03-04 | D194: ORIENTCEM | E194: Accu | F194: 185.00 | H194: 224 | I194: 220-225 | J194: Target Achieved | K194: 39.00 | L194: 21.08% | M194: Successful | N194: 2016-10-04
A195: 26 | B195: 2015-03-27 | D195: PFS | E195: Accu | F195: 49.5 | H195: 15.85 | I195: 67.00 | J195: Loss of Rs.33.65/- | K195: -33.65 | L195: -68% | M195: Unsuccessful | N195: 2019-06-11
A196: 27 | B196: 2015-03-30 | D196: Walchandnagar Ind Ltd | E196: Accu | F196: 183.50 | H196: 219 | I196: 218.00 | J196: Profit of Rs.35.50/- | K196: 35.50 | L196: 19.35% | M196: Successful | N196: 2015-04-09
A197: 28 | B197: 2015-04-20 | D197: Kalpataru Power Transmission Ltd | E197: Accu | F197: =(227+237)/2 -> 232.00 | H197: 298 | I197: 298.00 | J197: Target Achieved | K197: 66.00 | L197: 28.45% | M197: Successful | N197: 2017-03-29
A198: 29 | B198: 2015-05-04 | D198: Mastek Ltd | E198: Buy | F198: 385.00 | H198: =212.5+331 -> 543.5 | I198: 510.00 | J198: Profit of Rs 158.50/- | K198: 158.50 | L198: 41.17% | M198: Successful | N198: 2015-08-19
A199: 30 | B199: 2015-05-04 | D199: Suprajit Eng | E199: Buy | F199: 115.50 | H199: 146 | I199: 142.00 | J199: Profit of Rs 30.50/- | K199: 30.50 | L199: 26.41% | M199: Successful | N199: 2015-07-17
A200: 31 | B200: 2015-05-27 | D200: TCI | E200: Buy | F200: 237.50 | H200: 279.5 | I200: 278.00 | J200: Target Achieved | K200: 42.00 | L200: 17.68% | M200: Successful | N200: 2015-08-06
A201: 32 | B201: 2015-06-19 | D201: HSIL | E201: Accu | F201: 340.00 | H201: 448 | I201: 448.00 | J201: Target Achieved | K201: 108.00 | L201: 31.76% | M201: Successful | N201: 2017-10-10
A202: 33 | B202: 2015-07-06 | D202: Capital First | E202: Accu | F202: 390.00 | H202: 460 | I202: 460.00 | J202: Target Achieved | K202: 70.00 | L202: 17.95% | M202: Successful | N202: 2016-04-18
A203: 34 | B203: 2015-07-10 | D203: Dolphin OffShore | E203: Accu | F203: 122.5 | H203: 61.00 | I203: 172.00 | J203: Loss of Rs.61.50/- | K203: -61.50 | L203: -50.20% | M203: Unsuccessful | N203: 2018-08-21
A204: 35 | B204: 2015-08-03 | D204: Allcargo logistics | E204: Accu | F204: 297.50 | H204: 350 | I204: 360.00 | J204: Profit of Rs 52.50/- | K204: 52.50 | L204: 17.65% | M204: Successful | N204: 2015-08-16
A205: 36 | B205: 2015-08-03 | D205: Camline Fine | E205: Accu | F205: 115.50 | H205: 149 | I205: 140.00 | J205: Profit of Rs 33.50/- | K205: 33.50 | L205: 29.00% | M205: Successful | N205: 2017-01-05
A206: 37 | B206: 2015-09-04 | D206: TCI | E206: Accu | F206: 226.00 | H206: 292 | I206: 292.00 | J206: Target Achieved | K206: 66.00 | L206: 29.20% | M206: Successful | N206: 2015-10-09
A207: 38 | B207: 2015-09-07 | D207: Kalpataru Power Transmission Ltd | E207: Accu | F207: 232.50 | H207: 312.5 | I207: 310.00 | J207: Target Achieved | K207: 80.00 | L207: 34.41% | M207: Successful | N207: 2017-03-29
A208: 39 | B208: 2015-09-21 | D208: LLOYD ELECTRIC & ENG LTD | E208: Accu | F208: 196.50 | H208: 238 | I208: 238.00 | J208: Target Achieved | K208: 41.50 | L208: 21.12% | M208: Successful | N208: 2015-10-14
A209: 40 | B209: 2015-09-24 | D209: L&T Finance Holding | E209: Accu | F209: 65.00 | H209: 82 | I209: 82.00 | J209: Target Achieved | K209: 17.00 | L209: 26.15% | M209: Successful | N209: 2016-07-27
A210: 41 | B210: 2015-10-14 | D210: KEC International ltd | E210: Accu | F210: 144.00 | H210: 182.5 | I210: 181.00 | J210: Target Achieved | K210: 38.50 | L210: 26.74% | M210: Successful | N210: 2017-03-23
A211: 42 | B211: 2015-10-14 | D211: Gruh Finance | E211: Accu | F211: 264.00 | H211: 311 | I211: 311.00 | J211: Target Achieved | K211: 47.00 | L211: 17.80% | M211: Successful | N211: 2016-08-22
A212: 43 | B212: 2015-11-10 | D212: Pidilitind | E212: Buy | F212: 549.50 | H212: 630 | I212: 630.00 | J212: Target Achieved | K212: 80.50 | L212: 14.65% | M212: Successful | N212: 2016-02-19
A213: 44 | B213: 2015-12-04 | D213: Zensar Technology | E213: Accu | F213: 1027.50 | H213: 1315 | I213: 1250.00 | J213: Target Achieved | K213: 287.50 | L213: 27.98% | M213: Successful | N213: 2018-05-24
A214: 45 | B214: 2015-12-29 | D214: Vinati Organics Ltd | E214: Accu | F214: 465.00 | H214: 540 | I214: 540.00 | J214: Target Achieved | K214: 75.00 | L214: 16.13% | M214: Successful | N214: 2016-06-09
A215: 46 | B215: 2016-01-11 | D215: GSFC | E215: Buy | F215: 81.00 | H215: 110 | I215: 110.00 | J215: Target Achieved | K215: 29.00 | L215: 35.80% | M215: Successful | N215: 2017-01-10
A216: 47 | B216: 2016-01-13 | D216: SSWL | E216: Buy | F216: 417.50 | H216: 547 | I216: 535.00 | J216: Target Achieved | K216: 129.50 | L216: 31.02% | M216: Successful | N216: 2016-07-27
A217: 48 | B217: 2016-02-08 | D217: Persistent System Ltd | E217: Accu | F217: 650.00 | H217: 800 | I217: 800.00 | J217: Target Achieved | K217: 150.00 | L217: 23.08% | M217: Successful | N217: 2018-02-23
A218: 49 | B218: 2016-03-04 | D218: UPL | E218: Accu | F218: 437.50 | H218: 504.5 | I218: 522.00 | J218: Profit of Rs.67/- | K218: 67.00 | L218: 15.31% | M218: Successful | N218: 2016-04-20
A219: 50 | B219: 2016-03-09 | D219: Ashoka Buildcon Ltd | E219: Accu | F219: 189.50 | H219: 218 | I219: 218.00 | J219: Target Achieved | K219: 28.50 | L219: 15.04% | M219: Successful | N219: 2017-10-26
A220: 51 | B220: 2016-04-11 | D220: PTC INDIA FIN SERV LTD | E220: Accu | F220: 36.5 | H220: 15.85 | I220: 60.00 | J220: Loss of Rs.20.65/- | K220: -20.65 | L220: -56.58% | M220: Unsuccessful | N220: 2019-06-11
A221: 52 | B221: 2016-04-12 | D221: CAMLINFINE $ | E221: Accu | F221: 93.00 | H221: 149 | I221: 140.00 | J221: Profit of Rs 56/- | K221: 56.00 | L221: 60.22% | M221: Successful | N221: 2017-01-05
A222: 53 | B222: 2016-04-12 | D222: Greaves Cotton Ltd. | E222: Accu | F222: 130.00 | H222: 150 | I222: 150-155 | J222: Target Achieved | K222: 20.00 | L222: 15.38% | M222: Successful | N222: 2016-07-13
A223: 54 | B223: 2016-04-13 | D223: DHFL | E223: Accu | F223: 196.00 | H223: 299 | I223: 299.00 | J223: Target Achieved | K223: 103.00 | L223: 52.55% | M223: Successful | N223: 2016-09-07
A224: 55 | B224: 2016-04-13 | D224: Magma | E224: Accu | F224: 88.00 | H224: 103 | I224: 103.00 | J224: Target Achieved | K224: 15.00 | L224: 17.05% | M224: Successful | N224: 2016-06-09
A225: 56 | B225: 2016-05-02 | D225: KEC International ltd $ | E225: Accu | F225: 127.50 | H225: 148 | I225: 148-150 | J225: Target Achieved | K225: =H225-F225 -> 20.50 | L225: =K225/F225 -> 16.08% | M225: Successful | N225: 2016-07-13
A226: 57 | B226: 2016-05-03 | D226: Mindtree | E226: Accu | F226: 675.00 | H226: 815 | I226: 790-800 | J226: Target Achieved | K226: =H226-F226 -> 140.00 | L226: =K226/F226 -> 20.74% | M226: Successful | N226: 2018-02-23
A227: 58 | B227: 2016-06-01 | D227: Atulauto | E227: Accu | F227: 500 | H227: 232.50 | I227: 565-570 | J227: Loss of Rs.267.50 /- | K227: =H227-F227 -> -267.50 | L227: =K227/F227 -> -53.50% | M227: Unsuccessful | N227: 2019-09-27
A228: 59 | B228: 2016-06-06 | D228: TRITURBINE | E228: Accu | F228: 110.00 | H228: 126.5 | I228: 125.00 | J228: Profit of Rs.16.50/- | K228: =H228-F228 -> 16.50 | L228: =K228/F228 -> 15.00% | M228: Successful | N228: 2016-07-01
... 120 more rows
